Body Name,Body,Service Label,Service Code,CIPFA Detailed Expenditure Type,CIPFA Detailed Expenditure Code,Date,Transaction Number, Net Amount ,Supplier Name,,,,,,,,,,,Oct
Nottinghamshire County Council,1111/1001,Surplus or Deficit from Trading Undertak,TRADING,Supplies & Services,DAA,09/10/2013,9-10001,892,Xerox Office Supplies,,,,,,,,,,,
Nottinghamshire County Council,1111/1001,Surplus or Deficit from Trading Undertak,TRADING,Supplies & Services,DAA,09/10/2013,9-10001,"13,860.00",Xerox Office Supplies,,,,,,,,,,,
Nottinghamshire County Council,1111/1001,Surplus or Deficit from Trading Undertak,TRADING,Supplies & Services,DAA,09/10/2013,9-10001,"1,320.00",Premier Paper Group Ltd,,,,,,,,,,,
Nottinghamshire County Council,1111/1001,Surplus or Deficit from Trading Undertak,TRADING,Supplies & Services,DAA,30/10/2013,9-10001,880,Premier Paper Group Ltd,,,,,,,,,,,
Nottinghamshire County Council,1111/1001,Surplus or Deficit from Trading Undertak,TRADING,Supplies & Services,DAA,16/10/2013,9-10001,562.8,Heritage Envelopes Ltd,,,,,,,,,,,
Nottinghamshire County Council,1111/1001,Surplus or Deficit from Trading Undertak,TRADING,Supplies & Services,DAA,18/10/2013,9-10001,616.42,Heritage Envelopes Ltd,,,,,,,,,,,
Nottinghamshire County Council,1111/1001,Surplus or Deficit from Trading Undertak,TRADING,Supplies & Services,DAA,30/10/2013,9-10001,669.97,Heritage Envelopes Ltd,,,,,,,,,,,
Nottinghamshire County Council,1111/1001,Surplus or Deficit from Trading Undertak,TRADING,Supplies & Services,DAA,09/10/2013,9-10001,534,Talk Paper,,,,,,,,,,,
Nottinghamshire County Council,1111/1001,Surplus or Deficit from Trading Undertak,TRADING,Supplies & Services,DAA,16/10/2013,9-10001,"2,101.80",Talk Paper,,,,,,,,,,,
Nottinghamshire County Council,1111/1001,Surplus or Deficit from Trading Undertak,TRADING,Supplies & Services,DAA,09/10/2013,9-10001,597.5,Grosvenor House Papers Ltd,,,,,,,,,,,
Nottinghamshire County Council,1111/1001,Surplus or Deficit from Trading Undertak,TRADING,Supplies & Services,DAA,23/10/2013,9-10001,554.3,Grosvenor House Papers Ltd,,,,,,,,,,,
Nottinghamshire County Council,1111/1001,Surplus or Deficit from Trading Undertak,TRADING,Supplies & Services,DAA,09/10/2013,9-10001,"2,235.00",Newell Rubbermaid,,,,,,,,,,,
Nottinghamshire County Council,1111/1001,Surplus or Deficit from Trading Undertak,TRADING,Supplies & Services,DAA,09/10/2013,9-10001,"1,904.60",Newell Rubbermaid,,,,,,,,,,,
Nottinghamshire County Council,1111/1001,Surplus or Deficit from Trading Undertak,TRADING,Supplies & Services,DAA,16/10/2013,9-10001,"3,556.00",Newell Rubbermaid,,,,,,,,,,,
Nottinghamshire County Council,1111/1001,Surplus or Deficit from Trading Undertak,TRADING,Supplies & Services,DAA,18/10/2013,9-10001,"1,490.00",Newell Rubbermaid,,,,,,,,,,,
Nottinghamshire County Council,1111/1001,Surplus or Deficit from Trading Undertak,TRADING,Supplies & Services,DAA,30/10/2013,9-10001,"1,028.58",Newell Rubbermaid,,,,,,,,,,,
Nottinghamshire County Council,1111/1001,Surplus or Deficit from Trading Undertak,TRADING,Supplies & Services,DAA,03/10/2013,9-10001,804.48,Acco-Rexel Ltd,,,,,,,,,,,
Nottinghamshire County Council,1111/1001,Surplus or Deficit from Trading Undertak,TRADING,Supplies & Services,DAA,09/10/2013,9-10001,655.6,Acco-Rexel Ltd,,,,,,,,,,,
Nottinghamshire County Council,1111/1001,Surplus or Deficit from Trading Undertak,TRADING,Supplies & Services,DAA,23/10/2013,9-10001,551.95,Newclay Products Ltd,,,,,,,,,,,
Nottinghamshire County Council,1111/1001,Surplus or Deficit from Trading Undertak,TRADING,Supplies & Services,DAA,01/10/2013,9-10001,555.5,R.H.Ritchings Ltd,,,,,,,,,,,
Nottinghamshire County Council,1111/1001,Surplus or Deficit from Trading Undertak,TRADING,Supplies & Services,DAA,01/10/2013,9-10001,"1,111.00",R.H.Ritchings Ltd,,,,,,,,,,,
Nottinghamshire County Council,1111/1001,Surplus or Deficit from Trading Undertak,TRADING,Supplies & Services,DAA,16/10/2013,9-10001,533.38,Scolaquip Ltd,,,,,,,,,,,
Nottinghamshire County Council,1111/1001,Surplus or Deficit from Trading Undertak,TRADING,Supplies & Services,DAA,23/10/2013,9-10001,656.18,Staedtler (Uk) Ltd,,,,,,,,,,,
Nottinghamshire County Council,1111/1001,Surplus or Deficit from Trading Undertak,TRADING,Supplies & Services,DAA,23/10/2013,9-10001,721.8,Rapesco Office Products Plc,,,,,,,,,,,
Nottinghamshire County Council,1111/1001,Surplus or Deficit from Trading Undertak,TRADING,Supplies & Services,DAA,01/10/2013,9-10001,700.37,Allen Glenold Ltd,,,,,,,,,,,
Nottinghamshire County Council,1111/1001,Surplus or Deficit from Trading Undertak,TRADING,Supplies & Services,DAA,01/10/2013,9-10001,"1,755.73",Allen Glenold Ltd,,,,,,,,,,,
Nottinghamshire County Council,1111/1001,Surplus or Deficit from Trading Undertak,TRADING,Supplies & Services,DAA,09/10/2013,9-10001,"1,201.82",Allen Glenold Ltd,,,,,,,,,,,
Nottinghamshire County Council,1111/1001,Surplus or Deficit from Trading Undertak,TRADING,Supplies & Services,DAA,18/10/2013,9-10001,960,Allen Glenold Ltd,,,,,,,,,,,
Nottinghamshire County Council,1111/1001,Surplus or Deficit from Trading Undertak,TRADING,Supplies & Services,DAA,30/10/2013,9-10001,"1,692.58",Allen Glenold Ltd,,,,,,,,,,,
Nottinghamshire County Council,1111/1001,Surplus or Deficit from Trading Undertak,TRADING,Supplies & Services,DAA,16/10/2013,9-10001,619.62,Slater Harrison & Co Ltd,,,,,,,,,,,
Nottinghamshire County Council,1111/1001,Surplus or Deficit from Trading Undertak,TRADING,Supplies & Services,DAA,16/10/2013,9-10001,"1,088.00",Slater Harrison & Co Ltd,,,,,,,,,,,
Nottinghamshire County Council,1111/1001,Surplus or Deficit from Trading Undertak,TRADING,Supplies & Services,DAA,11/10/2013,9-10001,677.8,E V Naish Ltd,,,,,,,,,,,
Nottinghamshire County Council,1111/1001,Surplus or Deficit from Trading Undertak,TRADING,Supplies & Services,DAA,23/10/2013,9-10001,677.76,E V Naish Ltd,,,,,,,,,,,
Nottinghamshire County Council,1111/1001,Surplus or Deficit from Trading Undertak,TRADING,Supplies & Services,DAA,09/10/2013,9-10001,823.35,Creativity International Ltd,,,,,,,,,,,
Nottinghamshire County Council,1111/1001,Surplus or Deficit from Trading Undertak,TRADING,Supplies & Services,DAA,09/10/2013,9-10001,823.2,Creativity International Ltd,,,,,,,,,,,
Nottinghamshire County Council,1111/1001,Surplus or Deficit from Trading Undertak,TRADING,Supplies & Services,DAA,09/10/2013,9-10001,"1,358.87",Creativity International Ltd,,,,,,,,,,,
Nottinghamshire County Council,1111/1001,Surplus or Deficit from Trading Undertak,TRADING,Supplies & Services,DAA,09/10/2013,9-10001,542.75,Creativity International Ltd,,,,,,,,,,,
Nottinghamshire County Council,1111/1001,Surplus or Deficit from Trading Undertak,TRADING,Supplies & Services,DAA,09/10/2013,9-10001,"1,152.06",Creativity International Ltd,,,,,,,,,,,
Nottinghamshire County Council,1111/1001,Surplus or Deficit from Trading Undertak,TRADING,Supplies & Services,DAA,16/10/2013,9-10001,588.95,Creativity International Ltd,,,,,,,,,,,
Nottinghamshire County Council,1111/1001,Surplus or Deficit from Trading Undertak,TRADING,Supplies & Services,DAA,18/10/2013,9-10001,557.23,Creativity International Ltd,,,,,,,,,,,
Nottinghamshire County Council,1111/1001,Surplus or Deficit from Trading Undertak,TRADING,Supplies & Services,DAA,18/10/2013,9-10001,561.99,Creativity International Ltd,,,,,,,,,,,
Nottinghamshire County Council,1111/1001,Surplus or Deficit from Trading Undertak,TRADING,Supplies & Services,DAA,18/10/2013,9-10001,879.83,Creativity International Ltd,,,,,,,,,,,
Nottinghamshire County Council,1111/1001,Surplus or Deficit from Trading Undertak,TRADING,Supplies & Services,DAA,18/10/2013,9-10001,"1,918.47",Creativity International Ltd,,,,,,,,,,,
Nottinghamshire County Council,1111/1001,Surplus or Deficit from Trading Undertak,TRADING,Supplies & Services,DAA,16/10/2013,9-10001,"1,148.48",Valentine Clays,,,,,,,,,,,
Nottinghamshire County Council,1111/1001,Surplus or Deficit from Trading Undertak,TRADING,Supplies & Services,DAA,09/10/2013,9-10001,766.76,Bright Ideas Marketing Ltd,,,,,,,,,,,
Nottinghamshire County Council,1111/1001,Surplus or Deficit from Trading Undertak,TRADING,Supplies & Services,DAA,09/10/2013,9-10001,738.33,Bright Ideas Marketing Ltd,,,,,,,,,,,
Nottinghamshire County Council,1111/1001,Surplus or Deficit from Trading Undertak,TRADING,Supplies & Services,DAA,23/10/2013,9-10001,565.35,Bright Ideas Marketing Ltd,,,,,,,,,,,
Nottinghamshire County Council,1111/1001,Surplus or Deficit from Trading Undertak,TRADING,Supplies & Services,DAA,30/10/2013,9-10001,531.32,Bright Ideas Marketing Ltd,,,,,,,,,,,
Nottinghamshire County Council,1111/1001,Surplus or Deficit from Trading Undertak,TRADING,Premises Related,BJA,14/10/2013,9-10001,587.88,Biffa Waste Services Ltd,,,,,,,,,,,
Nottinghamshire County Council,1111/1001,Surplus or Deficit from Trading Undertak,TRADING,Supplies & Services,DDA,09/10/2013,9-10001,884.52,Hamelin Paperbrands Ltd,,,,,,,,,,,
Nottinghamshire County Council,1111/1001,Surplus or Deficit from Trading Undertak,TRADING,Supplies & Services,DDA,23/10/2013,9-10001,845.1,Hamelin Paperbrands Ltd,,,,,,,,,,,
Nottinghamshire County Council,1111/1001,Surplus or Deficit from Trading Undertak,TRADING,Supplies & Services,DDA,23/10/2013,9-10001,890.24,Hamelin Paperbrands Ltd,,,,,,,,,,,
Nottinghamshire County Council,1111/1001,Surplus or Deficit from Trading Undertak,TRADING,Supplies & Services,DDA,01/10/2013,9-10001,519.36,Plastoreg Smidt Gmbh,,,,,,,,,,,
Nottinghamshire County Council,1111/1001,Surplus or Deficit from Trading Undertak,TRADING,Supplies & Services,DDA,30/10/2013,9-10001,567.68,Plastoreg Smidt Gmbh,,,,,,,,,,,
Nottinghamshire County Council,1111/1001,Surplus or Deficit from Trading Undertak,TRADING,Supplies & Services,DDA,09/10/2013,9-10001,"2,643.24",Henkel Loctite Adhesives Ltd,,,,,,,,,,,
Nottinghamshire County Council,1111/1001,Surplus or Deficit from Trading Undertak,TRADING,Supplies & Services,DDA,09/10/2013,9-10001,"5,235.84",Henkel Loctite Adhesives Ltd,,,,,,,,,,,
Nottinghamshire County Council,1111/1001,Surplus or Deficit from Trading Undertak,TRADING,Supplies & Services,DDA,16/10/2013,9-10001,"2,553.24",Henkel Loctite Adhesives Ltd,,,,,,,,,,,
Nottinghamshire County Council,1111/1001,Surplus or Deficit from Trading Undertak,TRADING,Supplies & Services,DDA,23/10/2013,9-10001,546.6,Henkel Loctite Adhesives Ltd,,,,,,,,,,,
Nottinghamshire County Council,1111/1001,Surplus or Deficit from Trading Undertak,TRADING,Supplies & Services,DAA,28/10/2013,9-10001,596.16,Kb Packaging,,,,,,,,,,,
Nottinghamshire County Council,1111/1001,Surplus or Deficit from Trading Undertak,TRADING,Supplies & Services,DAA,16/10/2013,9-10001,912.54,Bostik Ltd,,,,,,,,,,,
Nottinghamshire County Council,1111/1001,Surplus or Deficit from Trading Undertak,TRADING,Supplies & Services,DAA,09/10/2013,9-10001,502.5,Reliance Medical Ltd,,,,,,,,,,,
Nottinghamshire County Council,1111/1001,Surplus or Deficit from Trading Undertak,TRADING,Supplies & Services,DAA,16/10/2013,9-10001,520.9,Reliance Medical Ltd,,,,,,,,,,,
Nottinghamshire County Council,1111/1001,Surplus or Deficit from Trading Undertak,TRADING,Supplies & Services,DAA,11/10/2013,9-10001,619.2,Flip File Ltd,,,,,,,,,,,
Nottinghamshire County Council,1111/1001,Surplus or Deficit from Trading Undertak,TRADING,Supplies & Services,DAA,03/10/2013,9-10001,649.95,Vivid Laminating Technologies Ltd,,,,,,,,,,,
Nottinghamshire County Council,1111/1001,Surplus or Deficit from Trading Undertak,TRADING,Supplies & Services,DAA,09/10/2013,9-10001,"2,447.96",Vivid Laminating Technologies Ltd,,,,,,,,,,,
Nottinghamshire County Council,1111/1001,Surplus or Deficit from Trading Undertak,TRADING,Supplies & Services,DAA,21/10/2013,9-10001,521.96,Vivid Laminating Technologies Ltd,,,,,,,,,,,
Nottinghamshire County Council,1111/1001,Surplus or Deficit from Trading Undertak,TRADING,Supplies & Services,DAA,11/10/2013,9-10001,571.72,Supplies Team Ltd,,,,,,,,,,,
Nottinghamshire County Council,1111/1001,Surplus or Deficit from Trading Undertak,TRADING,Supplies & Services,DAA,11/10/2013,9-10001,976.28,Supplies Team Ltd,,,,,,,,,,,
Nottinghamshire County Council,1111/1001,Surplus or Deficit from Trading Undertak,TRADING,Supplies & Services,DAA,11/10/2013,9-10001,551.26,Supplies Team Ltd,,,,,,,,,,,
Nottinghamshire County Council,1111/1001,Surplus or Deficit from Trading Undertak,TRADING,Supplies & Services,DAA,11/10/2013,9-10001,"1,370.67",Supplies Team Ltd,,,,,,,,,,,
Nottinghamshire County Council,1111/1001,Surplus or Deficit from Trading Undertak,TRADING,Supplies & Services,DAA,11/10/2013,9-10001,"2,934.81",Supplies Team Ltd,,,,,,,,,,,
Nottinghamshire County Council,1111/1001,Surplus or Deficit from Trading Undertak,TRADING,Supplies & Services,DAA,11/10/2013,9-10001,913.94,Supplies Team Ltd,,,,,,,,,,,
Nottinghamshire County Council,1111/1001,Surplus or Deficit from Trading Undertak,TRADING,Supplies & Services,DAA,11/10/2013,9-10001,"1,761.71",Supplies Team Ltd,,,,,,,,,,,
Nottinghamshire County Council,1111/1001,Surplus or Deficit from Trading Undertak,TRADING,Supplies & Services,DAA,11/10/2013,9-10001,"1,007.90",Supplies Team Ltd,,,,,,,,,,,
Nottinghamshire County Council,1111/1001,Surplus or Deficit from Trading Undertak,TRADING,Supplies & Services,DAA,11/10/2013,9-10001,820.06,Supplies Team Ltd,,,,,,,,,,,
Nottinghamshire County Council,1111/1001,Surplus or Deficit from Trading Undertak,TRADING,Supplies & Services,DAA,11/10/2013,9-10001,"2,975.02",Supplies Team Ltd,,,,,,,,,,,
Nottinghamshire County Council,1111/1001,Surplus or Deficit from Trading Undertak,TRADING,Supplies & Services,DAA,11/10/2013,9-10001,"3,098.62",Supplies Team Ltd,,,,,,,,,,,
Nottinghamshire County Council,1111/1001,Surplus or Deficit from Trading Undertak,TRADING,Supplies & Services,DAA,11/10/2013,9-10001,"3,614.21",Supplies Team Ltd,,,,,,,,,,,
Nottinghamshire County Council,1111/1001,Surplus or Deficit from Trading Undertak,TRADING,Supplies & Services,DAA,11/10/2013,9-10001,"1,093.04",Supplies Team Ltd,,,,,,,,,,,
Nottinghamshire County Council,1111/1001,Surplus or Deficit from Trading Undertak,TRADING,Supplies & Services,DAA,21/10/2013,9-10001,935.79,Supplies Team Ltd,,,,,,,,,,,
Nottinghamshire County Council,1111/1001,Surplus or Deficit from Trading Undertak,TRADING,Supplies & Services,DAA,16/10/2013,9-10001,536,Rotatrim Ltd,,,,,,,,,,,
Nottinghamshire County Council,1111/1001,Surplus or Deficit from Trading Undertak,TRADING,Supplies & Services,DAA,11/10/2013,9-10001,"1,125.00",Telescene Ltd,,,,,,,,,,,
Nottinghamshire County Council,1111/1001,Surplus or Deficit from Trading Undertak,TRADING,Premises Related,BAA,08/10/2013,9-10001,513.24,Flexiform Business Furniture,,,,,,,,,,,
Nottinghamshire County Council,1111/1001,Surplus or Deficit from Trading Undertak,TRADING,Premises Related,BAA,09/10/2013,9-10001,519.75,Avery Uk,,,,,,,,,,,
Nottinghamshire County Council,1111/1001,Surplus or Deficit from Trading Undertak,TRADING,Premises Related,BAA,21/10/2013,9-10001,539.35,Avery Uk,,,,,,,,,,,
Nottinghamshire County Council,1111/1001,Surplus or Deficit from Trading Undertak,TRADING,Premises Related,BJA,09/10/2013,9-10001,"1,632.54",Polystar Plastics Ltd,,,,,,,,,,,
Nottinghamshire County Council,1111/1001,Surplus or Deficit from Trading Undertak,TRADING,Premises Related,BJA,16/10/2013,9-10001,"4,424.49",Polystar Plastics Ltd,,,,,,,,,,,
Nottinghamshire County Council,1111/1001,Surplus or Deficit from Trading Undertak,TRADING,Premises Related,BJA,09/10/2013,9-10001,"1,538.23",Kimberley Clark European Services Ltd,,,,,,,,,,,
Nottinghamshire County Council,1111/1001,Surplus or Deficit from Trading Undertak,TRADING,Premises Related,BJA,18/10/2013,9-10001,850,Kimberley Clark European Services Ltd,,,,,,,,,,,
Nottinghamshire County Council,1111/1001,Surplus or Deficit from Trading Undertak,TRADING,Premises Related,BJA,18/10/2013,9-10001,"1,026.00",Kimberley Clark European Services Ltd,,,,,,,,,,,
Nottinghamshire County Council,1111/1001,Surplus or Deficit from Trading Undertak,TRADING,Premises Related,BJA,21/10/2013,9-10001,693,Kimberley Clark European Services Ltd,,,,,,,,,,,
Nottinghamshire County Council,1111/1001,Surplus or Deficit from Trading Undertak,TRADING,Premises Related,BJA,23/10/2013,9-10001,"3,231.36",Peacock Salt,,,,,,,,,,,
Nottinghamshire County Council,1111/1001,Surplus or Deficit from Trading Undertak,TRADING,Premises Related,BJA,23/10/2013,9-10001,619.2,Cromwell Polythene Ltd,,,,,,,,,,,
Nottinghamshire County Council,1111/1001,Surplus or Deficit from Trading Undertak,TRADING,Premises Related,BJA,09/10/2013,9-10001,745.2,Midland Wiper Manufacturing Co Ltd,,,,,,,,,,,
Nottinghamshire County Council,1111/1001,Surplus or Deficit from Trading Undertak,TRADING,Premises Related,BJA,16/10/2013,9-10001,718.24,Midland Wiper Manufacturing Co Ltd,,,,,,,,,,,
Nottinghamshire County Council,1111/1001,Surplus or Deficit from Trading Undertak,TRADING,Premises Related,BJA,18/10/2013,9-10001,627.19,Evans Vanodine International Ltd,,,,,,,,,,,
Nottinghamshire County Council,1111/1001,Surplus or Deficit from Trading Undertak,TRADING,Premises Related,BJA,25/10/2013,9-10001,853.36,Evans Vanodine International Ltd,,,,,,,,,,,
Nottinghamshire County Council,1111/1001,Surplus or Deficit from Trading Undertak,TRADING,Premises Related,BJA,01/10/2013,9-10001,"2,129.55",Johnson Diversey,,,,,,,,,,,
Nottinghamshire County Council,1111/1001,Surplus or Deficit from Trading Undertak,TRADING,Premises Related,BJA,09/10/2013,9-10001,"1,094.54",Johnson Diversey,,,,,,,,,,,
Nottinghamshire County Council,1111/1001,Surplus or Deficit from Trading Undertak,TRADING,Premises Related,BJA,21/10/2013,9-10001,502.37,Johnson Diversey,,,,,,,,,,,
Nottinghamshire County Council,1111/1001,Surplus or Deficit from Trading Undertak,TRADING,Premises Related,BJA,30/10/2013,9-10001,"1,722.47",Johnson Diversey,,,,,,,,,,,
Nottinghamshire County Council,1111/1001,Surplus or Deficit from Trading Undertak,TRADING,Premises Related,BJA,03/10/2013,9-10001,"1,507.58",Premiere Products,,,,,,,,,,,
Nottinghamshire County Council,1111/1001,Surplus or Deficit from Trading Undertak,TRADING,Premises Related,BJA,09/10/2013,9-10001,921.68,Premiere Products,,,,,,,,,,,
Nottinghamshire County Council,1111/1001,Surplus or Deficit from Trading Undertak,TRADING,Premises Related,BJA,11/10/2013,9-10001,"2,793.75",Premiere Products,,,,,,,,,,,
Nottinghamshire County Council,1111/1001,Surplus or Deficit from Trading Undertak,TRADING,Premises Related,BJA,18/10/2013,9-10001,669.17,Premiere Products,,,,,,,,,,,
Nottinghamshire County Council,1111/1001,Surplus or Deficit from Trading Undertak,TRADING,Premises Related,BJA,25/10/2013,9-10001,"1,904.32",Premiere Products,,,,,,,,,,,
Nottinghamshire County Council,1111/1001,Surplus or Deficit from Trading Undertak,TRADING,Premises Related,BJA,30/10/2013,9-10001,"1,361.15",Premiere Products,,,,,,,,,,,
Nottinghamshire County Council,1111/1001,Surplus or Deficit from Trading Undertak,TRADING,Premises Related,BJA,09/10/2013,9-10001,678,Candor Services,,,,,,,,,,,
Nottinghamshire County Council,1111/1001,Surplus or Deficit from Trading Undertak,TRADING,Supplies & Services,DAA,30/10/2013,9-10001,536.16,Dudson Bros Ltd,,,,,,,,,,,
Nottinghamshire County Council,1111/1001,Surplus or Deficit from Trading Undertak,TRADING,Supplies & Services,DAA,09/10/2013,9-10001,576.14,Bunzl Catering Supplies,,,,,,,,,,,
Nottinghamshire County Council,1111/1001,Surplus or Deficit from Trading Undertak,TRADING,Supplies & Services,DAA,01/10/2013,9-10001,585,Catering Supplies (Wakefield) Ltd,,,,,,,,,,,
Nottinghamshire County Council,1111/1001,Surplus or Deficit from Trading Undertak,TRADING,Supplies & Services,DAA,09/10/2013,9-10001,585,Catering Supplies (Wakefield) Ltd,,,,,,,,,,,
Nottinghamshire County Council,1111/1001,Surplus or Deficit from Trading Undertak,TRADING,Supplies & Services,DAA,01/10/2013,9-10001,"9,741.32",Sca Hygiene,,,,,,,,,,,
Nottinghamshire County Council,1111/1001,Surplus or Deficit from Trading Undertak,TRADING,Supplies & Services,DAA,09/10/2013,9-10001,"5,624.90",Sca Hygiene,,,,,,,,,,,
Nottinghamshire County Council,1111/1001,Surplus or Deficit from Trading Undertak,TRADING,Supplies & Services,DAA,11/10/2013,9-10001,"6,648.15",Sca Hygiene,,,,,,,,,,,
Nottinghamshire County Council,1111/1001,Surplus or Deficit from Trading Undertak,TRADING,Supplies & Services,DAA,16/10/2013,9-10001,"1,966.70",Sca Hygiene,,,,,,,,,,,
Nottinghamshire County Council,1111/1001,Surplus or Deficit from Trading Undertak,TRADING,Supplies & Services,DAA,16/10/2013,9-10001,"6,794.59",Sca Hygiene,,,,,,,,,,,
Nottinghamshire County Council,1111/1001,Surplus or Deficit from Trading Undertak,TRADING,Supplies & Services,DAA,09/10/2013,9-10001,"1,001.20",Kay-Metzeler Ltd,,,,,,,,,,,
Nottinghamshire County Council,1111/1001,Surplus or Deficit from Trading Undertak,TRADING,Supplies & Services,DBA,30/10/2013,9-10001,"1,155.08",North West Tea Service Ltd,,,,,,,,,,,
Nottinghamshire County Council,1111/1001,Surplus or Deficit from Trading Undertak,TRADING,Supplies & Services,DAA,09/10/2013,9-10001,550,Stearn Electric Company Ltd,,,,,,,,,,,
Nottinghamshire County Council,1111/1001,Surplus or Deficit from Trading Undertak,TRADING,Supplies & Services,DCA,18/10/2013,9-10001,752,Freudenberg Household Products Lp,,,,,,,,,,,
Nottinghamshire County Council,1111/1001,Surplus or Deficit from Trading Undertak,TRADING,Supplies & Services,DCA,21/10/2013,9-10001,558,Freudenberg Household Products Lp,,,,,,,,,,,
Nottinghamshire County Council,1111/1001,Surplus or Deficit from Trading Undertak,TRADING,Supplies & Services,DCA,16/10/2013,9-10001,"2,421.57",Shermond,,,,,,,,,,,
Nottinghamshire County Council,1111/1001,Surplus or Deficit from Trading Undertak,TRADING,Supplies & Services,DCA,23/10/2013,9-10001,"2,401.23",Shermond,,,,,,,,,,,
Nottinghamshire County Council,1111/1001,Surplus or Deficit from Trading Undertak,TRADING,Supplies & Services,DCA,30/10/2013,9-10001,717.75,Shermond,,,,,,,,,,,
Nottinghamshire County Council,1111/1001,Surplus or Deficit from Trading Undertak,TRADING,Supplies & Services,DKA,08/10/2013,9-10001,510.8,Bunzl Cleaning & Hygiene Supplies,,,,,,,,,,,
Nottinghamshire County Council,1111/1001,Surplus or Deficit from Trading Undertak,TRADING,Supplies & Services,DKA,18/10/2013,9-10001,556.44,Bunzl Cleaning & Hygiene Supplies,,,,,,,,,,,
Nottinghamshire County Council,1111/1001,Surplus or Deficit from Trading Undertak,TRADING,Supplies & Services,DKA,18/10/2013,9-10001,778.88,Bunzl Cleaning & Hygiene Supplies,,,,,,,,,,,
Nottinghamshire County Council,1111/1001,Surplus or Deficit from Trading Undertak,TRADING,Supplies & Services,DKA,22/10/2013,9-10001,771.8,Bunzl Cleaning & Hygiene Supplies,,,,,,,,,,,
Nottinghamshire County Council,1111/1001,Surplus or Deficit from Trading Undertak,TRADING,Supplies & Services,DKA,22/10/2013,9-10001,"1,021.60",Bunzl Cleaning & Hygiene Supplies,,,,,,,,,,,
Nottinghamshire County Council,1111/1001,Surplus or Deficit from Trading Undertak,TRADING,Supplies & Services,DKA,23/10/2013,9-10001,"1,369.44",Bunzl Cleaning & Hygiene Supplies,,,,,,,,,,,
Nottinghamshire County Council,1111/1001,Surplus or Deficit from Trading Undertak,TRADING,Supplies & Services,DKA,30/10/2013,9-10001,766.2,Bunzl Cleaning & Hygiene Supplies,,,,,,,,,,,
Nottinghamshire County Council,1111/1001,Surplus or Deficit from Trading Undertak,TRADING,Supplies & Services,DAA,03/10/2013,9-10001,531.1,R Scott & Sons Ltd,,,,,,,,,,,
Nottinghamshire County Council,1111/1001,Surplus or Deficit from Trading Undertak,TRADING,Supplies & Services,DAA,11/10/2013,9-10001,"1,264.50",R Scott & Sons Ltd,,,,,,,,,,,
Nottinghamshire County Council,1111/1001,Surplus or Deficit from Trading Undertak,TRADING,Supplies & Services,DAA,16/10/2013,9-10001,"3,332.80",R Scott & Sons Ltd,,,,,,,,,,,
Nottinghamshire County Council,1111/1001,Surplus or Deficit from Trading Undertak,TRADING,Supplies & Services,DAA,18/10/2013,9-10001,"1,413.10",R Scott & Sons Ltd,,,,,,,,,,,
Nottinghamshire County Council,1111/1001,Surplus or Deficit from Trading Undertak,TRADING,Supplies & Services,DAA,23/10/2013,9-10001,533,R Scott & Sons Ltd,,,,,,,,,,,
Nottinghamshire County Council,1111/1001,Surplus or Deficit from Trading Undertak,TRADING,Supplies & Services,DAA,23/10/2013,9-10001,833,Office Innovations,,,,,,,,,,,
Nottinghamshire County Council,1111/1001,Surplus or Deficit from Trading Undertak,TRADING,Supplies & Services,DAA,09/10/2013,9-10001,882.7,Principal Furniture,,,,,,,,,,,
Nottinghamshire County Council,1111/1001,Surplus or Deficit from Trading Undertak,TRADING,Supplies & Services,DAA,09/10/2013,9-10001,653.2,Principal Furniture,,,,,,,,,,,
Nottinghamshire County Council,1111/1001,Surplus or Deficit from Trading Undertak,TRADING,Supplies & Services,DAA,18/10/2013,9-10001,531.85,Principal Furniture,,,,,,,,,,,
Nottinghamshire County Council,1111/1001,Surplus or Deficit from Trading Undertak,TRADING,Supplies & Services,DAA,22/10/2013,9-10001,"1,127.70",Principal Furniture,,,,,,,,,,,
Nottinghamshire County Council,1111/1001,Surplus or Deficit from Trading Undertak,TRADING,Supplies & Services,DAA,08/10/2013,9-10001,"2,137.68",Helmsman,,,,,,,,,,,
Nottinghamshire County Council,1111/1001,Surplus or Deficit from Trading Undertak,TRADING,Supplies & Services,DAA,22/10/2013,9-10001,520,Insight,,,,,,,,,,,
Nottinghamshire County Council,1111/1001,Surplus or Deficit from Trading Undertak,TRADING,Supplies & Services,DAA,16/10/2013,9-10001,719.2,Advanced Moulds Ltd,,,,,,,,,,,
Nottinghamshire County Council,1111/1001,Surplus or Deficit from Trading Undertak,TRADING,Supplies & Services,DAA,16/10/2013,9-10001,987.5,Advanced Moulds Ltd,,,,,,,,,,,
Nottinghamshire County Council,1111/1001,Surplus or Deficit from Trading Undertak,TRADING,Supplies & Services,DAA,16/10/2013,9-10001,739.5,Advanced Moulds Ltd,,,,,,,,,,,
Nottinghamshire County Council,1111/1001,Surplus or Deficit from Trading Undertak,TRADING,Supplies & Services,DAA,01/10/2013,9-10001,640.7,Master Matting,,,,,,,,,,,
Nottinghamshire County Council,1111/1001,Surplus or Deficit from Trading Undertak,TRADING,Supplies & Services,DAA,09/10/2013,9-10001,"1,046.00",Aquila Business Products,,,,,,,,,,,
Nottinghamshire County Council,1111/1001,Surplus or Deficit from Trading Undertak,TRADING,Supplies & Services,DAA,18/10/2013,9-10001,501.6,Aquila Business Products,,,,,,,,,,,
Nottinghamshire County Council,1111/1001,Surplus or Deficit from Trading Undertak,TRADING,Supplies & Services,DAA,18/10/2013,9-10001,531.44,Hille Education Products Ltd,,,,,,,,,,,
Nottinghamshire County Council,1111/1001,Surplus or Deficit from Trading Undertak,TRADING,Supplies & Services,DAA,18/10/2013,9-10001,531.44,Hille Education Products Ltd,,,,,,,,,,,
Nottinghamshire County Council,1111/1001,Surplus or Deficit from Trading Undertak,TRADING,Supplies & Services,DAA,22/10/2013,9-10001,580.8,Hille Education Products Ltd,,,,,,,,,,,
Nottinghamshire County Council,1111/1001,Surplus or Deficit from Trading Undertak,TRADING,Supplies & Services,DAA,28/10/2013,9-10001,667.2,Hille Education Products Ltd,,,,,,,,,,,
Nottinghamshire County Council,1111/1001,Surplus or Deficit from Trading Undertak,TRADING,Supplies & Services,DAA,18/10/2013,9-10001,"3,782.20",Efg Office Furniture Ltd,,,,,,,,,,,
Nottinghamshire County Council,1111/1001,Surplus or Deficit from Trading Undertak,TRADING,Supplies & Services,DAA,09/10/2013,9-10001,585,Denis Rawlins Ltd,,,,,,,,,,,
Nottinghamshire County Council,1111/1001,Surplus or Deficit from Trading Undertak,TRADING,Supplies & Services,DAA,09/10/2013,9-10001,573.64,Gratnells Ltd,,,,,,,,,,,
Nottinghamshire County Council,1111/1001,Surplus or Deficit from Trading Undertak,TRADING,Supplies & Services,DAA,21/10/2013,9-10001,568.8,Hille Seating Ltd,,,,,,,,,,,
Nottinghamshire County Council,1111/1001,Surplus or Deficit from Trading Undertak,TRADING,Supplies & Services,DAA,16/10/2013,9-10001,815.4,Efm (Chesterfield) Ltd,,,,,,,,,,,
Nottinghamshire County Council,1111/1001,Surplus or Deficit from Trading Undertak,TRADING,Supplies & Services,DAA,24/10/2013,9-10001,543.6,Efm (Chesterfield) Ltd,,,,,,,,,,,
Nottinghamshire County Council,1111/1001,Surplus or Deficit from Trading Undertak,TRADING,Supplies & Services,DAA,18/10/2013,9-10001,594.9,Lockhart Catering Eqipment Ltd,,,,,,,,,,,
Nottinghamshire County Council,1111/1001,Surplus or Deficit from Trading Undertak,TRADING,Supplies & Services,DAA,21/10/2013,9-10001,983.22,Lockhart Catering Eqipment Ltd,,,,,,,,,,,
Nottinghamshire County Council,1111/1001,Surplus or Deficit from Trading Undertak,TRADING,Supplies & Services,DAA,09/10/2013,9-10001,"1,628.56",Metroplan Limited,,,,,,,,,,,
Nottinghamshire County Council,1111/1001,Surplus or Deficit from Trading Undertak,TRADING,Supplies & Services,DAA,08/10/2013,9-10001,926.95,Teacherboards Ltd,,,,,,,,,,,
Nottinghamshire County Council,1111/1001,Surplus or Deficit from Trading Undertak,TRADING,Supplies & Services,DAA,09/10/2013,9-10001,924.8,Kent County Supplies,,,,,,,,,,,
Nottinghamshire County Council,1111/1001,Surplus or Deficit from Trading Undertak,TRADING,Supplies & Services,DAA,11/10/2013,9-10001,629.88,Eastpoint,,,,,,,,,,,
Nottinghamshire County Council,1111/1001,Surplus or Deficit from Trading Undertak,TRADING,Supplies & Services,DAA,16/10/2013,9-10001,999.8,Eastpoint,,,,,,,,,,,
Nottinghamshire County Council,1111/1001,Surplus or Deficit from Trading Undertak,TRADING,Supplies & Services,DAA,18/10/2013,9-10001,523.78,Eastpoint,,,,,,,,,,,
Nottinghamshire County Council,1111/1001,Surplus or Deficit from Trading Undertak,TRADING,Supplies & Services,DAA,18/10/2013,9-10001,565.04,Eastpoint,,,,,,,,,,,
Nottinghamshire County Council,1111/1001,Surplus or Deficit from Trading Undertak,TRADING,Supplies & Services,DAA,18/10/2013,9-10001,727.88,Kit For Kids Ltd,,,,,,,,,,,
Nottinghamshire County Council,1111/1001,Surplus or Deficit from Trading Undertak,TRADING,Supplies & Services,DAA,18/10/2013,9-10001,915.2,William Sinclair Horticulture Ltd,,,,,,,,,,,
Nottinghamshire County Council,1111/1001,Surplus or Deficit from Trading Undertak,TRADING,Supplies & Services,DAA,08/10/2013,9-10001,"1,100.00",Brian Clegg (Educational Products) Ltd,,,,,,,,,,,
Nottinghamshire County Council,1111/1001,Surplus or Deficit from Trading Undertak,TRADING,Supplies & Services,DAA,08/10/2013,9-10001,"1,479.64",Brian Clegg (Educational Products) Ltd,,,,,,,,,,,
Nottinghamshire County Council,1111/1001,Surplus or Deficit from Trading Undertak,TRADING,Supplies & Services,DAA,18/10/2013,9-10001,587.36,Brian Clegg (Educational Products) Ltd,,,,,,,,,,,
Nottinghamshire County Council,1111/1001,Surplus or Deficit from Trading Undertak,TRADING,Supplies & Services,DAA,16/10/2013,9-10001,503.6,Commotion Technology Supplies,,,,,,,,,,,
Nottinghamshire County Council,1111/1001,Surplus or Deficit from Trading Undertak,TRADING,Supplies & Services,DAA,11/10/2013,9-10001,755.82,Profile Education Ltd,,,,,,,,,,,
Nottinghamshire County Council,1111/1001,Surplus or Deficit from Trading Undertak,TRADING,Supplies & Services,DAA,11/10/2013,9-10001,773.78,Profile Education Ltd,,,,,,,,,,,
Nottinghamshire County Council,1111/1001,Surplus or Deficit from Trading Undertak,TRADING,Supplies & Services,DAA,16/10/2013,9-10001,995.45,Profile Education Ltd,,,,,,,,,,,
Nottinghamshire County Council,1111/1001,Surplus or Deficit from Trading Undertak,TRADING,Supplies & Services,DAA,25/10/2013,9-10001,766.33,Profile Education Ltd,,,,,,,,,,,
Nottinghamshire County Council,1111/1001,Surplus or Deficit from Trading Undertak,TRADING,Supplies & Services,DAA,08/10/2013,9-10001,759.98,Monarch Computer Furniture,,,,,,,,,,,
Nottinghamshire County Council,1111/1001,Surplus or Deficit from Trading Undertak,TRADING,Supplies & Services,DAA,11/10/2013,9-10001,"1,438.14",Monarch Computer Furniture,,,,,,,,,,,
Nottinghamshire County Council,1111/1001,Surplus or Deficit from Trading Undertak,TRADING,Supplies & Services,DAA,11/10/2013,9-10001,"2,073.82",Monarch Computer Furniture,,,,,,,,,,,
Nottinghamshire County Council,1111/1001,Surplus or Deficit from Trading Undertak,TRADING,Supplies & Services,DAA,11/10/2013,9-10001,"1,130.36",Monarch Computer Furniture,,,,,,,,,,,
Nottinghamshire County Council,1111/1001,Surplus or Deficit from Trading Undertak,TRADING,Supplies & Services,DAA,18/10/2013,9-10001,516.76,Monarch Computer Furniture,,,,,,,,,,,
Nottinghamshire County Council,1111/1001,Surplus or Deficit from Trading Undertak,TRADING,Supplies & Services,DAA,22/10/2013,9-10001,562.37,Monarch Computer Furniture,,,,,,,,,,,
Nottinghamshire County Council,1111/1001,Surplus or Deficit from Trading Undertak,TRADING,Supplies & Services,DAA,28/10/2013,9-10001,841.82,Monarch Computer Furniture,,,,,,,,,,,
Nottinghamshire County Council,1111/1001,Surplus or Deficit from Trading Undertak,TRADING,Employee Related,AAA,02/10/2013,9-10001,"2,652.53",Frontline Recruitment Ltd,,,,,,,,,,,
Nottinghamshire County Council,1111/1001,Surplus or Deficit from Trading Undertak,TRADING,Employee Related,AAA,14/10/2013,9-10001,"2,002.72",Frontline Recruitment Ltd,,,,,,,,,,,
Nottinghamshire County Council,1111/1001,Surplus or Deficit from Trading Undertak,TRADING,Employee Related,AAA,18/10/2013,9-10001,"2,632.91",Frontline Recruitment Ltd,,,,,,,,,,,
Nottinghamshire County Council,1111/1001,Surplus or Deficit from Trading Undertak,TRADING,Employee Related,AAA,29/10/2013,9-10001,"1,262.07",Frontline Recruitment Ltd,,,,,,,,,,,
Nottinghamshire County Council,1111/1001,Children and Young People,CYP,Premises Related,BDA,25/10/2013,9-11133,570.63,The Derbyshire Hotel,,,,,,,,,,,
Nottinghamshire County Council,1111/1001,Children and Young People,CYP,Premises Related,BFA,23/10/2013,9-10790,"1,003.55",Severn Trent Water Ltd,,,,,,,,,,,
Nottinghamshire County Council,1111/1001,Children and Young People,CYP,Transport Related,CCA,02/10/2013,9-10006,546.8,Taxicover Uk Ltd,,,,,,,,,,,
Nottinghamshire County Council,1111/1001,Children and Young People,CYP,Transport Related,CCA,02/10/2013,9-10007,"3,223.92",Taxicover Uk Ltd,,,,,,,,,,,
Nottinghamshire County Council,1111/1001,Children and Young People,CYP,Transport Related,CCA,02/10/2013,9-10008,"2,955.26",Taxicover Uk Ltd,,,,,,,,,,,
Nottinghamshire County Council,1111/1001,Children and Young People,CYP,Transport Related,CCA,02/10/2013,9-10009,"3,223.92",Taxicover Uk Ltd,,,,,,,,,,,
Nottinghamshire County Council,1111/1001,Children and Young People,CYP,Transport Related,CCA,02/10/2013,9-10010,"3,702.75",Taxicover Uk Ltd,,,,,,,,,,,
Nottinghamshire County Council,1111/1001,Children and Young People,CYP,Transport Related,CCA,02/10/2013,9-10011,"3,195.23",Taxicover Uk Ltd,,,,,,,,,,,
Nottinghamshire County Council,1111/1001,Children and Young People,CYP,Transport Related,CCA,02/10/2013,9-10012,"2,955.26",Taxicover Uk Ltd,,,,,,,,,,,
Nottinghamshire County Council,1111/1001,Children and Young People,CYP,Transport Related,CCA,02/10/2013,9-10013,"3,492.58",Taxicover Uk Ltd,,,,,,,,,,,
Nottinghamshire County Council,1111/1001,Children and Young People,CYP,Transport Related,CCA,02/10/2013,9-10014,"2,609.84",Taxicover Uk Ltd,,,,,,,,,,,
Nottinghamshire County Council,1111/1001,Children and Young People,CYP,Transport Related,CCA,02/10/2013,9-10015,"2,840.12",Taxicover Uk Ltd,,,,,,,,,,,
Nottinghamshire County Council,1111/1001,Children and Young People,CYP,Transport Related,CCA,02/10/2013,9-10016,"2,648.22",Taxicover Uk Ltd,,,,,,,,,,,
Nottinghamshire County Council,1111/1001,Children and Young People,CYP,Transport Related,CCA,02/10/2013,9-10017,"3,127.97",Taxicover Uk Ltd,,,,,,,,,,,
Nottinghamshire County Council,1111/1001,Children and Young People,CYP,Transport Related,CCA,02/10/2013,9-10018,"3,085.26",Taxicover Uk Ltd,,,,,,,,,,,
Nottinghamshire County Council,1111/1001,Children and Young People,CYP,Transport Related,CCA,02/10/2013,9-10019,"3,291.18",Taxicover Uk Ltd,,,,,,,,,,,
Nottinghamshire County Council,1111/1001,Children and Young People,CYP,Transport Related,CCA,02/10/2013,9-10020,"2,181.60",All Wayz Travel,,,,,,,,,,,
Nottinghamshire County Council,1111/1001,Children and Young People,CYP,Transport Related,CCA,02/10/2013,9-10022,"1,131.20",Central Cars Nottm Ltd,,,,,,,,,,,
Nottinghamshire County Council,1111/1001,Children and Young People,CYP,Transport Related,CCA,02/10/2013,9-10023,"2,824.73",Marriotts Travel,,,,,,,,,,,
Nottinghamshire County Council,1111/1001,Children and Young People,CYP,Transport Related,CCA,02/10/2013,9-10024,"2,433.76",Marriotts Travel,,,,,,,,,,,
Nottinghamshire County Council,1111/1001,Children and Young People,CYP,Transport Related,CCA,02/10/2013,9-10028,"2,454.80",CBC Taxis Ltd,,,,,,,,,,,
Nottinghamshire County Council,1111/1001,Children and Young People,CYP,Transport Related,CCA,02/10/2013,9-10029,"1,122.71",CBC Taxis Ltd,,,,,,,,,,,
Nottinghamshire County Council,1111/1001,Children and Young People,CYP,Transport Related,CCA,02/10/2013,9-10030,644.22,CBC Taxis Ltd,,,,,,,,,,,
Nottinghamshire County Council,1111/1001,Children and Young People,CYP,Transport Related,CCA,02/10/2013,9-10031,567,CBC Taxis Ltd,,,,,,,,,,,
Nottinghamshire County Council,1111/1001,Children and Young People,CYP,Transport Related,CCA,02/10/2013,9-10032,"1,379.40",CBC Taxis Ltd,,,,,,,,,,,
Nottinghamshire County Council,1111/1001,Children and Young People,CYP,Transport Related,CCA,02/10/2013,9-10033,"1,242.60",CBC Taxis Ltd,,,,,,,,,,,
Nottinghamshire County Council,1111/1001,Children and Young People,CYP,Transport Related,CCA,02/10/2013,9-10034,952.4,CBC Taxis Ltd,,,,,,,,,,,
Nottinghamshire County Council,1111/1001,Children and Young People,CYP,Transport Related,CCA,02/10/2013,9-10035,938.6,CBC Taxis Ltd,,,,,,,,,,,
Nottinghamshire County Council,1111/1001,Children and Young People,CYP,Transport Related,CCA,02/10/2013,9-10036,"1,080.00",CBC Taxis Ltd,,,,,,,,,,,
Nottinghamshire County Council,1111/1001,Children and Young People,CYP,Transport Related,CCA,02/10/2013,9-10039,855.07,Alpha Cars,,,,,,,,,,,
Nottinghamshire County Council,1111/1001,Children and Young People,CYP,Transport Related,CCA,02/10/2013,9-10040,"2,066.94",Arrow Specialised Transport Ltd,,,,,,,,,,,
Nottinghamshire County Council,1111/1001,Children and Young People,CYP,Transport Related,CCA,02/10/2013,9-10041,"1,741.68",Arrow Specialised Transport Ltd,,,,,,,,,,,
Nottinghamshire County Council,1111/1001,Children and Young People,CYP,Transport Related,CCA,02/10/2013,9-10042,"2,425.14",Arrow Specialised Transport Ltd,,,,,,,,,,,
Nottinghamshire County Council,1111/1001,Children and Young People,CYP,Transport Related,CCA,02/10/2013,9-10043,"1,876.82",Arrow Specialised Transport Ltd,,,,,,,,,,,
Nottinghamshire County Council,1111/1001,Children and Young People,CYP,Transport Related,CCA,02/10/2013,9-10044,799.92,Arrow Specialised Transport Ltd,,,,,,,,,,,
Nottinghamshire County Council,1111/1001,Children and Young People,CYP,Transport Related,CCA,02/10/2013,9-10045,"2,445.30",Arrow Specialised Transport Ltd,,,,,,,,,,,
Nottinghamshire County Council,1111/1001,Children and Young People,CYP,Transport Related,CCA,02/10/2013,9-10046,"1,342.00",Arrow Specialised Transport Ltd,,,,,,,,,,,
Nottinghamshire County Council,1111/1001,Children and Young People,CYP,Transport Related,CCA,02/10/2013,9-10047,"3,235.60",Arrow Specialised Transport Ltd,,,,,,,,,,,
Nottinghamshire County Council,1111/1001,Children and Young People,CYP,Transport Related,CCA,02/10/2013,9-10048,"2,960.00",Arrow Specialised Transport Ltd,,,,,,,,,,,
Nottinghamshire County Council,1111/1001,Children and Young People,CYP,Transport Related,CCA,02/10/2013,9-10049,885.42,Arrow Specialised Transport Ltd,,,,,,,,,,,
Nottinghamshire County Council,1111/1001,Children and Young People,CYP,Transport Related,CCA,02/10/2013,9-10050,"1,330.74",Arrow Specialised Transport Ltd,,,,,,,,,,,
Nottinghamshire County Council,1111/1001,Children and Young People,CYP,Transport Related,CCA,02/10/2013,9-10051,"2,690.64",Arrow Specialised Transport Ltd,,,,,,,,,,,
Nottinghamshire County Council,1111/1001,Children and Young People,CYP,Transport Related,CCA,02/10/2013,9-10052,"1,319.94",Arrow Specialised Transport Ltd,,,,,,,,,,,
Nottinghamshire County Council,1111/1001,Children and Young People,CYP,Transport Related,CCA,02/10/2013,9-10053,909,Arrow Specialised Transport Ltd,,,,,,,,,,,
Nottinghamshire County Council,1111/1001,Children and Young People,CYP,Transport Related,CCA,02/10/2013,9-10054,"1,512.00",Arrow Specialised Transport Ltd,,,,,,,,,,,
Nottinghamshire County Council,1111/1001,Children and Young People,CYP,Transport Related,CCA,02/10/2013,9-10055,"1,674.00",Arrow Specialised Transport Ltd,,,,,,,,,,,
Nottinghamshire County Council,1111/1001,Children and Young People,CYP,Transport Related,CCA,02/10/2013,9-10056,"1,575.00",Arrow Specialised Transport Ltd,,,,,,,,,,,
Nottinghamshire County Council,1111/1001,Children and Young People,CYP,Transport Related,CCA,02/10/2013,9-10057,"1,672.56",Arrow Specialised Transport Ltd,,,,,,,,,,,
Nottinghamshire County Council,1111/1001,Children and Young People,CYP,Transport Related,CCA,02/10/2013,9-10058,"2,333.19",Arrow Specialised Transport Ltd,,,,,,,,,,,
Nottinghamshire County Council,1111/1001,Children and Young People,CYP,Transport Related,CCA,02/10/2013,9-10059,"1,861.56",Arrow Specialised Transport Ltd,,,,,,,,,,,
Nottinghamshire County Council,1111/1001,Children and Young People,CYP,Transport Related,CCA,02/10/2013,9-10060,"1,712.52",Arrow Specialised Transport Ltd,,,,,,,,,,,
Nottinghamshire County Council,1111/1001,Children and Young People,CYP,Transport Related,CCA,02/10/2013,9-10061,"1,932.48",Arrow Specialised Transport Ltd,,,,,,,,,,,
Nottinghamshire County Council,1111/1001,Children and Young People,CYP,Transport Related,CCA,02/10/2013,9-10062,"1,809.00",Arrow Specialised Transport Ltd,,,,,,,,,,,
Nottinghamshire County Council,1111/1001,Children and Young People,CYP,Transport Related,CCA,02/10/2013,9-10063,"2,200.74",Arrow Specialised Transport Ltd,,,,,,,,,,,
Nottinghamshire County Council,1111/1001,Children and Young People,CYP,Transport Related,CCA,02/10/2013,9-10064,"2,130.09",Arrow Specialised Transport Ltd,,,,,,,,,,,
Nottinghamshire County Council,1111/1001,Children and Young People,CYP,Transport Related,CCA,02/10/2013,9-10065,"2,229.84",Arrow Specialised Transport Ltd,,,,,,,,,,,
Nottinghamshire County Council,1111/1001,Children and Young People,CYP,Transport Related,CCA,02/10/2013,9-10066,"1,905.51",Arrow Specialised Transport Ltd,,,,,,,,,,,
Nottinghamshire County Council,1111/1001,Children and Young People,CYP,Transport Related,CCA,02/10/2013,9-10067,"1,660.03",Arrow Specialised Transport Ltd,,,,,,,,,,,
Nottinghamshire County Council,1111/1001,Children and Young People,CYP,Transport Related,CCA,02/10/2013,9-10068,"1,797.80",Arrow Specialised Transport Ltd,,,,,,,,,,,
Nottinghamshire County Council,1111/1001,Children and Young People,CYP,Transport Related,CCA,02/10/2013,9-10069,"2,147.38",Arrow Specialised Transport Ltd,,,,,,,,,,,
Nottinghamshire County Council,1111/1001,Children and Young People,CYP,Transport Related,CCA,02/10/2013,9-10070,"3,576.94",Arrow Specialised Transport Ltd,,,,,,,,,,,
Nottinghamshire County Council,1111/1001,Children and Young People,CYP,Transport Related,CCA,02/10/2013,9-10071,"1,082.24",Arrow Specialised Transport Ltd,,,,,,,,,,,
Nottinghamshire County Council,1111/1001,Children and Young People,CYP,Transport Related,CCA,02/10/2013,9-10072,871.78,Arrow Specialised Transport Ltd,,,,,,,,,,,
Nottinghamshire County Council,1111/1001,Children and Young People,CYP,Transport Related,CCA,02/10/2013,9-10073,"1,070.16",Arrow Specialised Transport Ltd,,,,,,,,,,,
Nottinghamshire County Council,1111/1001,Children and Young People,CYP,Transport Related,CCA,02/10/2013,9-10074,"11,049.40",Arrow Specialised Transport Ltd,,,,,,,,,,,
Nottinghamshire County Council,1111/1001,Children and Young People,CYP,Transport Related,CCA,02/10/2013,9-10075,"2,454.30",Arrow Specialised Transport Ltd,,,,,,,,,,,
Nottinghamshire County Council,1111/1001,Children and Young People,CYP,Transport Related,CCA,02/10/2013,9-10076,"3,429.72",Arrow Specialised Transport Ltd,,,,,,,,,,,
Nottinghamshire County Council,1111/1001,Children and Young People,CYP,Transport Related,CCA,02/10/2013,9-10077,"2,499.00",Arrow Specialised Transport Ltd,,,,,,,,,,,
Nottinghamshire County Council,1111/1001,Children and Young People,CYP,Transport Related,CCA,02/10/2013,9-10078,"1,780.00",Arrow Specialised Transport Ltd,,,,,,,,,,,
Nottinghamshire County Council,1111/1001,Children and Young People,CYP,Transport Related,CCA,02/10/2013,9-10079,"2,014.95",Arrow Specialised Transport Ltd,,,,,,,,,,,
Nottinghamshire County Council,1111/1001,Children and Young People,CYP,Transport Related,CCA,02/10/2013,9-10080,"1,353.40",Arrow Specialised Transport Ltd,,,,,,,,,,,
Nottinghamshire County Council,1111/1001,Children and Young People,CYP,Transport Related,CCA,02/10/2013,9-10081,"1,975.60",Arrow Specialised Transport Ltd,,,,,,,,,,,
Nottinghamshire County Council,1111/1001,Children and Young People,CYP,Transport Related,CCA,02/10/2013,9-10083,"1,454.40",Arrow Specialised Transport Ltd,,,,,,,,,,,
Nottinghamshire County Council,1111/1001,Children and Young People,CYP,Transport Related,CCA,02/10/2013,9-10084,906,Arrow Specialised Transport Ltd,,,,,,,,,,,
Nottinghamshire County Council,1111/1001,Children and Young People,CYP,Transport Related,CCA,02/10/2013,9-10085,"1,707.91",Arrow Specialised Transport Ltd,,,,,,,,,,,
Nottinghamshire County Council,1111/1001,Children and Young People,CYP,Transport Related,CCA,02/10/2013,9-10086,"1,195.84",Arrow Specialised Transport Ltd,,,,,,,,,,,
Nottinghamshire County Council,1111/1001,Children and Young People,CYP,Transport Related,CCA,02/10/2013,9-10087,"1,917.10",Arrow Specialised Transport Ltd,,,,,,,,,,,
Nottinghamshire County Council,1111/1001,Children and Young People,CYP,Transport Related,CCA,02/10/2013,9-10088,"2,288.00",Arrow Specialised Transport Ltd,,,,,,,,,,,
Nottinghamshire County Council,1111/1001,Children and Young People,CYP,Transport Related,CCA,02/10/2013,9-10089,"1,909.12",Arrow Specialised Transport Ltd,,,,,,,,,,,
Nottinghamshire County Council,1111/1001,Children and Young People,CYP,Transport Related,CCA,02/10/2013,9-10090,"1,554.39",Arrow Specialised Transport Ltd,,,,,,,,,,,
Nottinghamshire County Council,1111/1001,Children and Young People,CYP,Transport Related,CCA,02/10/2013,9-10091,604.49,Arrow Specialised Transport Ltd,,,,,,,,,,,
Nottinghamshire County Council,1111/1001,Children and Young People,CYP,Transport Related,CCA,02/10/2013,9-10092,"1,631.15",Arrow Specialised Transport Ltd,,,,,,,,,,,
Nottinghamshire County Council,1111/1001,Children and Young People,CYP,Transport Related,CCA,02/10/2013,9-10093,"1,458.44",Arrow Specialised Transport Ltd,,,,,,,,,,,
Nottinghamshire County Council,1111/1001,Children and Young People,CYP,Transport Related,CCA,02/10/2013,9-10094,"1,884.42",Arrow Specialised Transport Ltd,,,,,,,,,,,
Nottinghamshire County Council,1111/1001,Children and Young People,CYP,Transport Related,CCA,02/10/2013,9-10095,"1,782.20",Arrow Specialised Transport Ltd,,,,,,,,,,,
Nottinghamshire County Council,1111/1001,Children and Young People,CYP,Transport Related,CCA,02/10/2013,9-10096,"1,881.00",Arrow Specialised Transport Ltd,,,,,,,,,,,
Nottinghamshire County Council,1111/1001,Children and Young People,CYP,Transport Related,CCA,02/10/2013,9-10097,"2,086.20",Arrow Specialised Transport Ltd,,,,,,,,,,,
Nottinghamshire County Council,1111/1001,Children and Young People,CYP,Transport Related,CCA,02/10/2013,9-10098,"2,781.38",Arrow Specialised Transport Ltd,,,,,,,,,,,
Nottinghamshire County Council,1111/1001,Children and Young People,CYP,Transport Related,CCA,02/10/2013,9-10099,"2,072.52",Arrow Specialised Transport Ltd,,,,,,,,,,,
Nottinghamshire County Council,1111/1001,Children and Young People,CYP,Transport Related,CCA,02/10/2013,9-10100,"2,432.00",Arrow Specialised Transport Ltd,,,,,,,,,,,
Nottinghamshire County Council,1111/1001,Children and Young People,CYP,Transport Related,CCA,02/10/2013,9-10101,"2,034.14",Arrow Specialised Transport Ltd,,,,,,,,,,,
Nottinghamshire County Council,1111/1001,Children and Young People,CYP,Transport Related,CCA,02/10/2013,9-10102,"1,140.02",Arrow Specialised Transport Ltd,,,,,,,,,,,
Nottinghamshire County Council,1111/1001,Children and Young People,CYP,Transport Related,CCA,02/10/2013,9-10103,"1,930.59",Arrow Specialised Transport Ltd,,,,,,,,,,,
Nottinghamshire County Council,1111/1001,Children and Young People,CYP,Transport Related,CCA,02/10/2013,9-10104,"2,156.50",Arrow Specialised Transport Ltd,,,,,,,,,,,
Nottinghamshire County Council,1111/1001,Children and Young People,CYP,Transport Related,CCA,02/10/2013,9-10106,545.4,Fozcabs Newark Taxis,,,,,,,,,,,
Nottinghamshire County Council,1111/1001,Children and Young People,CYP,Transport Related,CCA,02/10/2013,9-10107,"1,272.53",Fozcabs Newark Taxis,,,,,,,,,,,
Nottinghamshire County Council,1111/1001,Children and Young People,CYP,Transport Related,CCA,02/10/2013,9-10108,972,Fozcabs Newark Taxis,,,,,,,,,,,
Nottinghamshire County Council,1111/1001,Children and Young People,CYP,Transport Related,CCA,02/10/2013,9-10109,"1,345.32",Fozcabs Newark Taxis,,,,,,,,,,,
Nottinghamshire County Council,1111/1001,Children and Young People,CYP,Transport Related,CCA,02/10/2013,9-10110,"1,445.04",Fozcabs Newark Taxis,,,,,,,,,,,
Nottinghamshire County Council,1111/1001,Children and Young People,CYP,Transport Related,CCA,02/10/2013,9-10111,"1,329.43",Fozcabs Newark Taxis,,,,,,,,,,,
Nottinghamshire County Council,1111/1001,Children and Young People,CYP,Transport Related,CCA,02/10/2013,9-10112,"1,508.41",Fozcabs Newark Taxis,,,,,,,,,,,
Nottinghamshire County Council,1111/1001,Children and Young People,CYP,Transport Related,CCA,02/10/2013,9-10114,573.4,Fozcabs Newark Taxis,,,,,,,,,,,
Nottinghamshire County Council,1111/1001,Children and Young People,CYP,Transport Related,CCA,02/10/2013,9-10117,"1,275.00",Horizon Travel,,,,,,,,,,,
Nottinghamshire County Council,1111/1001,Children and Young People,CYP,Transport Related,CCA,02/10/2013,9-10118,"1,125.40",Horizon Travel,,,,,,,,,,,
Nottinghamshire County Council,1111/1001,Children and Young People,CYP,Transport Related,CCA,02/10/2013,9-10119,"2,847.00",Horizon Travel,,,,,,,,,,,
Nottinghamshire County Council,1111/1001,Children and Young People,CYP,Transport Related,CCA,02/10/2013,9-10120,"2,007.00",Midfield Travel,,,,,,,,,,,
Nottinghamshire County Council,1111/1001,Children and Young People,CYP,Transport Related,CCA,02/10/2013,9-10123,"2,408.44",K & S Coaches,,,,,,,,,,,
Nottinghamshire County Council,1111/1001,Children and Young People,CYP,Transport Related,CCA,02/10/2013,9-10124,"2,105.11",K & S Coaches,,,,,,,,,,,
Nottinghamshire County Council,1111/1001,Children and Young People,CYP,Transport Related,CCA,02/10/2013,9-10149,"1,105.38",Rio Cabs,,,,,,,,,,,
Nottinghamshire County Council,1111/1001,Children and Young People,CYP,Transport Related,CCA,02/10/2013,9-10150,"1,101.60",Rio Cabs,,,,,,,,,,,
Nottinghamshire County Council,1111/1001,Children and Young People,CYP,Transport Related,CCA,02/10/2013,9-10151,777.7,Rio Cabs,,,,,,,,,,,
Nottinghamshire County Council,1111/1001,Children and Young People,CYP,Transport Related,CCA,02/10/2013,9-10153,"2,794.14",L A Travel,,,,,,,,,,,
Nottinghamshire County Council,1111/1001,Children and Young People,CYP,Transport Related,CCA,02/10/2013,9-10155,"1,874.04",I Can Charity,,,,,,,,,,,
Nottinghamshire County Council,1111/1001,Children and Young People,CYP,Transport Related,CCA,02/10/2013,9-10156,844.22,I Can Charity,,,,,,,,,,,
Nottinghamshire County Council,1111/1001,Children and Young People,CYP,Transport Related,CCA,02/10/2013,9-10157,590,Diamond Cars,,,,,,,,,,,
Nottinghamshire County Council,1111/1001,Children and Young People,CYP,Transport Related,CCA,10/10/2013,9-10382,"2,299.95",Martins Travel,,,,,,,,,,,
Nottinghamshire County Council,1111/1001,Children and Young People,CYP,Transport Related,CCA,10/10/2013,9-10383,"2,437.13",Martins Travel,,,,,,,,,,,
Nottinghamshire County Council,1111/1001,Children and Young People,CYP,Transport Related,CCA,10/10/2013,9-10384,"2,785.32",D G Private Hire Ltd,,,,,,,,,,,
Nottinghamshire County Council,1111/1001,Children and Young People,CYP,Transport Related,CCA,10/10/2013,9-10385,"1,080.00",Galaxy Cabs,,,,,,,,,,,
Nottinghamshire County Council,1111/1001,Children and Young People,CYP,Transport Related,CCA,10/10/2013,9-10393,"5,875.74",Stagecoach Services Ltd,,,,,,,,,,,
Nottinghamshire County Council,1111/1001,Children and Young People,CYP,Transport Related,CCA,10/10/2013,9-10449,590,Diamond Cars,,,,,,,,,,,
Nottinghamshire County Council,1111/1001,Children and Young People,CYP,Transport Related,CCA,11/10/2013,9-10589,"1,275.00",Central Cars Nottm Ltd,,,,,,,,,,,
Nottinghamshire County Council,1111/1001,Children and Young People,CYP,Transport Related,CCA,11/10/2013,9-10590,"1,494.00",Central Cars Nottm Ltd,,,,,,,,,,,
Nottinghamshire County Council,1111/1001,Children and Young People,CYP,Transport Related,CCA,11/10/2013,9-10591,"2,430.00",Central Cars Nottm Ltd,,,,,,,,,,,
Nottinghamshire County Council,1111/1001,Children and Young People,CYP,Transport Related,CCA,11/10/2013,9-10592,510,Central Cars Nottm Ltd,,,,,,,,,,,
Nottinghamshire County Council,1111/1001,Children and Young People,CYP,Transport Related,CCA,11/10/2013,9-10593,"1,750.00",Central Cars Nottm Ltd,,,,,,,,,,,
Nottinghamshire County Council,1111/1001,Children and Young People,CYP,Transport Related,CCA,11/10/2013,9-10594,576,Central Cars Nottm Ltd,,,,,,,,,,,
Nottinghamshire County Council,1111/1001,Children and Young People,CYP,Transport Related,CCA,11/10/2013,9-10595,816.84,Central Cars Nottm Ltd,,,,,,,,,,,
Nottinghamshire County Council,1111/1001,Children and Young People,CYP,Transport Related,CCA,11/10/2013,9-10596,600,Central Cars Nottm Ltd,,,,,,,,,,,
Nottinghamshire County Council,1111/1001,Children and Young People,CYP,Transport Related,CCA,11/10/2013,9-10597,"1,922.40",Central Cars Nottm Ltd,,,,,,,,,,,
Nottinghamshire County Council,1111/1001,Children and Young People,CYP,Transport Related,CCA,11/10/2013,9-10598,909,Central Cars Nottm Ltd,,,,,,,,,,,
Nottinghamshire County Council,1111/1001,Children and Young People,CYP,Transport Related,CCA,11/10/2013,9-10599,800,Central Cars Nottm Ltd,,,,,,,,,,,
Nottinghamshire County Council,1111/1001,Children and Young People,CYP,Transport Related,CCA,11/10/2013,9-10600,792,Central Cars Nottm Ltd,,,,,,,,,,,
Nottinghamshire County Council,1111/1001,Children and Young People,CYP,Transport Related,CCA,11/10/2013,9-10601,"1,381.30",Central Cars Nottm Ltd,,,,,,,,,,,
Nottinghamshire County Council,1111/1001,Children and Young People,CYP,Transport Related,CCA,11/10/2013,9-10602,"3,147.16",Butler Brothers Ltd,,,,,,,,,,,
Nottinghamshire County Council,1111/1001,Children and Young People,CYP,Transport Related,CCA,11/10/2013,9-10604,540,Mct Uk Ltd,,,,,,,,,,,
Nottinghamshire County Council,1111/1001,Children and Young People,CYP,Transport Related,CCA,11/10/2013,9-10605,"1,100.00",AOT Coaches,,,,,,,,,,,
Nottinghamshire County Council,1111/1001,Children and Young People,CYP,Transport Related,CDA,02/10/2013,9-10082,"1,383.80",Arrow Specialised Transport Ltd,,,,,,,,,,,
Nottinghamshire County Council,1111/1001,Children and Young People,CYP,Transport Related,CDA,02/10/2013,9-10091,604.48,Arrow Specialised Transport Ltd,,,,,,,,,,,
Nottinghamshire County Council,1111/1001,Children and Young People,CYP,Transport Related,CDA,02/10/2013,9-10102,"1,085.71",Arrow Specialised Transport Ltd,,,,,,,,,,,
Nottinghamshire County Council,1111/1001,Children and Young People,CYP,Transport Related,CDA,02/10/2013,9-10114,573.4,Fozcabs Newark Taxis,,,,,,,,,,,
Nottinghamshire County Council,1111/1001,Children and Young People,CYP,Transport Related,CDA,02/10/2013,9-10115,"1,125.00",Fozcabs Newark Taxis,,,,,,,,,,,
Nottinghamshire County Council,1111/1001,Children and Young People,CYP,Transport Related,CDA,02/10/2013,9-10127,"2,660.00",Nottm Minibuses & Coaches,,,,,,,,,,,
Nottinghamshire County Council,1111/1001,Children and Young People,CYP,Transport Related,CDA,02/10/2013,9-10128,"2,470.00",Nottm Minibuses & Coaches,,,,,,,,,,,
Nottinghamshire County Council,1111/1001,Children and Young People,CYP,Transport Related,CDA,02/10/2013,9-10129,"2,800.00",Nottm Minibuses & Coaches,,,,,,,,,,,
Nottinghamshire County Council,1111/1001,Children and Young People,CYP,Transport Related,CDA,02/10/2013,9-10130,"2,600.00",Nottm Minibuses & Coaches,,,,,,,,,,,
Nottinghamshire County Council,1111/1001,Children and Young People,CYP,Transport Related,CDA,02/10/2013,9-10131,"1,600.00",Nottm Minibuses & Coaches,,,,,,,,,,,
Nottinghamshire County Council,1111/1001,Children and Young People,CYP,Transport Related,CDA,10/10/2013,9-10385,"1,080.00",Galaxy Cabs,,,,,,,,,,,
Nottinghamshire County Council,1111/1001,Children and Young People,CYP,Transport Related,CDA,11/10/2013,9-10596,600,Central Cars Nottm Ltd,,,,,,,,,,,
Nottinghamshire County Council,1111/1001,Children and Young People,CYP,Supplies & Services,DAA,01/10/2013,9-10003,645.67,Tuxford Primary Academy,,,,,,,,,,,
Nottinghamshire County Council,1111/1001,Children and Young People,CYP,Supplies & Services,DAA,18/10/2013,9-10746,"231,239.69",East Leake Schools Ltd,,,,,,,,,,,
Nottinghamshire County Council,1111/1001,Children and Young People,CYP,Supplies & Services,DAA,18/10/2013,9-10747,"1,489,803.50",Transform Schools,,,,,,,,,,,
Nottinghamshire County Council,1111/1001,Children and Young People,CYP,Supplies & Services,DBA,23/10/2013,9-10772,724.29,Brake Bros Ltd,,,,,,,,,,,
Nottinghamshire County Council,1111/1001,Children and Young People,CYP,Supplies & Services,DBA,23/10/2013,9-10773,647.04,Brake Bros Ltd,,,,,,,,,,,
Nottinghamshire County Council,1111/1001,Children and Young People,CYP,Supplies & Services,DBA,28/10/2013,9-10918,611.82,Brake Bros Ltd,,,,,,,,,,,
Nottinghamshire County Council,1111/1001,Children and Young People,CYP,Supplies & Services,DBA,28/10/2013,9-10919,686.09,Brake Bros Ltd,,,,,,,,,,,
Nottinghamshire County Council,1111/1001,Children and Young People,CYP,Supplies & Services,DFA,28/10/2013,9-11146,"1,820.00",Softbox Ltd,,,,,,,,,,,
Nottinghamshire County Council,1111/1001,Children and Young People,CYP,Supplies & Services,DHA,01/10/2013,9-10005,"2,250.00",Friends of Bridgford Park,,,,,,,,,,,
Nottinghamshire County Council,1111/1001,Children and Young People,CYP,Supplies & Services,DKA,01/10/2013,9-10002,"1,849.68",Commited Social Care Ltd,,,,,,,,,,,
Nottinghamshire County Council,1111/1001,Children and Young People,CYP,Supplies & Services,DKA,01/10/2013,9-10004,"11,198.77",Bunny C Of E Primary School,,,,,,,,,,,
Nottinghamshire County Council,1111/1001,Children and Young People,CYP,Supplies & Services,DKA,18/10/2013,9-10739,583.34,Tudor Lodge Hotel,,,,,,,,,,,
Nottinghamshire County Council,1111/1001,Children and Young People,CYP,Supplies & Services,DKA,18/10/2013,9-10751,"4,828.36",Brookside Primary School,,,,,,,,,,,
Nottinghamshire County Council,1111/1001,Children and Young People,CYP,Supplies & Services,DKA,21/10/2013,9-10757,"4,548.14",Innova House,,,,,,,,,,,
Nottinghamshire County Council,1111/1001,Children and Young People,CYP,Supplies & Services,DKA,21/10/2013,9-10766,"2,000.00",The Brunts Academy,,,,,,,,,,,
Nottinghamshire County Council,1111/1001,Children and Young People,CYP,Supplies & Services,DKA,25/10/2013,9-10898,"1,550.46",Nottinghamshire YMCA (HO),,,,,,,,,,,
Nottinghamshire County Council,1111/1001,Children and Young People,CYP,Supplies & Services,DKA,25/10/2013,9-11130,800,Blue Mountain Homes Ltd,,,,,,,,,,,
Nottinghamshire County Council,1111/1001,Children and Young People,CYP,Supplies & Services,DKA,28/10/2013,9-11156,500,Halliwell Homes,,,,,,,,,,,
Nottinghamshire County Council,1111/1001,Children and Young People,CYP,Supplies & Services,DKA,30/10/2013,9-11174,"2,032.32",New Lifestyles,,,,,,,,,,,
Nottinghamshire County Council,1111/1001,Children and Young People,CYP,Supplies & Services,DKA,30/10/2013,9-11184,"11,514.33",Broadwood Educational Services Ltd,,,,,,,,,,,
Nottinghamshire County Council,1111/1001,Children and Young People,CYP,Third Party Payments,EBA,04/10/2013,9-10257,"46,750.00",Nottinghamshire Healthcare Nhs Trus,,,,,,,,,,,
Nottinghamshire County Council,1111/1001,Children and Young People,CYP,Third Party Payments,EBA,10/10/2013,9-10460,"26,092.85",Home Group Limited,,,,,,,,,,,
Nottinghamshire County Council,1111/1001,Children and Young People,CYP,Third Party Payments,EBA,10/10/2013,9-10461,"6,136.99",The Kirkby Trust - In Administratio,,,,,,,,,,,
Nottinghamshire County Council,1111/1001,Children and Young People,CYP,Third Party Payments,EBA,10/10/2013,9-10470,"1,723.88",Metropolitan Support Trust,,,,,,,,,,,
Nottinghamshire County Council,1111/1001,Children and Young People,CYP,Third Party Payments,EBA,10/10/2013,9-10475,"20,609.23",Newark Emmaus Trust,,,,,,,,,,,
Nottinghamshire County Council,1111/1001,Children and Young People,CYP,Third Party Payments,EBA,10/10/2013,9-10481,"10,571.57",Framework Housing Association,,,,,,,,,,,
Nottinghamshire County Council,1111/1001,Children and Young People,CYP,Third Party Payments,EBA,10/10/2013,9-10482,"44,237.93",Nottingham Community Housing,,,,,,,,,,,
Nottinghamshire County Council,1111/1001,Children and Young People,CYP,Third Party Payments,EBA,10/10/2013,9-10484,"10,779.67",ASRA Housing Association,,,,,,,,,,,
Nottinghamshire County Council,1111/1001,Children and Young People,CYP,Third Party Payments,EDA,15/10/2013,9-10639,"4,971.00",The Elizabethan Academy,,,,,,,,,,,
Nottinghamshire County Council,1111/1001,Children and Young People,CYP,Third Party Payments,EDA,15/10/2013,9-11048,"4,233.00",Kirkby College,,,,,,,,,,,
Nottinghamshire County Council,1111/1001,Children and Young People,CYP,Third Party Payments,EDA,16/10/2013,9-11050,604,National Church Of England Academy,,,,,,,,,,,
Nottinghamshire County Council,1111/1001,Children and Young People,CYP,Third Party Payments,EDA,16/10/2013,9-11051,553,The Manor Academy,,,,,,,,,,,
Nottinghamshire County Council,1111/1001,Children and Young People,CYP,Third Party Payments,EDA,16/10/2013,9-11052,"1,371.00",West Bridgford Academy,,,,,,,,,,,
Nottinghamshire County Council,1111/1001,Children and Young People,CYP,Third Party Payments,EDA,16/10/2013,9-11053,570,Queen Elizabeth's Academy,,,,,,,,,,,
Nottinghamshire County Council,1111/1001,Children and Young People,CYP,Third Party Payments,EDA,16/10/2013,9-11054,"8,166.00",The Carlton Academy,,,,,,,,,,,
Nottinghamshire County Council,1111/1001,Children and Young People,CYP,Third Party Payments,EDA,16/10/2013,9-11055,"1,418.00",South Nottinghamshire Academy,,,,,,,,,,,
Nottinghamshire County Council,1111/1001,Children and Young People,CYP,Third Party Payments,EDA,16/10/2013,9-11056,"1,444.00",Toothill Academy,,,,,,,,,,,
Nottinghamshire County Council,1111/1001,Children and Young People,CYP,Third Party Payments,EDA,16/10/2013,9-11057,"1,011.00",The Becket Catholic Voluntary Acade,,,,,,,,,,,
Nottinghamshire County Council,1111/1001,Children and Young People,CYP,Third Party Payments,EDA,16/10/2013,9-11058,"6,328.00",Serlby Park Academy,,,,,,,,,,,
Nottinghamshire County Council,1111/1001,Children and Young People,CYP,Third Party Payments,EDA,16/10/2013,9-11059,"1,430.00",Arnold Hill Academy,,,,,,,,,,,
Nottinghamshire County Council,1111/1001,Children and Young People,CYP,Third Party Payments,EDA,16/10/2013,9-11060,969,The Brunts Academy,,,,,,,,,,,
Nottinghamshire County Council,1111/1001,Children and Young People,CYP,Third Party Payments,EDA,16/10/2013,9-11061,994,Carlton Le Willows Academy,,,,,,,,,,,
Nottinghamshire County Council,1111/1001,Children and Young People,CYP,Third Party Payments,EDA,16/10/2013,9-11062,"1,046.00",Rushcliffe School Academy Trust,,,,,,,,,,,
Nottinghamshire County Council,1111/1001,Children and Young People,CYP,Third Party Payments,EDA,16/10/2013,9-11063,"14,883.00",Outwood Academy Portland,,,,,,,,,,,
Nottinghamshire County Council,1111/1001,Children and Young People,CYP,Third Party Payments,EDA,16/10/2013,9-11064,823,Outwood Academy Portland,,,,,,,,,,,
Nottinghamshire County Council,1111/1001,Children and Young People,CYP,Third Party Payments,EDA,16/10/2013,9-11065,"1,140.00",Ashfield Academy,,,,,,,,,,,
Nottinghamshire County Council,1111/1001,Children and Young People,CYP,Third Party Payments,EDA,16/10/2013,9-11066,"2,499.00",Ashfield Academy,,,,,,,,,,,
Nottinghamshire County Council,1111/1001,Children and Young People,CYP,Third Party Payments,EDA,16/10/2013,9-11067,"9,122.00",Retford Oaks Academy,,,,,,,,,,,
Nottinghamshire County Council,1111/1001,Children and Young People,CYP,Third Party Payments,EDA,16/10/2013,9-11068,"26,877.00",The Elizabethan Academy,,,,,,,,,,,
Nottinghamshire County Council,1111/1001,Children and Young People,CYP,Third Party Payments,EDA,16/10/2013,9-11069,694,The Elizabethan Academy,,,,,,,,,,,
Nottinghamshire County Council,1111/1001,Children and Young People,CYP,Third Party Payments,EDA,16/10/2013,9-11070,639,The South Wolds Academy & Sixth For,,,,,,,,,,,
Nottinghamshire County Council,1111/1001,Children and Young People,CYP,Third Party Payments,EDA,16/10/2013,9-11071,814,Outwood Academy - Valley,,,,,,,,,,,
Nottinghamshire County Council,1111/1001,Children and Young People,CYP,Third Party Payments,EDA,16/10/2013,9-11072,"13,709.00",Meden School - A Torch Academy,,,,,,,,,,,
Nottinghamshire County Council,1111/1001,Children and Young People,CYP,Third Party Payments,EDA,16/10/2013,9-11073,690,The Kimberley School (Academy),,,,,,,,,,,
Nottinghamshire County Council,1111/1001,Children and Young People,CYP,Third Party Payments,EDA,16/10/2013,9-11074,"3,413.00",Sherwood E-ACT Academy,,,,,,,,,,,
Nottinghamshire County Council,1111/1001,Children and Young People,CYP,Third Party Payments,EDA,16/10/2013,9-11075,"69,321.00",Foxwood Academy,,,,,,,,,,,
Nottinghamshire County Council,1111/1001,Children and Young People,CYP,Third Party Payments,EDA,16/10/2013,9-11076,"18,209.00",Sutton Community Academy,,,,,,,,,,,
Nottinghamshire County Council,1111/1001,Children and Young People,CYP,Third Party Payments,EDA,16/10/2013,9-11077,566,Sutton Community Academy,,,,,,,,,,,
Nottinghamshire County Council,1111/1001,Children and Young People,CYP,Third Party Payments,EDA,16/10/2013,9-11078,"11,584.00",The Newark Academy,,,,,,,,,,,
Nottinghamshire County Council,1111/1001,Children and Young People,CYP,Third Party Payments,EDA,16/10/2013,9-11079,"1,363.00",East Leake Academy,,,,,,,,,,,
Nottinghamshire County Council,1111/1001,Children and Young People,CYP,Third Party Payments,EDA,16/10/2013,9-11080,"3,522.00",The Bramcote School,,,,,,,,,,,
Nottinghamshire County Council,1111/1001,Children and Young People,CYP,Third Party Payments,EDA,16/10/2013,9-11081,740,Redhill Academy,,,,,,,,,,,
Nottinghamshire County Council,1111/1001,Children and Young People,CYP,Third Party Payments,EDA,16/10/2013,9-11082,"3,147.00",Alderman White School,,,,,,,,,,,
Nottinghamshire County Council,1111/1001,Children and Young People,CYP,Third Party Payments,EDA,16/10/2013,9-11083,861,Alderman White School,,,,,,,,,,,
Nottinghamshire County Council,1111/1001,Children and Young People,CYP,Third Party Payments,EDA,16/10/2013,9-11084,611,Quarrydale Academy,,,,,,,,,,,
Nottinghamshire County Council,1111/1001,Children and Young People,CYP,Third Party Payments,EDA,16/10/2013,9-11085,544,Quarrydale Academy,,,,,,,,,,,
Nottinghamshire County Council,1111/1001,Children and Young People,CYP,Third Party Payments,EFA,28/10/2013,9-11141,964.4,Teaching Personnel Ltd,,,,,,,,,,,
Nottinghamshire County Council,1111/1001,Children and Young People,CYP,Third Party Payments,EFA,30/10/2013,9-11181,"24,333.33",Kisimul School,,,,,,,,,,,
Nottinghamshire County Council,1111/1001,Children and Young People,CYP,Third Party Payments,EGA,02/10/2013,9-11035,"1,155,074.33",Nottinghamshire Healthcare Nhs Trus,,,,,,,,,,,
Nottinghamshire County Council,1111/1001,Children and Young People,CYP,Third Party Payments,EGA,18/10/2013,9-11090,"32,210.00",Creative Family Solutions Ltd,,,,,,,,,,,
Nottinghamshire County Council,1111/1001,Children and Young People,CYP,Third Party Payments,EGA,22/10/2013,9-11095,"3,912.64",By The Bridge,,,,,,,,,,,
Nottinghamshire County Council,1111/1001,Children and Young People,CYP,Third Party Payments,EGA,24/10/2013,9-11118,"3,545.83",Team Fostering,,,,,,,,,,,
Nottinghamshire County Council,1111/1001,Children and Young People,CYP,Third Party Payments,EGA,28/10/2013,9-11147,"2,815.80",Parallel Parents,,,,,,,,,,,
Nottinghamshire County Council,1111/1001,Children and Young People,CYP,Third Party Payments,EGA,30/10/2013,9-10943,"1,050.00",Speckled Frogs Pre-School,,,,,,,,,,,
Nottinghamshire County Council,1111/1001,Children and Young People,CYP,Third Party Payments,EGA,30/10/2013,9-10944,980,Alphabet House Day Nursery Worksop,,,,,,,,,,,
Nottinghamshire County Council,1111/1001,Children and Young People,CYP,Third Party Payments,EGA,31/10/2013,9-11190,"1,568.04",Scope,,,,,,,,,,,
Nottinghamshire County Council,1111/1001,Children and Young People,CYP,Third Party Payments,EHA,30/10/2013,9-10953,"406,876.00",Portland College,,,,,,,,,,,
Nottinghamshire County Council,1111/1001,Children and Young People,CYP,Third Party Payments,EHA,30/10/2013,9-10954,"318,334.00",West Notts College,,,,,,,,,,,
Nottinghamshire County Council,1111/1001,Children and Young People,CYP,Support Services,HAA,02/10/2013,9-10021,"1,090.80",All Wayz Travel,,,,,,,,,,,
Nottinghamshire County Council,1111/1001,Children and Young People,CYP,Support Services,HAA,02/10/2013,9-10026,"1,235.00",SJW (Muskham) Ltd T/A Z Cars,,,,,,,,,,,
Nottinghamshire County Council,1111/1001,Children and Young People,CYP,Support Services,HAA,02/10/2013,9-10027,950,SJW (Muskham) Ltd T/A Z Cars,,,,,,,,,,,
Nottinghamshire County Council,1111/1001,Children and Young People,CYP,Support Services,HAA,02/10/2013,9-10037,"2,110.90",Arnold Acorn Travel,,,,,,,,,,,
Nottinghamshire County Council,1111/1001,Children and Young People,CYP,Support Services,HAA,02/10/2013,9-10038,"2,043.37",Arnold Acorn Travel,,,,,,,,,,,
Nottinghamshire County Council,1111/1001,Children and Young People,CYP,Support Services,HAA,02/10/2013,9-10105,924,Fozcabs Newark Taxis,,,,,,,,,,,
Nottinghamshire County Council,1111/1001,Children and Young People,CYP,Support Services,HAA,02/10/2013,9-10113,"1,178.05",Fozcabs Newark Taxis,,,,,,,,,,,
Nottinghamshire County Council,1111/1001,Children and Young People,CYP,Support Services,HAA,02/10/2013,9-10115,"1,125.00",Fozcabs Newark Taxis,,,,,,,,,,,
Nottinghamshire County Council,1111/1001,Children and Young People,CYP,Support Services,HAA,02/10/2013,9-10122,"1,013.27",Elkingtons Park Garage,,,,,,,,,,,
Nottinghamshire County Council,1111/1001,Children and Young People,CYP,Support Services,HAA,02/10/2013,9-10125,"2,850.00",Nottm Minibuses & Coaches,,,,,,,,,,,
Nottinghamshire County Council,1111/1001,Children and Young People,CYP,Support Services,HAA,02/10/2013,9-10132,"1,710.00",Nottm Minibuses & Coaches,,,,,,,,,,,
Nottinghamshire County Council,1111/1001,Children and Young People,CYP,Support Services,HAA,02/10/2013,9-10135,"10,464.30",K & H Doyle Coaches Ltd,,,,,,,,,,,
Nottinghamshire County Council,1111/1001,Children and Young People,CYP,Support Services,HAA,02/10/2013,9-10137,"1,890.00",K & H Doyle Coaches Ltd,,,,,,,,,,,
Nottinghamshire County Council,1111/1001,Children and Young People,CYP,Support Services,HAA,02/10/2013,9-10138,"2,163.42",Kettlewell Retford Ltd,,,,,,,,,,,
Nottinghamshire County Council,1111/1001,Children and Young People,CYP,Support Services,HAA,02/10/2013,9-10139,"2,379.56",Kettlewell Retford Ltd,,,,,,,,,,,
Nottinghamshire County Council,1111/1001,Children and Young People,CYP,Support Services,HAA,02/10/2013,9-10140,"3,574.75",Kettlewell Retford Ltd,,,,,,,,,,,
Nottinghamshire County Council,1111/1001,Children and Young People,CYP,Support Services,HAA,02/10/2013,9-10141,"3,070.40",Kettlewell Retford Ltd,,,,,,,,,,,
Nottinghamshire County Council,1111/1001,Children and Young People,CYP,Support Services,HAA,02/10/2013,9-10142,"2,142.82",Kettlewell Retford Ltd,,,,,,,,,,,
Nottinghamshire County Council,1111/1001,Children and Young People,CYP,Support Services,HAA,02/10/2013,9-10143,"2,520.00",C W Moxon Ltd,,,,,,,,,,,
Nottinghamshire County Council,1111/1001,Children and Young People,CYP,Support Services,HAA,02/10/2013,9-10144,"2,779.14",C W Moxon Ltd,,,,,,,,,,,
Nottinghamshire County Council,1111/1001,Children and Young People,CYP,Support Services,HAA,02/10/2013,9-10145,"1,788.00",C W Moxon Ltd,,,,,,,,,,,
Nottinghamshire County Council,1111/1001,Children and Young People,CYP,Support Services,HAA,02/10/2013,9-10146,"2,435.80",C W Moxon Ltd,,,,,,,,,,,
Nottinghamshire County Council,1111/1001,Children and Young People,CYP,Support Services,HAA,02/10/2013,9-10147,"3,214.04",C W Moxon Ltd,,,,,,,,,,,
Nottinghamshire County Council,1111/1001,Children and Young People,CYP,Support Services,HAA,02/10/2013,9-10148,"3,174.25",C W Moxon Ltd,,,,,,,,,,,
Nottinghamshire County Council,1111/1001,Children and Young People,CYP,Support Services,HAA,10/10/2013,9-10380,"2,630.62",Glenn Ryder Coaches,,,,,,,,,,,
Nottinghamshire County Council,1111/1001,Children and Young People,CYP,Support Services,HAA,10/10/2013,9-10381,"2,886.20",Glenn Ryder Coaches,,,,,,,,,,,
Nottinghamshire County Council,1111/1001,Children and Young People,CYP,Support Services,HAA,10/10/2013,9-10386,"4,104.57",AOT Coaches,,,,,,,,,,,
Nottinghamshire County Council,1111/1001,Children and Young People,CYP,Support Services,HAA,10/10/2013,9-10387,"2,691.91",AOT Coaches,,,,,,,,,,,
Nottinghamshire County Council,1111/1001,Children and Young People,CYP,Support Services,HAA,10/10/2013,9-10388,"2,074.45",AOT Coaches,,,,,,,,,,,
Nottinghamshire County Council,1111/1001,Children and Young People,CYP,Support Services,HAA,10/10/2013,9-10389,"2,736.00",AOT Coaches,,,,,,,,,,,
Nottinghamshire County Council,1111/1001,Children and Young People,CYP,Support Services,HAA,10/10/2013,9-10390,"3,408.98",AOT Coaches,,,,,,,,,,,
Nottinghamshire County Council,1111/1001,Children and Young People,CYP,Support Services,HAA,10/10/2013,9-10391,"3,457.51",AOT Coaches,,,,,,,,,,,
Nottinghamshire County Council,1111/1001,Children and Young People,CYP,Support Services,HAA,10/10/2013,9-10392,"2,782.55",Stagecoach Services Ltd,,,,,,,,,,,
Nottinghamshire County Council,1111/1001,Children and Young People,CYP,Support Services,HAA,10/10/2013,9-10412,"2,225.00",Stagecoach Services Ltd,,,,,,,,,,,
Nottinghamshire County Council,1111/1001,Children and Young People,CYP,Support Services,HAA,10/10/2013,9-10420,"3,791.00",Stagecoach Services Ltd,,,,,,,,,,,
Nottinghamshire County Council,1111/1001,Children and Young People,CYP,Support Services,HAA,10/10/2013,9-10423,"2,907.38",Stagecoach Services Ltd,,,,,,,,,,,
Nottinghamshire County Council,1111/1001,Children and Young People,CYP,Support Services,HAA,10/10/2013,9-10433,"1,143.39",Stagecoach Services Ltd,,,,,,,,,,,
Nottinghamshire County Council,1111/1001,Children and Young People,CYP,Support Services,HAA,10/10/2013,9-10434,"4,389.71",Stagecoach Services Ltd,,,,,,,,,,,
Nottinghamshire County Council,1111/1001,Children and Young People,CYP,Support Services,HAA,10/10/2013,9-10435,"4,391.31",Stagecoach Services Ltd,,,,,,,,,,,
Nottinghamshire County Council,1111/1001,Children and Young People,CYP,Support Services,HAA,10/10/2013,9-10436,"3,273.50",Travel Wright Ltd,,,,,,,,,,,
Nottinghamshire County Council,1111/1001,Children and Young People,CYP,Support Services,HAA,10/10/2013,9-10437,720,Travel Wright Ltd,,,,,,,,,,,
Nottinghamshire County Council,1111/1001,Children and Young People,CYP,Support Services,HAA,10/10/2013,9-10438,"6,012.55",Wilfreda Beehive,,,,,,,,,,,
Nottinghamshire County Council,1111/1001,Children and Young People,CYP,Support Services,HAA,10/10/2013,9-10439,"2,075.02",Paul S Winson Coaches,,,,,,,,,,,
Nottinghamshire County Council,1111/1001,Children and Young People,CYP,Support Services,HAA,10/10/2013,9-10441,"5,154.05",Paul S Winson Coaches,,,,,,,,,,,
Nottinghamshire County Council,1111/1001,Children and Young People,CYP,Support Services,HAA,10/10/2013,9-10442,"3,099.05",Paul S Winson Coaches,,,,,,,,,,,
Nottinghamshire County Council,1111/1001,Children and Young People,CYP,Support Services,HAA,10/10/2013,9-10448,"2,111.07",TM Travel,,,,,,,,,,,
Nottinghamshire County Council,1111/1001,Adult Social Care and Health,ASCH,Premises Related,BAA,11/10/2013,9-10585,778.5,Handyman Plus,,,,,,,,,,,
Nottinghamshire County Council,1111/1001,Adult Social Care and Health,ASCH,Premises Related,BAA,11/10/2013,9-10606,533,Ashfield Glazing,,,,,,,,,,,
Nottinghamshire County Council,1111/1001,Adult Social Care and Health,ASCH,Premises Related,BAA,15/10/2013,9-10645,613.5,Elf Property Care,,,,,,,,,,,
Nottinghamshire County Council,1111/1001,Adult Social Care and Health,ASCH,Premises Related,BAA,25/10/2013,9-11137,"14,080.00",Robert Woodhead Limited,,,,,,,,,,,
Nottinghamshire County Council,1111/1001,Adult Social Care and Health,ASCH,Premises Related,BDA,14/10/2013,9-10611,"1,843.38",Progress Care Housing Assoc Ltd,,,,,,,,,,,
Nottinghamshire County Council,1111/1001,Adult Social Care and Health,ASCH,Premises Related,BDA,14/10/2013,9-10612,"1,114.65",Progress Care Housing Assoc Ltd,,,,,,,,,,,
Nottinghamshire County Council,1111/1001,Adult Social Care and Health,ASCH,Transport Related,CBA,11/10/2013,9-10603,"3,408.51",Mct Uk Ltd,,,,,,,,,,,
Nottinghamshire County Council,1111/1001,Adult Social Care and Health,ASCH,Transport Related,CCA,02/10/2013,9-10116,"2,486.61",Hawkins Taxis & Transport,,,,,,,,,,,
Nottinghamshire County Council,1111/1001,Adult Social Care and Health,ASCH,Transport Related,CCA,02/10/2013,9-10121,"2,332.68",Midfield Travel,,,,,,,,,,,
Nottinghamshire County Council,1111/1001,Adult Social Care and Health,ASCH,Transport Related,CCA,02/10/2013,9-10152,700,Rio Cabs,,,,,,,,,,,
Nottinghamshire County Council,1111/1001,Adult Social Care and Health,ASCH,Transport Related,CCA,23/10/2013,9-10788,"1,026.00",A & V Squires Plant Co,,,,,,,,,,,
Nottinghamshire County Council,1111/1001,Adult Social Care and Health,ASCH,Supplies & Services,DBA,02/10/2013,9-10158,"1,182.21",Arnold Dairies Ltd,,,,,,,,,,,
Nottinghamshire County Council,1111/1001,Adult Social Care and Health,ASCH,Supplies & Services,DBA,02/10/2013,9-10159,"1,624.05",Brake Bros Ltd,,,,,,,,,,,
Nottinghamshire County Council,1111/1001,Adult Social Care and Health,ASCH,Supplies & Services,DBA,08/10/2013,9-10289,"1,629.11",Hallam Country Fresh Foods Ltd,,,,,,,,,,,
Nottinghamshire County Council,1111/1001,Adult Social Care and Health,ASCH,Supplies & Services,DBA,23/10/2013,9-10773,"3,007.63",Brake Bros Ltd,,,,,,,,,,,
Nottinghamshire County Council,1111/1001,Adult Social Care and Health,ASCH,Supplies & Services,DBA,28/10/2013,9-10918,"2,682.69",Brake Bros Ltd,,,,,,,,,,,
Nottinghamshire County Council,1111/1001,Adult Social Care and Health,ASCH,Supplies & Services,DEA,29/10/2013,9-11169,"1,815.65",Faithful & Gould,,,,,,,,,,,
Nottinghamshire County Council,1111/1001,Adult Social Care and Health,ASCH,Supplies & Services,DEA,29/10/2013,9-11170,"3,084.71",Faithful & Gould,,,,,,,,,,,
Nottinghamshire County Council,1111/1001,Adult Social Care and Health,ASCH,Supplies & Services,DEA,30/10/2013,9-11180,"1,084.92",Nottinghamshire Healthcare Nhs Trus,,,,,,,,,,,
Nottinghamshire County Council,1111/1001,Adult Social Care and Health,ASCH,Third Party Payments,EBA,10/10/2013,9-10454,"30,497.63",Ashfield District Council,,,,,,,,,,,
Nottinghamshire County Council,1111/1001,Adult Social Care and Health,ASCH,Third Party Payments,EBA,10/10/2013,9-10455,"41,398.33",Bassetlaw District Council,,,,,,,,,,,
Nottinghamshire County Council,1111/1001,Adult Social Care and Health,ASCH,Third Party Payments,EBA,10/10/2013,9-10456,"26,227.09",Newark & Sherwood District Council,,,,,,,,,,,
Nottinghamshire County Council,1111/1001,Adult Social Care and Health,ASCH,Third Party Payments,EBA,10/10/2013,9-10457,"61,614.12",Mansfield District Council,,,,,,,,,,,
Nottinghamshire County Council,1111/1001,Adult Social Care and Health,ASCH,Third Party Payments,EBA,10/10/2013,9-10458,"31,696.31",Broxtowe Borough Council,,,,,,,,,,,
Nottinghamshire County Council,1111/1001,Adult Social Care and Health,ASCH,Third Party Payments,EBA,10/10/2013,9-10459,"1,770.46",Nene Housing Society Limited,,,,,,,,,,,
Nottinghamshire County Council,1111/1001,Adult Social Care and Health,ASCH,Third Party Payments,EBA,10/10/2013,9-10460,"11,767.74",Home Group Limited,,,,,,,,,,,
Nottinghamshire County Council,1111/1001,Adult Social Care and Health,ASCH,Third Party Payments,EBA,10/10/2013,9-10462,973.08,East Midlands Housing,,,,,,,,,,,
Nottinghamshire County Council,1111/1001,Adult Social Care and Health,ASCH,Third Party Payments,EBA,10/10/2013,9-10463,"14,080.00",Aspirations (Midlands) Ltd,,,,,,,,,,,
Nottinghamshire County Council,1111/1001,Adult Social Care and Health,ASCH,Third Party Payments,EBA,10/10/2013,9-10464,"38,650.98",Nottinghamshire Womens Aid Ltd,,,,,,,,,,,
Nottinghamshire County Council,1111/1001,Adult Social Care and Health,ASCH,Third Party Payments,EBA,10/10/2013,9-10465,"10,827.25",Jigsaw Mansfield Floating Support S,,,,,,,,,,,
Nottinghamshire County Council,1111/1001,Adult Social Care and Health,ASCH,Third Party Payments,EBA,10/10/2013,9-10466,907.11,Longhurst Housing Ltd,,,,,,,,,,,
Nottinghamshire County Council,1111/1001,Adult Social Care and Health,ASCH,Third Party Payments,EBA,10/10/2013,9-10467,"1,280.00",Advance Housing & Support Ltd,,,,,,,,,,,
Nottinghamshire County Council,1111/1001,Adult Social Care and Health,ASCH,Third Party Payments,EBA,10/10/2013,9-10468,"1,644.84",De Montfort Housing Association,,,,,,,,,,,
Nottinghamshire County Council,1111/1001,Adult Social Care and Health,ASCH,Third Party Payments,EBA,10/10/2013,9-10469,"1,080.00",Reach Housing Gloria Miller,,,,,,,,,,,
Nottinghamshire County Council,1111/1001,Adult Social Care and Health,ASCH,Third Party Payments,EBA,10/10/2013,9-10470,"4,508.00",Metropolitan Support Trust,,,,,,,,,,,
Nottinghamshire County Council,1111/1001,Adult Social Care and Health,ASCH,Third Party Payments,EBA,10/10/2013,9-10471,"43,515.56",Royal Society Mencap,,,,,,,,,,,
Nottinghamshire County Council,1111/1001,Adult Social Care and Health,ASCH,Third Party Payments,EBA,10/10/2013,9-10472,756.14,Sanctuary Housing Association,,,,,,,,,,,
Nottinghamshire County Council,1111/1001,Adult Social Care and Health,ASCH,Third Party Payments,EBA,10/10/2013,9-10473,"1,208.62",Nottingham City Homes,,,,,,,,,,,
Nottinghamshire County Council,1111/1001,Adult Social Care and Health,ASCH,Third Party Payments,EBA,10/10/2013,9-10474,"24,765.39",Metropolitan Support Trust,,,,,,,,,,,
Nottinghamshire County Council,1111/1001,Adult Social Care and Health,ASCH,Third Party Payments,EBA,10/10/2013,9-10476,"98,048.28",Eden Supported Living Ltd,,,,,,,,,,,
Nottinghamshire County Council,1111/1001,Adult Social Care and Health,ASCH,Third Party Payments,EBA,10/10/2013,9-10477,"1,111.47",United Charities Of Abel Collin,,,,,,,,,,,
Nottinghamshire County Council,1111/1001,Adult Social Care and Health,ASCH,Third Party Payments,EBA,10/10/2013,9-10478,"28,236.97",Women's Aid Integrated Services,,,,,,,,,,,
Nottinghamshire County Council,1111/1001,Adult Social Care and Health,ASCH,Third Party Payments,EBA,10/10/2013,9-10479,"2,920.00",Care UK Learning Disabilities Servi,,,,,,,,,,,
Nottinghamshire County Council,1111/1001,Adult Social Care and Health,ASCH,Third Party Payments,EBA,10/10/2013,9-10480,"5,940.00",JRH Support LLP,,,,,,,,,,,
Nottinghamshire County Council,1111/1001,Adult Social Care and Health,ASCH,Third Party Payments,EBA,10/10/2013,9-10481,"378,448.54",Framework Housing Association,,,,,,,,,,,
Nottinghamshire County Council,1111/1001,Adult Social Care and Health,ASCH,Third Party Payments,EBA,10/10/2013,9-10482,"6,015.45",Nottingham Community Housing,,,,,,,,,,,
Nottinghamshire County Council,1111/1001,Adult Social Care and Health,ASCH,Third Party Payments,EBA,10/10/2013,9-10483,"16,247.92",Lifeways Community Care Ltd,,,,,,,,,,,
Nottinghamshire County Council,1111/1001,Adult Social Care and Health,ASCH,Third Party Payments,EBA,10/10/2013,9-10485,"4,800.00",Voyage Ltd,,,,,,,,,,,
Nottinghamshire County Council,1111/1001,Adult Social Care and Health,ASCH,Third Party Payments,EBA,10/10/2013,9-10486,"1,187.63",Housing 21,,,,,,,,,,,
Nottinghamshire County Council,1111/1001,Adult Social Care and Health,ASCH,Third Party Payments,EBA,10/10/2013,9-10487,"28,836.56",Thera East Midlands,,,,,,,,,,,
Nottinghamshire County Council,1111/1001,Adult Social Care and Health,ASCH,Third Party Payments,EBA,10/10/2013,9-10488,"14,797.15",Choice Support,,,,,,,,,,,
Nottinghamshire County Council,1111/1001,Adult Social Care and Health,ASCH,Third Party Payments,EBA,10/10/2013,9-10489,"12,040.00",United Response,,,,,,,,,,,
Nottinghamshire County Council,1111/1001,Adult Social Care and Health,ASCH,Third Party Payments,EBA,10/10/2013,9-10490,"1,840.00",Heritage Care,,,,,,,,,,,
Nottinghamshire County Council,1111/1001,Adult Social Care and Health,ASCH,Third Party Payments,EBA,10/10/2013,9-10491,"2,360.00",Real Life Options,,,,,,,,,,,
Nottinghamshire County Council,1111/1001,Adult Social Care and Health,ASCH,Third Party Payments,EBA,10/10/2013,9-10492,"22,505.13",Gedling Homes,,,,,,,,,,,
Nottinghamshire County Council,1111/1001,Adult Social Care and Health,ASCH,Third Party Payments,EBA,10/10/2013,9-10493,"9,201.20",NCHA Ltd,,,,,,,,,,,
Nottinghamshire County Council,1111/1001,Adult Social Care and Health,ASCH,Third Party Payments,EBA,10/10/2013,9-10570,"3,647.40",ASRA Housing Association,,,,,,,,,,,
Nottinghamshire County Council,1111/1001,Adult Social Care and Health,ASCH,Third Party Payments,ECA,10/10/2013,9-10495,611.69,Spring Water Lodge,,,,,,,,,,,
Nottinghamshire County Council,1111/1001,Adult Social Care and Health,ASCH,Third Party Payments,ECA,10/10/2013,9-10510,"1,144.95",Wren Hall Nursing Home,,,,,,,,,,,
Nottinghamshire County Council,1111/1001,Adult Social Care and Health,ASCH,Third Party Payments,ECA,10/10/2013,9-10514,533.27,Field House Nursing Home,,,,,,,,,,,
Nottinghamshire County Council,1111/1001,Adult Social Care and Health,ASCH,Third Party Payments,ECA,10/10/2013,9-10520,"1,505.69",Victoria Care Home,,,,,,,,,,,
Nottinghamshire County Council,1111/1001,Adult Social Care and Health,ASCH,Third Party Payments,ECA,10/10/2013,9-10524,517.58,Blyth Country House Care Home,,,,,,,,,,,
Nottinghamshire County Council,1111/1001,Adult Social Care and Health,ASCH,Third Party Payments,EGA,02/10/2013,9-10160,"9,620.88",Fitzroy,,,,,,,,,,,
Nottinghamshire County Council,1111/1001,Adult Social Care and Health,ASCH,Third Party Payments,EGA,02/10/2013,9-10161,"2,236.80",ASRA Housing Association,,,,,,,,,,,
Nottinghamshire County Council,1111/1001,Adult Social Care and Health,ASCH,Third Party Payments,EGA,02/10/2013,9-10162,"2,152.92",ASRA Housing Association,,,,,,,,,,,
Nottinghamshire County Council,1111/1001,Adult Social Care and Health,ASCH,Third Party Payments,EGA,02/10/2013,9-10163,"1,957.20",ASRA Housing Association,,,,,,,,,,,
Nottinghamshire County Council,1111/1001,Adult Social Care and Health,ASCH,Third Party Payments,EGA,02/10/2013,9-10164,"1,006.56",ASRA Housing Association,,,,,,,,,,,
Nottinghamshire County Council,1111/1001,Adult Social Care and Health,ASCH,Third Party Payments,EGA,02/10/2013,9-10165,"1,118.40",ASRA Housing Association,,,,,,,,,,,
Nottinghamshire County Council,1111/1001,Adult Social Care and Health,ASCH,Third Party Payments,EGA,02/10/2013,9-10166,"1,125.76",ASRA Housing Association,,,,,,,,,,,
Nottinghamshire County Council,1111/1001,Adult Social Care and Health,ASCH,Third Party Payments,EGA,02/10/2013,9-10167,587.16,ASRA Housing Association,,,,,,,,,,,
Nottinghamshire County Council,1111/1001,Adult Social Care and Health,ASCH,Third Party Payments,EGA,02/10/2013,9-10168,"5,538.00",Voyage Ltd,,,,,,,,,,,
Nottinghamshire County Council,1111/1001,Adult Social Care and Health,ASCH,Third Party Payments,EGA,02/10/2013,9-10169,"1,440.72",Choice Support,,,,,,,,,,,
Nottinghamshire County Council,1111/1001,Adult Social Care and Health,ASCH,Third Party Payments,EGA,02/10/2013,9-10170,713.76,Choice Support,,,,,,,,,,,
Nottinghamshire County Council,1111/1001,Adult Social Care and Health,ASCH,Third Party Payments,EGA,03/10/2013,9-10178,"1,216.56",Hatzfeld Care Ltd,,,,,,,,,,,
Nottinghamshire County Council,1111/1001,Adult Social Care and Health,ASCH,Third Party Payments,EGA,03/10/2013,9-10179,"6,605.25",Care Uk Homecare Ltd,,,,,,,,,,,
Nottinghamshire County Council,1111/1001,Adult Social Care and Health,ASCH,Third Party Payments,EGA,03/10/2013,9-10180,"8,070.66",Hatzfeld Care Ltd,,,,,,,,,,,
Nottinghamshire County Council,1111/1001,Adult Social Care and Health,ASCH,Third Party Payments,EGA,03/10/2013,9-10181,652.62,Westminster Homecare Ltd,,,,,,,,,,,
Nottinghamshire County Council,1111/1001,Adult Social Care and Health,ASCH,Third Party Payments,EGA,03/10/2013,9-10182,"10,904.24",Mears Care Ltd,,,,,,,,,,,
Nottinghamshire County Council,1111/1001,Adult Social Care and Health,ASCH,Third Party Payments,EGA,03/10/2013,9-10183,"8,192.79",Sterling Homecare Ltd,,,,,,,,,,,
Nottinghamshire County Council,1111/1001,Adult Social Care and Health,ASCH,Third Party Payments,EGA,03/10/2013,9-10184,"1,736.55",Direct Health (uk) Ltd,,,,,,,,,,,
Nottinghamshire County Council,1111/1001,Adult Social Care and Health,ASCH,Third Party Payments,EGA,03/10/2013,9-10185,"7,456.92",Calverton Supreme Home Care Ltd,,,,,,,,,,,
Nottinghamshire County Council,1111/1001,Adult Social Care and Health,ASCH,Third Party Payments,EGA,03/10/2013,9-10186,"6,953.18",Sterling Homecare Ltd,,,,,,,,,,,
Nottinghamshire County Council,1111/1001,Adult Social Care and Health,ASCH,Third Party Payments,EGA,03/10/2013,9-10187,"8,824.89",Crossroads Care East Midlands,,,,,,,,,,,
Nottinghamshire County Council,1111/1001,Adult Social Care and Health,ASCH,Third Party Payments,EGA,03/10/2013,9-10188,"7,552.31",Priority Homecare Ltd,,,,,,,,,,,
Nottinghamshire County Council,1111/1001,Adult Social Care and Health,ASCH,Third Party Payments,EGA,03/10/2013,9-10189,"6,909.13",Sterling Homecare Ltd,,,,,,,,,,,
Nottinghamshire County Council,1111/1001,Adult Social Care and Health,ASCH,Third Party Payments,EGA,03/10/2013,9-10190,"5,021.79",Hatzfeld Care Ltd,,,,,,,,,,,
Nottinghamshire County Council,1111/1001,Adult Social Care and Health,ASCH,Third Party Payments,EGA,03/10/2013,9-10191,712.98,Leda Homecare Ltd,,,,,,,,,,,
Nottinghamshire County Council,1111/1001,Adult Social Care and Health,ASCH,Third Party Payments,EGA,03/10/2013,9-10192,"15,341.34",Direct Health (uk) Ltd,,,,,,,,,,,
Nottinghamshire County Council,1111/1001,Adult Social Care and Health,ASCH,Third Party Payments,EGA,03/10/2013,9-10193,860.37,Housing 21,,,,,,,,,,,
Nottinghamshire County Council,1111/1001,Adult Social Care and Health,ASCH,Third Party Payments,EGA,03/10/2013,9-10194,"1,277.49",North Notts Crossroads Care,,,,,,,,,,,
Nottinghamshire County Council,1111/1001,Adult Social Care and Health,ASCH,Third Party Payments,EGA,03/10/2013,9-10195,832.35,Always There Homecare Ltd,,,,,,,,,,,
Nottinghamshire County Council,1111/1001,Adult Social Care and Health,ASCH,Third Party Payments,EGA,03/10/2013,9-10196,553.64,Medico Nursing & Homecare,,,,,,,,,,,
Nottinghamshire County Council,1111/1001,Adult Social Care and Health,ASCH,Third Party Payments,EGA,03/10/2013,9-10197,"12,867.51",Care Uk Homecare Ltd,,,,,,,,,,,
Nottinghamshire County Council,1111/1001,Adult Social Care and Health,ASCH,Third Party Payments,EGA,03/10/2013,9-10198,779.62,Medico Nursing & Homecare,,,,,,,,,,,
Nottinghamshire County Council,1111/1001,Adult Social Care and Health,ASCH,Third Party Payments,EGA,03/10/2013,9-10199,"3,231.67",Priority Homecare Ltd,,,,,,,,,,,
Nottinghamshire County Council,1111/1001,Adult Social Care and Health,ASCH,Third Party Payments,EGA,03/10/2013,9-10200,641.3,Premier Nursing Agency Ltd,,,,,,,,,,,
Nottinghamshire County Council,1111/1001,Adult Social Care and Health,ASCH,Third Party Payments,EGA,03/10/2013,9-10201,"6,122.33",Direct Health (uk) Ltd,,,,,,,,,,,
Nottinghamshire County Council,1111/1001,Adult Social Care and Health,ASCH,Third Party Payments,EGA,03/10/2013,9-10202,"7,732.20",North Notts Crossroads Care,,,,,,,,,,,
Nottinghamshire County Council,1111/1001,Adult Social Care and Health,ASCH,Third Party Payments,EGA,03/10/2013,9-10203,"2,822.05",Care Uk Homecare Ltd,,,,,,,,,,,
Nottinghamshire County Council,1111/1001,Adult Social Care and Health,ASCH,Third Party Payments,EGA,03/10/2013,9-10204,"1,487.33",Home Care Solution Ltd,,,,,,,,,,,
Nottinghamshire County Council,1111/1001,Adult Social Care and Health,ASCH,Third Party Payments,EGA,03/10/2013,9-10205,"1,684.31",Crossroads Care East Midlands,,,,,,,,,,,
Nottinghamshire County Council,1111/1001,Adult Social Care and Health,ASCH,Third Party Payments,EGA,03/10/2013,9-10206,"4,607.53",Notts Homecare Ltd,,,,,,,,,,,
Nottinghamshire County Council,1111/1001,Adult Social Care and Health,ASCH,Third Party Payments,EGA,03/10/2013,9-10207,"3,185.21",Medico Nursing & Homecare,,,,,,,,,,,
Nottinghamshire County Council,1111/1001,Adult Social Care and Health,ASCH,Third Party Payments,EGA,03/10/2013,9-10208,"1,084.45",The Human Support Group,,,,,,,,,,,
Nottinghamshire County Council,1111/1001,Adult Social Care and Health,ASCH,Third Party Payments,EGA,03/10/2013,9-10209,551.13,Housing 21,,,,,,,,,,,
Nottinghamshire County Council,1111/1001,Adult Social Care and Health,ASCH,Third Party Payments,EGA,03/10/2013,9-10210,"5,708.61",Westminster Homecare Ltd,,,,,,,,,,,
Nottinghamshire County Council,1111/1001,Adult Social Care and Health,ASCH,Third Party Payments,EGA,03/10/2013,9-10211,"5,392.52",North Notts Crossroads Care,,,,,,,,,,,
Nottinghamshire County Council,1111/1001,Adult Social Care and Health,ASCH,Third Party Payments,EGA,03/10/2013,9-10212,"1,941.34",Medico Nursing & Homecare,,,,,,,,,,,
Nottinghamshire County Council,1111/1001,Adult Social Care and Health,ASCH,Third Party Payments,EGA,03/10/2013,9-10213,743.57,Mears Care Ltd,,,,,,,,,,,
Nottinghamshire County Council,1111/1001,Adult Social Care and Health,ASCH,Third Party Payments,EGA,03/10/2013,9-10214,"4,636.70",Direct Health (uk) Ltd,,,,,,,,,,,
Nottinghamshire County Council,1111/1001,Adult Social Care and Health,ASCH,Third Party Payments,EGA,03/10/2013,9-10215,"9,577.86",Leda Homecare Ltd,,,,,,,,,,,
Nottinghamshire County Council,1111/1001,Adult Social Care and Health,ASCH,Third Party Payments,EGA,03/10/2013,9-10216,"5,998.19",Workwise Healthcare Ltd,,,,,,,,,,,
Nottinghamshire County Council,1111/1001,Adult Social Care and Health,ASCH,Third Party Payments,EGA,03/10/2013,9-10217,"2,745.75",Westminster Homecare Ltd,,,,,,,,,,,
Nottinghamshire County Council,1111/1001,Adult Social Care and Health,ASCH,Third Party Payments,EGA,03/10/2013,9-10218,"5,038.66",Mears Care Ltd,,,,,,,,,,,
Nottinghamshire County Council,1111/1001,Adult Social Care and Health,ASCH,Third Party Payments,EGA,03/10/2013,9-10219,"2,063.76",Housing 21,,,,,,,,,,,
Nottinghamshire County Council,1111/1001,Adult Social Care and Health,ASCH,Third Party Payments,EGA,03/10/2013,9-10220,"2,296.81",Crossroads Care East Midlands,,,,,,,,,,,
Nottinghamshire County Council,1111/1001,Adult Social Care and Health,ASCH,Third Party Payments,EGA,03/10/2013,9-10221,"2,296.97",Hatzfeld Care Ltd,,,,,,,,,,,
Nottinghamshire County Council,1111/1001,Adult Social Care and Health,ASCH,Third Party Payments,EGA,03/10/2013,9-10222,"8,260.85",Leda Homecare Ltd,,,,,,,,,,,
Nottinghamshire County Council,1111/1001,Adult Social Care and Health,ASCH,Third Party Payments,EGA,03/10/2013,9-10223,939.7,Amg Nursing & Care Services Ltd,,,,,,,,,,,
Nottinghamshire County Council,1111/1001,Adult Social Care and Health,ASCH,Third Party Payments,EGA,03/10/2013,9-10224,"18,907.08",Direct Health (uk) Ltd,,,,,,,,,,,
Nottinghamshire County Council,1111/1001,Adult Social Care and Health,ASCH,Third Party Payments,EGA,03/10/2013,9-10225,"2,044.95",Sterling Homecare Ltd,,,,,,,,,,,
Nottinghamshire County Council,1111/1001,Adult Social Care and Health,ASCH,Third Party Payments,EGA,03/10/2013,9-10226,"3,921.87",Home Care Solution Ltd,,,,,,,,,,,
Nottinghamshire County Council,1111/1001,Adult Social Care and Health,ASCH,Third Party Payments,EGA,03/10/2013,9-10227,"9,693.89",Sterling Homecare Ltd,,,,,,,,,,,
Nottinghamshire County Council,1111/1001,Adult Social Care and Health,ASCH,Third Party Payments,EGA,03/10/2013,9-10228,"2,662.20",Priority Homecare Ltd,,,,,,,,,,,
Nottinghamshire County Council,1111/1001,Adult Social Care and Health,ASCH,Third Party Payments,EGA,03/10/2013,9-10229,"1,656.69",Mediline Nurses & Carers Ltd,,,,,,,,,,,
Nottinghamshire County Council,1111/1001,Adult Social Care and Health,ASCH,Third Party Payments,EGA,03/10/2013,9-10230,970.43,Always There Homecare Ltd,,,,,,,,,,,
Nottinghamshire County Council,1111/1001,Adult Social Care and Health,ASCH,Third Party Payments,EGA,03/10/2013,9-10231,"7,667.56",Workwise Healthcare Ltd,,,,,,,,,,,
Nottinghamshire County Council,1111/1001,Adult Social Care and Health,ASCH,Third Party Payments,EGA,03/10/2013,9-10232,"1,893.63",Premier Nursing Agency Ltd,,,,,,,,,,,
Nottinghamshire County Council,1111/1001,Adult Social Care and Health,ASCH,Third Party Payments,EGA,03/10/2013,9-10233,"5,276.10",Medico Nursing & Homecare,,,,,,,,,,,
Nottinghamshire County Council,1111/1001,Adult Social Care and Health,ASCH,Third Party Payments,EGA,03/10/2013,9-10234,"10,023.82",Sterling Homecare Ltd,,,,,,,,,,,
Nottinghamshire County Council,1111/1001,Adult Social Care and Health,ASCH,Third Party Payments,EGA,03/10/2013,9-10235,"1,767.20",Housing 21,,,,,,,,,,,
Nottinghamshire County Council,1111/1001,Adult Social Care and Health,ASCH,Third Party Payments,EGA,03/10/2013,9-10236,"3,260.62",Rainbow Care Services Ltd,,,,,,,,,,,
Nottinghamshire County Council,1111/1001,Adult Social Care and Health,ASCH,Third Party Payments,EGA,03/10/2013,9-10237,"7,419.85",Care Uk Homecare Ltd,,,,,,,,,,,
Nottinghamshire County Council,1111/1001,Adult Social Care and Health,ASCH,Third Party Payments,EGA,03/10/2013,9-10238,"1,509.69",Notts Homecare Ltd,,,,,,,,,,,
Nottinghamshire County Council,1111/1001,Adult Social Care and Health,ASCH,Third Party Payments,EGA,03/10/2013,9-10239,"2,845.74",Mears Care Ltd,,,,,,,,,,,
Nottinghamshire County Council,1111/1001,Adult Social Care and Health,ASCH,Third Party Payments,EGA,03/10/2013,9-10240,572.13,Priority Homecare Ltd,,,,,,,,,,,
Nottinghamshire County Council,1111/1001,Adult Social Care and Health,ASCH,Third Party Payments,EGA,03/10/2013,9-10241,"2,855.75",Housing 21,,,,,,,,,,,
Nottinghamshire County Council,1111/1001,Adult Social Care and Health,ASCH,Third Party Payments,EGA,03/10/2013,9-10242,507.66,Always There Homecare Ltd,,,,,,,,,,,
Nottinghamshire County Council,1111/1001,Adult Social Care and Health,ASCH,Third Party Payments,EGA,03/10/2013,9-10243,"2,762.20",Direct Health (uk) Ltd,,,,,,,,,,,
Nottinghamshire County Council,1111/1001,Adult Social Care and Health,ASCH,Third Party Payments,EGA,03/10/2013,9-10244,"1,237.63",Medico Nursing & Homecare,,,,,,,,,,,
Nottinghamshire County Council,1111/1001,Adult Social Care and Health,ASCH,Third Party Payments,EGA,03/10/2013,9-10245,"3,103.05",The Human Support Group,,,,,,,,,,,
Nottinghamshire County Council,1111/1001,Adult Social Care and Health,ASCH,Third Party Payments,EGA,03/10/2013,9-10246,"9,018.35",Priority Homecare Ltd,,,,,,,,,,,
Nottinghamshire County Council,1111/1001,Adult Social Care and Health,ASCH,Third Party Payments,EGA,03/10/2013,9-10253,686.86,DUPLICATE-Amg Nursing & Care Servic,,,,,,,,,,,
Nottinghamshire County Council,1111/1001,Adult Social Care and Health,ASCH,Third Party Payments,EGA,03/10/2013,9-10254,"1,322.09",DUPLICATE-Amg Nursing & Care Servic,,,,,,,,,,,
Nottinghamshire County Council,1111/1001,Adult Social Care and Health,ASCH,Third Party Payments,EGA,03/10/2013,9-10255,"1,627.43",North Notts Crossroads Care,,,,,,,,,,,
Nottinghamshire County Council,1111/1001,Adult Social Care and Health,ASCH,Third Party Payments,EGA,04/10/2013,9-10256,"1,759.50",Mencap Accounts Region 2,,,,,,,,,,,
Nottinghamshire County Council,1111/1001,Adult Social Care and Health,ASCH,Third Party Payments,EGA,07/10/2013,9-10259,694.46,Capita Resourcing Social Care & Hou,,,,,,,,,,,
Nottinghamshire County Council,1111/1001,Adult Social Care and Health,ASCH,Third Party Payments,EGA,07/10/2013,9-10260,969.07,Capita Resourcing Social Care & Hou,,,,,,,,,,,
Nottinghamshire County Council,1111/1001,Adult Social Care and Health,ASCH,Third Party Payments,EGA,07/10/2013,9-10270,"9,636.71",Perthyn,,,,,,,,,,,
Nottinghamshire County Council,1111/1001,Adult Social Care and Health,ASCH,Third Party Payments,EGA,07/10/2013,9-10271,"20,597.64",Perthyn,,,,,,,,,,,
Nottinghamshire County Council,1111/1001,Adult Social Care and Health,ASCH,Third Party Payments,EGA,07/10/2013,9-10273,"9,636.71",Perthyn,,,,,,,,,,,
Nottinghamshire County Council,1111/1001,Adult Social Care and Health,ASCH,Third Party Payments,EGA,07/10/2013,9-10274,"24,975.72",Perthyn,,,,,,,,,,,
Nottinghamshire County Council,1111/1001,Adult Social Care and Health,ASCH,Third Party Payments,EGA,07/10/2013,9-10277,"9,478.61",Perthyn,,,,,,,,,,,
Nottinghamshire County Council,1111/1001,Adult Social Care and Health,ASCH,Third Party Payments,EGA,07/10/2013,9-10278,"13,755.48",Perthyn,,,,,,,,,,,
Nottinghamshire County Council,1111/1001,Adult Social Care and Health,ASCH,Third Party Payments,EGA,07/10/2013,9-10285,"7,789.40",Perthyn,,,,,,,,,,,
Nottinghamshire County Council,1111/1001,Adult Social Care and Health,ASCH,Third Party Payments,EGA,07/10/2013,9-10286,"9,889.40",Perthyn,,,,,,,,,,,
Nottinghamshire County Council,1111/1001,Adult Social Care and Health,ASCH,Third Party Payments,EGA,09/10/2013,9-10292,"1,390.64",Mencap Accounts Region 2,,,,,,,,,,,
Nottinghamshire County Council,1111/1001,Adult Social Care and Health,ASCH,Third Party Payments,EGA,09/10/2013,9-10293,"1,246.20",Nottm Community Housing Assoc,,,,,,,,,,,
Nottinghamshire County Council,1111/1001,Adult Social Care and Health,ASCH,Third Party Payments,EGA,09/10/2013,9-10294,712.25,Blue Sky Care Ltd,,,,,,,,,,,
Nottinghamshire County Council,1111/1001,Adult Social Care and Health,ASCH,Third Party Payments,EGA,09/10/2013,9-10295,686.35,DUPLICATE-Blue Sky Care Ltd,,,,,,,,,,,
Nottinghamshire County Council,1111/1001,Adult Social Care and Health,ASCH,Third Party Payments,EGA,09/10/2013,9-10296,"5,538.00",Voyage Ltd,,,,,,,,,,,
Nottinghamshire County Council,1111/1001,Adult Social Care and Health,ASCH,Third Party Payments,EGA,09/10/2013,9-10297,"7,376.36",Fitzroy,,,,,,,,,,,
Nottinghamshire County Council,1111/1001,Adult Social Care and Health,ASCH,Third Party Payments,EGA,10/10/2013,9-10298,588.39,Medico Nursing & Homecare,,,,,,,,,,,
Nottinghamshire County Council,1111/1001,Adult Social Care and Health,ASCH,Third Party Payments,EGA,10/10/2013,9-10299,894.66,Housing 21,,,,,,,,,,,
Nottinghamshire County Council,1111/1001,Adult Social Care and Health,ASCH,Third Party Payments,EGA,10/10/2013,9-10300,"1,321.27",The Human Support Group,,,,,,,,,,,
Nottinghamshire County Council,1111/1001,Adult Social Care and Health,ASCH,Third Party Payments,EGA,10/10/2013,9-10301,"2,730.59",North Notts Crossroads Care,,,,,,,,,,,
Nottinghamshire County Council,1111/1001,Adult Social Care and Health,ASCH,Third Party Payments,EGA,10/10/2013,9-10302,"1,891.40",Crossroads Care East Midlands,,,,,,,,,,,
Nottinghamshire County Council,1111/1001,Adult Social Care and Health,ASCH,Third Party Payments,EGA,10/10/2013,9-10303,"12,573.40",Care Uk Homecare Ltd,,,,,,,,,,,
Nottinghamshire County Council,1111/1001,Adult Social Care and Health,ASCH,Third Party Payments,EGA,10/10/2013,9-10304,"3,321.33",Priority Homecare Ltd,,,,,,,,,,,
Nottinghamshire County Council,1111/1001,Adult Social Care and Health,ASCH,Third Party Payments,EGA,10/10/2013,9-10305,770.32,Medico Nursing & Homecare,,,,,,,,,,,
Nottinghamshire County Council,1111/1001,Adult Social Care and Health,ASCH,Third Party Payments,EGA,10/10/2013,9-10306,631.83,Premier Nursing Agency Ltd,,,,,,,,,,,
Nottinghamshire County Council,1111/1001,Adult Social Care and Health,ASCH,Third Party Payments,EGA,10/10/2013,9-10307,"6,171.77",Direct Health (uk) Ltd,,,,,,,,,,,
Nottinghamshire County Council,1111/1001,Adult Social Care and Health,ASCH,Third Party Payments,EGA,10/10/2013,9-10308,"3,209.94",Sterling Homecare Ltd,,,,,,,,,,,
Nottinghamshire County Council,1111/1001,Adult Social Care and Health,ASCH,Third Party Payments,EGA,10/10/2013,9-10309,"7,538.21",North Notts Crossroads Care,,,,,,,,,,,
Nottinghamshire County Council,1111/1001,Adult Social Care and Health,ASCH,Third Party Payments,EGA,10/10/2013,9-10310,"3,154.92",Care Uk Homecare Ltd,,,,,,,,,,,
Nottinghamshire County Council,1111/1001,Adult Social Care and Health,ASCH,Third Party Payments,EGA,10/10/2013,9-10311,"1,403.89",Home Care Solution Ltd,,,,,,,,,,,
Nottinghamshire County Council,1111/1001,Adult Social Care and Health,ASCH,Third Party Payments,EGA,10/10/2013,9-10312,"1,683.11",Premier Nursing Agency Ltd,,,,,,,,,,,
Nottinghamshire County Council,1111/1001,Adult Social Care and Health,ASCH,Third Party Payments,EGA,10/10/2013,9-10313,572.62,Housing 21,,,,,,,,,,,
Nottinghamshire County Council,1111/1001,Adult Social Care and Health,ASCH,Third Party Payments,EGA,10/10/2013,9-10314,"4,493.32",Notts Homecare Ltd,,,,,,,,,,,
Nottinghamshire County Council,1111/1001,Adult Social Care and Health,ASCH,Third Party Payments,EGA,10/10/2013,9-10315,"6,696.61",Westminster Homecare Ltd,,,,,,,,,,,
Nottinghamshire County Council,1111/1001,Adult Social Care and Health,ASCH,Third Party Payments,EGA,10/10/2013,9-10316,"3,370.87",Medico Nursing & Homecare,,,,,,,,,,,
Nottinghamshire County Council,1111/1001,Adult Social Care and Health,ASCH,Third Party Payments,EGA,10/10/2013,9-10317,"5,599.82",North Notts Crossroads Care,,,,,,,,,,,
Nottinghamshire County Council,1111/1001,Adult Social Care and Health,ASCH,Third Party Payments,EGA,10/10/2013,9-10318,612.82,Mears Care Ltd,,,,,,,,,,,
Nottinghamshire County Council,1111/1001,Adult Social Care and Health,ASCH,Third Party Payments,EGA,10/10/2013,9-10319,"4,818.35",Direct Health (uk) Ltd,,,,,,,,,,,
Nottinghamshire County Council,1111/1001,Adult Social Care and Health,ASCH,Third Party Payments,EGA,10/10/2013,9-10320,"10,233.59",Leda Homecare Ltd,,,,,,,,,,,
Nottinghamshire County Council,1111/1001,Adult Social Care and Health,ASCH,Third Party Payments,EGA,10/10/2013,9-10321,"5,828.77",Workwise Healthcare Ltd,,,,,,,,,,,
Nottinghamshire County Council,1111/1001,Adult Social Care and Health,ASCH,Third Party Payments,EGA,10/10/2013,9-10322,"5,265.70",Mears Care Ltd,,,,,,,,,,,
Nottinghamshire County Council,1111/1001,Adult Social Care and Health,ASCH,Third Party Payments,EGA,10/10/2013,9-10323,"2,712.44",Direct Health (uk) Ltd,,,,,,,,,,,
Nottinghamshire County Council,1111/1001,Adult Social Care and Health,ASCH,Third Party Payments,EGA,10/10/2013,9-10324,"1,953.58",Crossroads Care East Midlands,,,,,,,,,,,
Nottinghamshire County Council,1111/1001,Adult Social Care and Health,ASCH,Third Party Payments,EGA,10/10/2013,9-10325,"2,061.80",Housing 21,,,,,,,,,,,
Nottinghamshire County Council,1111/1001,Adult Social Care and Health,ASCH,Third Party Payments,EGA,10/10/2013,9-10326,911.99,Amg Nursing & Care Services Ltd,,,,,,,,,,,
Nottinghamshire County Council,1111/1001,Adult Social Care and Health,ASCH,Third Party Payments,EGA,10/10/2013,9-10327,"2,262.11",Hatzfeld Care Ltd,,,,,,,,,,,
Nottinghamshire County Council,1111/1001,Adult Social Care and Health,ASCH,Third Party Payments,EGA,10/10/2013,9-10328,"3,263.15",Westminster Homecare Ltd,,,,,,,,,,,
Nottinghamshire County Council,1111/1001,Adult Social Care and Health,ASCH,Third Party Payments,EGA,10/10/2013,9-10329,"8,579.20",Leda Homecare Ltd,,,,,,,,,,,
Nottinghamshire County Council,1111/1001,Adult Social Care and Health,ASCH,Third Party Payments,EGA,10/10/2013,9-10330,"18,507.98",Direct Health (uk) Ltd,,,,,,,,,,,
Nottinghamshire County Council,1111/1001,Adult Social Care and Health,ASCH,Third Party Payments,EGA,10/10/2013,9-10331,"1,808.23",Medico Nursing & Homecare,,,,,,,,,,,
Nottinghamshire County Council,1111/1001,Adult Social Care and Health,ASCH,Third Party Payments,EGA,10/10/2013,9-10332,"1,919.27",Sterling Homecare Ltd,,,,,,,,,,,
Nottinghamshire County Council,1111/1001,Adult Social Care and Health,ASCH,Third Party Payments,EGA,10/10/2013,9-10333,"2,401.03",Priority Homecare Ltd,,,,,,,,,,,
Nottinghamshire County Council,1111/1001,Adult Social Care and Health,ASCH,Third Party Payments,EGA,10/10/2013,9-10334,"8,862.48",Priority Homecare Ltd,,,,,,,,,,,
Nottinghamshire County Council,1111/1001,Adult Social Care and Health,ASCH,Third Party Payments,EGA,10/10/2013,9-10335,"1,555.93",Hatzfeld Care Ltd,,,,,,,,,,,
Nottinghamshire County Council,1111/1001,Adult Social Care and Health,ASCH,Third Party Payments,EGA,10/10/2013,9-10336,"3,630.56",Home Care Solution Ltd,,,,,,,,,,,
Nottinghamshire County Council,1111/1001,Adult Social Care and Health,ASCH,Third Party Payments,EGA,10/10/2013,9-10337,"2,149.23",Premier Nursing Agency Ltd,,,,,,,,,,,
Nottinghamshire County Council,1111/1001,Adult Social Care and Health,ASCH,Third Party Payments,EGA,10/10/2013,9-10338,"2,708.56",The Human Support Group,,,,,,,,,,,
Nottinghamshire County Council,1111/1001,Adult Social Care and Health,ASCH,Third Party Payments,EGA,10/10/2013,9-10339,"1,511.80",Notts Homecare Ltd,,,,,,,,,,,
Nottinghamshire County Council,1111/1001,Adult Social Care and Health,ASCH,Third Party Payments,EGA,10/10/2013,9-10340,"5,187.91",Medico Nursing & Homecare,,,,,,,,,,,
Nottinghamshire County Council,1111/1001,Adult Social Care and Health,ASCH,Third Party Payments,EGA,10/10/2013,9-10341,"11,583.07",Sterling Homecare Ltd,,,,,,,,,,,
Nottinghamshire County Council,1111/1001,Adult Social Care and Health,ASCH,Third Party Payments,EGA,10/10/2013,9-10342,"8,074.17",Workwise Healthcare Ltd,,,,,,,,,,,
Nottinghamshire County Council,1111/1001,Adult Social Care and Health,ASCH,Third Party Payments,EGA,10/10/2013,9-10343,531.95,Priority Homecare Ltd,,,,,,,,,,,
Nottinghamshire County Council,1111/1001,Adult Social Care and Health,ASCH,Third Party Payments,EGA,10/10/2013,9-10344,"3,397.84",Rainbow Care Services Ltd,,,,,,,,,,,
Nottinghamshire County Council,1111/1001,Adult Social Care and Health,ASCH,Third Party Payments,EGA,10/10/2013,9-10345,"1,770.60",North Notts Crossroads Care,,,,,,,,,,,
Nottinghamshire County Council,1111/1001,Adult Social Care and Health,ASCH,Third Party Payments,EGA,10/10/2013,9-10346,"7,509.37",Care Uk Homecare Ltd,,,,,,,,,,,
Nottinghamshire County Council,1111/1001,Adult Social Care and Health,ASCH,Third Party Payments,EGA,10/10/2013,9-10347,"2,803.83",Mears Care Ltd,,,,,,,,,,,
Nottinghamshire County Council,1111/1001,Adult Social Care and Health,ASCH,Third Party Payments,EGA,10/10/2013,9-10348,"1,237.76",Always There Homecare Ltd,,,,,,,,,,,
Nottinghamshire County Council,1111/1001,Adult Social Care and Health,ASCH,Third Party Payments,EGA,10/10/2013,9-10349,527.9,Premier Nursing Agency Ltd,,,,,,,,,,,
Nottinghamshire County Council,1111/1001,Adult Social Care and Health,ASCH,Third Party Payments,EGA,10/10/2013,9-10350,"1,881.39",Housing 21,,,,,,,,,,,
Nottinghamshire County Council,1111/1001,Adult Social Care and Health,ASCH,Third Party Payments,EGA,10/10/2013,9-10351,"2,912.92",Housing 21,,,,,,,,,,,
Nottinghamshire County Council,1111/1001,Adult Social Care and Health,ASCH,Third Party Payments,EGA,10/10/2013,9-10352,"1,232.41",Medico Nursing & Homecare,,,,,,,,,,,
Nottinghamshire County Council,1111/1001,Adult Social Care and Health,ASCH,Third Party Payments,EGA,10/10/2013,9-10353,844.91,Always There Homecare Ltd,,,,,,,,,,,
Nottinghamshire County Council,1111/1001,Adult Social Care and Health,ASCH,Third Party Payments,EGA,10/10/2013,9-10354,"9,757.68",Sterling Homecare Ltd,,,,,,,,,,,
Nottinghamshire County Council,1111/1001,Adult Social Care and Health,ASCH,Third Party Payments,EGA,10/10/2013,9-10355,"1,630.94",Mediline Nurses & Carers Ltd,,,,,,,,,,,
Nottinghamshire County Council,1111/1001,Adult Social Care and Health,ASCH,Third Party Payments,EGA,10/10/2013,9-10356,"4,888.70",Hatzfeld Care Ltd,,,,,,,,,,,
Nottinghamshire County Council,1111/1001,Adult Social Care and Health,ASCH,Third Party Payments,EGA,10/10/2013,9-10357,825.92,Always There Homecare Ltd,,,,,,,,,,,
Nottinghamshire County Council,1111/1001,Adult Social Care and Health,ASCH,Third Party Payments,EGA,10/10/2013,9-10358,"7,638.38",Priority Homecare Ltd,,,,,,,,,,,
Nottinghamshire County Council,1111/1001,Adult Social Care and Health,ASCH,Third Party Payments,EGA,10/10/2013,9-10359,"9,683.93",Crossroads Care East Midlands,,,,,,,,,,,
Nottinghamshire County Council,1111/1001,Adult Social Care and Health,ASCH,Third Party Payments,EGA,10/10/2013,9-10360,"8,621.83",Hatzfeld Care Ltd,,,,,,,,,,,
Nottinghamshire County Council,1111/1001,Adult Social Care and Health,ASCH,Third Party Payments,EGA,10/10/2013,9-10361,"7,485.37",Calverton Supreme Home Care Ltd,,,,,,,,,,,
Nottinghamshire County Council,1111/1001,Adult Social Care and Health,ASCH,Third Party Payments,EGA,10/10/2013,9-10362,"11,350.82",Mears Care Ltd,,,,,,,,,,,
Nottinghamshire County Council,1111/1001,Adult Social Care and Health,ASCH,Third Party Payments,EGA,10/10/2013,9-10363,"7,959.70",Sterling Homecare Ltd,,,,,,,,,,,
Nottinghamshire County Council,1111/1001,Adult Social Care and Health,ASCH,Third Party Payments,EGA,10/10/2013,9-10364,"7,307.76",Sterling Homecare Ltd,,,,,,,,,,,
Nottinghamshire County Council,1111/1001,Adult Social Care and Health,ASCH,Third Party Payments,EGA,10/10/2013,9-10365,608.44,Westminster Homecare Ltd,,,,,,,,,,,
Nottinghamshire County Council,1111/1001,Adult Social Care and Health,ASCH,Third Party Payments,EGA,10/10/2013,9-10366,"1,662.98",Direct Health (uk) Ltd,,,,,,,,,,,
Nottinghamshire County Council,1111/1001,Adult Social Care and Health,ASCH,Third Party Payments,EGA,10/10/2013,9-10367,"7,998.75",Sterling Homecare Ltd,,,,,,,,,,,
Nottinghamshire County Council,1111/1001,Adult Social Care and Health,ASCH,Third Party Payments,EGA,10/10/2013,9-10368,"6,872.36",Care Uk Homecare Ltd,,,,,,,,,,,
Nottinghamshire County Council,1111/1001,Adult Social Care and Health,ASCH,Third Party Payments,EGA,10/10/2013,9-10369,740.77,Leda Homecare Ltd,,,,,,,,,,,
Nottinghamshire County Council,1111/1001,Adult Social Care and Health,ASCH,Third Party Payments,EGA,10/10/2013,9-10370,"13,515.07",Direct Health (uk) Ltd,,,,,,,,,,,
Nottinghamshire County Council,1111/1001,Adult Social Care and Health,ASCH,Third Party Payments,EGA,10/10/2013,9-10451,"1,597.12",Nottm Community Housing Assoc,,,,,,,,,,,
Nottinghamshire County Council,1111/1001,Adult Social Care and Health,ASCH,Third Party Payments,EGA,10/10/2013,9-10495,"2,412.43",Spring Water Lodge,,,,,,,,,,,
Nottinghamshire County Council,1111/1001,Adult Social Care and Health,ASCH,Third Party Payments,EGA,10/10/2013,9-10496,884,Parkland,,,,,,,,,,,
Nottinghamshire County Council,1111/1001,Adult Social Care and Health,ASCH,Third Party Payments,EGA,10/10/2013,9-10497,510.86,Parkland,,,,,,,,,,,
Nottinghamshire County Council,1111/1001,Adult Social Care and Health,ASCH,Third Party Payments,EGA,10/10/2013,9-10498,988,Oaks Care Centre,,,,,,,,,,,
Nottinghamshire County Council,1111/1001,Adult Social Care and Health,ASCH,Third Party Payments,EGA,10/10/2013,9-10499,"6,280.86",Beeches Nursing Home,,,,,,,,,,,
Nottinghamshire County Council,1111/1001,Adult Social Care and Health,ASCH,Third Party Payments,EGA,10/10/2013,9-10500,884,Berry Hill Park,,,,,,,,,,,
Nottinghamshire County Council,1111/1001,Adult Social Care and Health,ASCH,Third Party Payments,EGA,10/10/2013,9-10501,"6,882.57",Berry Hill Park,,,,,,,,,,,
Nottinghamshire County Council,1111/1001,Adult Social Care and Health,ASCH,Third Party Payments,EGA,10/10/2013,9-10502,"5,274.29",Sutton Lodge Nursing Home,,,,,,,,,,,
Nottinghamshire County Council,1111/1001,Adult Social Care and Health,ASCH,Third Party Payments,EGA,10/10/2013,9-10503,"1,337.14",Sutton Lodge Nursing Home,,,,,,,,,,,
Nottinghamshire County Council,1111/1001,Adult Social Care and Health,ASCH,Third Party Payments,EGA,10/10/2013,9-10504,"1,040.00",Derbyshire House,,,,,,,,,,,
Nottinghamshire County Council,1111/1001,Adult Social Care and Health,ASCH,Third Party Payments,EGA,10/10/2013,9-10505,"2,080.00",Bluebell Lodge,,,,,,,,,,,
Nottinghamshire County Council,1111/1001,Adult Social Care and Health,ASCH,Third Party Payments,EGA,10/10/2013,9-10506,"1,074.00",Ashley House Nursing Home,,,,,,,,,,,
Nottinghamshire County Council,1111/1001,Adult Social Care and Health,ASCH,Third Party Payments,EGA,10/10/2013,9-10507,"3,491.43",Bank House Residential Home,,,,,,,,,,,
Nottinghamshire County Council,1111/1001,Adult Social Care and Health,ASCH,Third Party Payments,EGA,10/10/2013,9-10508,798,The Moorlands Nursing Home,,,,,,,,,,,
Nottinghamshire County Council,1111/1001,Adult Social Care and Health,ASCH,Third Party Payments,EGA,10/10/2013,9-10509,"1,738.29",Countrywide Care Homes Ltd T/A Gate,,,,,,,,,,,
Nottinghamshire County Council,1111/1001,Adult Social Care and Health,ASCH,Third Party Payments,EGA,10/10/2013,9-10510,"5,508.48",Wren Hall Nursing Home,,,,,,,,,,,
Nottinghamshire County Council,1111/1001,Adult Social Care and Health,ASCH,Third Party Payments,EGA,10/10/2013,9-10511,"1,270.29",Rose Court Lodge Care Home,,,,,,,,,,,
Nottinghamshire County Council,1111/1001,Adult Social Care and Health,ASCH,Third Party Payments,EGA,10/10/2013,9-10512,650.57,Hazelford Residential Home,,,,,,,,,,,
Nottinghamshire County Council,1111/1001,Adult Social Care and Health,ASCH,Third Party Payments,EGA,10/10/2013,9-10513,780,Ascot House Residential Home,,,,,,,,,,,
Nottinghamshire County Council,1111/1001,Adult Social Care and Health,ASCH,Third Party Payments,EGA,10/10/2013,9-10514,"2,904.57",Field House Nursing Home,,,,,,,,,,,
Nottinghamshire County Council,1111/1001,Adult Social Care and Health,ASCH,Third Party Payments,EGA,10/10/2013,9-10515,884,Giltbrook Carehomes Ltd,,,,,,,,,,,
Nottinghamshire County Council,1111/1001,Adult Social Care and Health,ASCH,Third Party Payments,EGA,10/10/2013,9-10516,"4,435.57",Glenesk,,,,,,,,,,,
Nottinghamshire County Council,1111/1001,Adult Social Care and Health,ASCH,Third Party Payments,EGA,10/10/2013,9-10517,"2,822.86",Glenesk,,,,,,,,,,,
Nottinghamshire County Council,1111/1001,Adult Social Care and Health,ASCH,Third Party Payments,EGA,10/10/2013,9-10518,"1,885.71",Hatzfeld Care Ltd,,,,,,,,,,,
Nottinghamshire County Council,1111/1001,Adult Social Care and Health,ASCH,Third Party Payments,EGA,10/10/2013,9-10519,884,Brookside House Resi Care Home,,,,,,,,,,,
Nottinghamshire County Council,1111/1001,Adult Social Care and Health,ASCH,Third Party Payments,EGA,10/10/2013,9-10520,"7,158.86",Victoria Care Home,,,,,,,,,,,
Nottinghamshire County Council,1111/1001,Adult Social Care and Health,ASCH,Third Party Payments,EGA,10/10/2013,9-10521,"4,234.29",Westfield Residential Home,,,,,,,,,,,
Nottinghamshire County Council,1111/1001,Adult Social Care and Health,ASCH,Third Party Payments,EGA,10/10/2013,9-10522,798,South Collingham Hall,,,,,,,,,,,
Nottinghamshire County Council,1111/1001,Adult Social Care and Health,ASCH,Third Party Payments,EGA,10/10/2013,9-10523,"1,096.00",Blyth Country House Care Home,,,,,,,,,,,
Nottinghamshire County Council,1111/1001,Adult Social Care and Health,ASCH,Third Party Payments,EGA,10/10/2013,9-10524,"2,583.43",Blyth Country House Care Home,,,,,,,,,,,
Nottinghamshire County Council,1111/1001,Adult Social Care and Health,ASCH,Third Party Payments,EGA,10/10/2013,9-10525,"1,560.00",St Saviours Care Home,,,,,,,,,,,
Nottinghamshire County Council,1111/1001,Adult Social Care and Health,ASCH,Third Party Payments,EGA,10/10/2013,9-10526,"1,560.00",St Saviours Care Home,,,,,,,,,,,
Nottinghamshire County Council,1111/1001,Adult Social Care and Health,ASCH,Third Party Payments,EGA,10/10/2013,9-10527,"1,161.00",Cherry Holt Care Home,,,,,,,,,,,
Nottinghamshire County Council,1111/1001,Adult Social Care and Health,ASCH,Third Party Payments,EGA,10/10/2013,9-10528,932.48,Cumberworth Lodge,,,,,,,,,,,
Nottinghamshire County Council,1111/1001,Adult Social Care and Health,ASCH,Third Party Payments,EGA,10/10/2013,9-10529,"2,273.14",Southwell Court Care Home,,,,,,,,,,,
Nottinghamshire County Council,1111/1001,Adult Social Care and Health,ASCH,Third Party Payments,EGA,10/10/2013,9-10530,"2,652.00",Southwell Court Care Home,,,,,,,,,,,
Nottinghamshire County Council,1111/1001,Adult Social Care and Health,ASCH,Third Party Payments,EGA,10/10/2013,9-10531,"1,203.43",Heritage Care,,,,,,,,,,,
Nottinghamshire County Council,1111/1001,Adult Social Care and Health,ASCH,Third Party Payments,EGA,10/10/2013,9-10532,"1,582.00",Portland Residential College,,,,,,,,,,,
Nottinghamshire County Council,1111/1001,Adult Social Care and Health,ASCH,Third Party Payments,EGA,10/10/2013,9-10533,"1,905.43",Braywood Gardens,,,,,,,,,,,
Nottinghamshire County Council,1111/1001,Adult Social Care and Health,ASCH,Third Party Payments,EGA,10/10/2013,9-10534,"1,270.29",Braywood Gardens,,,,,,,,,,,
Nottinghamshire County Council,1111/1001,Adult Social Care and Health,ASCH,Third Party Payments,EGA,10/10/2013,9-10535,"1,976.00",Braywood Gardens,,,,,,,,,,,
Nottinghamshire County Council,1111/1001,Adult Social Care and Health,ASCH,Third Party Payments,EGA,10/10/2013,9-10536,"2,280.71",Bramwell,,,,,,,,,,,
Nottinghamshire County Council,1111/1001,Adult Social Care and Health,ASCH,Third Party Payments,EGA,10/10/2013,9-10537,"1,986.43",Bramwell,,,,,,,,,,,
Nottinghamshire County Council,1111/1001,Adult Social Care and Health,ASCH,Third Party Payments,EGA,10/10/2013,9-10538,"4,782.14",Bramwell,,,,,,,,,,,
Nottinghamshire County Council,1111/1001,Adult Social Care and Health,ASCH,Third Party Payments,EGA,10/10/2013,9-10539,"6,280.86",Bramwell,,,,,,,,,,,
Nottinghamshire County Council,1111/1001,Adult Social Care and Health,ASCH,Third Party Payments,EGA,10/10/2013,9-10540,"3,105.14",Maun View,,,,,,,,,,,
Nottinghamshire County Council,1111/1001,Adult Social Care and Health,ASCH,Third Party Payments,EGA,10/10/2013,9-10541,817.14,Westwood,,,,,,,,,,,
Nottinghamshire County Council,1111/1001,Adult Social Care and Health,ASCH,Third Party Payments,EGA,10/10/2013,9-10542,884,Westwood,,,,,,,,,,,
Nottinghamshire County Council,1111/1001,Adult Social Care and Health,ASCH,Third Party Payments,EGA,10/10/2013,9-10543,668.57,Westwood,,,,,,,,,,,
Nottinghamshire County Council,1111/1001,Adult Social Care and Health,ASCH,Third Party Payments,EGA,10/10/2013,9-10544,"1,708.57",Westwood,,,,,,,,,,,
Nottinghamshire County Council,1111/1001,Adult Social Care and Health,ASCH,Third Party Payments,EGA,10/10/2013,9-10545,"3,458.00",Leawood Manor,,,,,,,,,,,
Nottinghamshire County Council,1111/1001,Adult Social Care and Health,ASCH,Third Party Payments,EGA,10/10/2013,9-10546,969.43,Jubilee Court Nursing Home,,,,,,,,,,,
Nottinghamshire County Council,1111/1001,Adult Social Care and Health,ASCH,Third Party Payments,EGA,10/10/2013,9-10547,"1,952.00",Jubilee Court Nursing Home,,,,,,,,,,,
Nottinghamshire County Council,1111/1001,Adult Social Care and Health,ASCH,Third Party Payments,EGA,10/10/2013,9-10548,"1,872.00",Jubilee Court Nursing Home,,,,,,,,,,,
Nottinghamshire County Council,1111/1001,Adult Social Care and Health,ASCH,Third Party Payments,EGA,10/10/2013,9-10549,"2,088.00",Jubilee Court Nursing Home,,,,,,,,,,,
Nottinghamshire County Council,1111/1001,Adult Social Care and Health,ASCH,Third Party Payments,EGA,10/10/2013,9-10550,"2,088.00",Jubilee Court Nursing Home,,,,,,,,,,,
Nottinghamshire County Council,1111/1001,Adult Social Care and Health,ASCH,Third Party Payments,EGA,10/10/2013,9-10551,"1,872.00",Jubilee Court Nursing Home,,,,,,,,,,,
Nottinghamshire County Council,1111/1001,Adult Social Care and Health,ASCH,Third Party Payments,EGA,10/10/2013,9-10552,"2,088.00",Jubilee Court Nursing Home,,,,,,,,,,,
Nottinghamshire County Council,1111/1001,Adult Social Care and Health,ASCH,Third Party Payments,EGA,10/10/2013,9-10553,"1,872.00",Jubilee Court Nursing Home,,,,,,,,,,,
Nottinghamshire County Council,1111/1001,Adult Social Care and Health,ASCH,Third Party Payments,EGA,10/10/2013,9-10554,"2,088.00",Jubilee Court Nursing Home,,,,,,,,,,,
Nottinghamshire County Council,1111/1001,Adult Social Care and Health,ASCH,Third Party Payments,EGA,10/10/2013,9-10555,"2,088.00",Jubilee Court Nursing Home,,,,,,,,,,,
Nottinghamshire County Council,1111/1001,Adult Social Care and Health,ASCH,Third Party Payments,EGA,10/10/2013,9-10556,"1,872.00",Jubilee Court Nursing Home,,,,,,,,,,,
Nottinghamshire County Council,1111/1001,Adult Social Care and Health,ASCH,Third Party Payments,EGA,10/10/2013,9-10557,"2,527.16",Jubilee Court Nursing Home,,,,,,,,,,,
Nottinghamshire County Council,1111/1001,Adult Social Care and Health,ASCH,Third Party Payments,EGA,10/10/2013,9-10558,"1,872.00",Jubilee Court Nursing Home,,,,,,,,,,,
Nottinghamshire County Council,1111/1001,Adult Social Care and Health,ASCH,Third Party Payments,EGA,10/10/2013,9-10559,"2,088.00",Jubilee Court Nursing Home,,,,,,,,,,,
Nottinghamshire County Council,1111/1001,Adult Social Care and Health,ASCH,Third Party Payments,EGA,10/10/2013,9-10560,"1,872.00",Jubilee Court Nursing Home,,,,,,,,,,,
Nottinghamshire County Council,1111/1001,Adult Social Care and Health,ASCH,Third Party Payments,EGA,10/10/2013,9-10561,"2,088.00",Jubilee Court Nursing Home,,,,,,,,,,,
Nottinghamshire County Council,1111/1001,Adult Social Care and Health,ASCH,Third Party Payments,EGA,10/10/2013,9-10562,"2,088.00",Jubilee Court Nursing Home,,,,,,,,,,,
Nottinghamshire County Council,1111/1001,Adult Social Care and Health,ASCH,Third Party Payments,EGA,10/10/2013,9-10563,"2,088.00",Jubilee Court Nursing Home,,,,,,,,,,,
Nottinghamshire County Council,1111/1001,Adult Social Care and Health,ASCH,Third Party Payments,EGA,10/10/2013,9-10564,"1,872.00",Jubilee Court Nursing Home,,,,,,,,,,,
Nottinghamshire County Council,1111/1001,Adult Social Care and Health,ASCH,Third Party Payments,EGA,10/10/2013,9-10565,"1,872.00",Jubilee Court Nursing Home,,,,,,,,,,,
Nottinghamshire County Council,1111/1001,Adult Social Care and Health,ASCH,Third Party Payments,EGA,10/10/2013,9-10566,"1,872.00",Jubilee Court Nursing Home,,,,,,,,,,,
Nottinghamshire County Council,1111/1001,Adult Social Care and Health,ASCH,Third Party Payments,EGA,10/10/2013,9-10567,"1,872.00",Jubilee Court Nursing Home,,,,,,,,,,,
Nottinghamshire County Council,1111/1001,Adult Social Care and Health,ASCH,Third Party Payments,EGA,10/10/2013,9-10568,"2,674.29",Bowbridge Court,,,,,,,,,,,
Nottinghamshire County Council,1111/1001,Adult Social Care and Health,ASCH,Third Party Payments,EGA,10/10/2013,9-10569,"2,088.00",Sherwood Grange Care Ltd,,,,,,,,,,,
Nottinghamshire County Council,1111/1001,Adult Social Care and Health,ASCH,Third Party Payments,EGA,14/10/2013,9-10613,682.24,Social Care Solutions Ltd,,,,,,,,,,,
Nottinghamshire County Council,1111/1001,Adult Social Care and Health,ASCH,Third Party Payments,EGA,14/10/2013,9-10614,"11,782.71",Mears Care Ltd,,,,,,,,,,,
Nottinghamshire County Council,1111/1001,Adult Social Care and Health,ASCH,Third Party Payments,EGA,14/10/2013,9-10615,"15,219.46",Mears Care Ltd,,,,,,,,,,,
Nottinghamshire County Council,1111/1001,Adult Social Care and Health,ASCH,Third Party Payments,EGA,14/10/2013,9-10616,"15,219.46",Mears Care Ltd,,,,,,,,,,,
Nottinghamshire County Council,1111/1001,Adult Social Care and Health,ASCH,Third Party Payments,EGA,14/10/2013,9-10617,"3,903.26",DUPLICATE-Amg Nursing & Care Servic,,,,,,,,,,,
Nottinghamshire County Council,1111/1001,Adult Social Care and Health,ASCH,Third Party Payments,EGA,14/10/2013,9-10618,"3,846.08",DUPLICATE-Amg Nursing & Care Servic,,,,,,,,,,,
Nottinghamshire County Council,1111/1001,Adult Social Care and Health,ASCH,Third Party Payments,EGA,14/10/2013,9-10619,961.52,DUPLICATE-Amg Nursing & Care Servic,,,,,,,,,,,
Nottinghamshire County Council,1111/1001,Adult Social Care and Health,ASCH,Third Party Payments,EGA,14/10/2013,9-10620,"1,740.36",St Marys Convent,,,,,,,,,,,
Nottinghamshire County Council,1111/1001,Adult Social Care and Health,ASCH,Third Party Payments,EGA,14/10/2013,9-10621,"1,500.00",Park Farm Lodge Care Home,,,,,,,,,,,
Nottinghamshire County Council,1111/1001,Adult Social Care and Health,ASCH,Third Party Payments,EGA,14/10/2013,9-10622,"1,437.76",Hazeldine Nursing Home,,,,,,,,,,,
Nottinghamshire County Council,1111/1001,Adult Social Care and Health,ASCH,Third Party Payments,EGA,14/10/2013,9-10623,"1,631.84",Cumberworth Lodge,,,,,,,,,,,
Nottinghamshire County Council,1111/1001,Adult Social Care and Health,ASCH,Third Party Payments,EGA,14/10/2013,9-10624,"1,599.20",Cumberworth Lodge,,,,,,,,,,,
Nottinghamshire County Council,1111/1001,Adult Social Care and Health,ASCH,Third Party Payments,EGA,14/10/2013,9-10625,"1,453.96",Norwood Grange,,,,,,,,,,,
Nottinghamshire County Council,1111/1001,Adult Social Care and Health,ASCH,Third Party Payments,EGA,14/10/2013,9-10626,"3,320.24",The Hill - Leonard Cheshire Homes,,,,,,,,,,,
Nottinghamshire County Council,1111/1001,Adult Social Care and Health,ASCH,Third Party Payments,EGA,14/10/2013,9-10627,"5,124.48",Rose  Meadow,,,,,,,,,,,
Nottinghamshire County Council,1111/1001,Adult Social Care and Health,ASCH,Third Party Payments,EGA,14/10/2013,9-10628,"5,072.48",Rose  Meadow,,,,,,,,,,,
Nottinghamshire County Council,1111/1001,Adult Social Care and Health,ASCH,Third Party Payments,EGA,14/10/2013,9-10629,"3,983.76",Rose  Meadow,,,,,,,,,,,
Nottinghamshire County Council,1111/1001,Adult Social Care and Health,ASCH,Third Party Payments,EGA,14/10/2013,9-10630,"4,389.68",Rose  Meadow,,,,,,,,,,,
Nottinghamshire County Council,1111/1001,Adult Social Care and Health,ASCH,Third Party Payments,EGA,14/10/2013,9-10631,"4,692.00",Rose  Meadow,,,,,,,,,,,
Nottinghamshire County Council,1111/1001,Adult Social Care and Health,ASCH,Third Party Payments,EGA,14/10/2013,9-10632,"6,076.80",Rose  Meadow,,,,,,,,,,,
Nottinghamshire County Council,1111/1001,Adult Social Care and Health,ASCH,Third Party Payments,EGA,14/10/2013,9-10633,"1,697.40",Bywater Hall,,,,,,,,,,,
Nottinghamshire County Council,1111/1001,Adult Social Care and Health,ASCH,Third Party Payments,EGA,14/10/2013,9-10634,"1,994.60",Eglantine Villa Nursing & Residenti,,,,,,,,,,,
Nottinghamshire County Council,1111/1001,Adult Social Care and Health,ASCH,Third Party Payments,EGA,14/10/2013,9-10635,"1,728.00",Saxilby House Care Home,,,,,,,,,,,
Nottinghamshire County Council,1111/1001,Adult Social Care and Health,ASCH,Third Party Payments,EGA,14/10/2013,9-10636,"1,800.00",Waterside Grange Care Home,,,,,,,,,,,
Nottinghamshire County Council,1111/1001,Adult Social Care and Health,ASCH,Third Party Payments,EGA,14/10/2013,9-10637,"1,765.20",Waterside Grange Care Home,,,,,,,,,,,
Nottinghamshire County Council,1111/1001,Adult Social Care and Health,ASCH,Third Party Payments,EGA,14/10/2013,9-10638,"2,540.00",Awel Y Mor Care Home,,,,,,,,,,,
Nottinghamshire County Council,1111/1001,Adult Social Care and Health,ASCH,Third Party Payments,EGA,16/10/2013,9-10646,"1,608.00",Voyage Ltd,,,,,,,,,,,
Nottinghamshire County Council,1111/1001,Adult Social Care and Health,ASCH,Third Party Payments,EGA,16/10/2013,9-10647,"1,566.96",Voyage Ltd,,,,,,,,,,,
Nottinghamshire County Council,1111/1001,Adult Social Care and Health,ASCH,Third Party Payments,EGA,17/10/2013,9-10654,"8,791.50",Priority Homecare Ltd,,,,,,,,,,,
Nottinghamshire County Council,1111/1001,Adult Social Care and Health,ASCH,Third Party Payments,EGA,17/10/2013,9-10655,"4,712.17",Direct Health (uk) Ltd,,,,,,,,,,,
Nottinghamshire County Council,1111/1001,Adult Social Care and Health,ASCH,Third Party Payments,EGA,17/10/2013,9-10656,"10,063.44",Leda Homecare Ltd,,,,,,,,,,,
Nottinghamshire County Council,1111/1001,Adult Social Care and Health,ASCH,Third Party Payments,EGA,17/10/2013,9-10657,616.77,Mears Care Ltd,,,,,,,,,,,
Nottinghamshire County Council,1111/1001,Adult Social Care and Health,ASCH,Third Party Payments,EGA,17/10/2013,9-10658,"18,296.85",Direct Health (uk) Ltd,,,,,,,,,,,
Nottinghamshire County Council,1111/1001,Adult Social Care and Health,ASCH,Third Party Payments,EGA,17/10/2013,9-10659,"5,368.53",Mears Care Ltd,,,,,,,,,,,
Nottinghamshire County Council,1111/1001,Adult Social Care and Health,ASCH,Third Party Payments,EGA,17/10/2013,9-10660,"1,704.75",North Notts Crossroads Care,,,,,,,,,,,
Nottinghamshire County Council,1111/1001,Adult Social Care and Health,ASCH,Third Party Payments,EGA,17/10/2013,9-10661,"1,863.21",Crossroads Care East Midlands,,,,,,,,,,,
Nottinghamshire County Council,1111/1001,Adult Social Care and Health,ASCH,Third Party Payments,EGA,17/10/2013,9-10662,"3,237.40",Direct Health (uk) Ltd,,,,,,,,,,,
Nottinghamshire County Council,1111/1001,Adult Social Care and Health,ASCH,Third Party Payments,EGA,17/10/2013,9-10663,"1,975.40",Housing 21,,,,,,,,,,,
Nottinghamshire County Council,1111/1001,Adult Social Care and Health,ASCH,Third Party Payments,EGA,17/10/2013,9-10664,"1,154.39",Always There Homecare Ltd,,,,,,,,,,,
Nottinghamshire County Council,1111/1001,Adult Social Care and Health,ASCH,Third Party Payments,EGA,17/10/2013,9-10665,"2,324.66",Hatzfeld Care Ltd,,,,,,,,,,,
Nottinghamshire County Council,1111/1001,Adult Social Care and Health,ASCH,Third Party Payments,EGA,17/10/2013,9-10666,"8,409.76",Leda Homecare Ltd,,,,,,,,,,,
Nottinghamshire County Council,1111/1001,Adult Social Care and Health,ASCH,Third Party Payments,EGA,17/10/2013,9-10667,"3,333.31",Westminster Homecare Ltd,,,,,,,,,,,
Nottinghamshire County Council,1111/1001,Adult Social Care and Health,ASCH,Third Party Payments,EGA,17/10/2013,9-10668,"1,994.43",Medico Nursing & Homecare,,,,,,,,,,,
Nottinghamshire County Council,1111/1001,Adult Social Care and Health,ASCH,Third Party Payments,EGA,17/10/2013,9-10669,"5,508.14",North Notts Crossroads Care,,,,,,,,,,,
Nottinghamshire County Council,1111/1001,Adult Social Care and Health,ASCH,Third Party Payments,EGA,17/10/2013,9-10670,"1,946.12",Sterling Homecare Ltd,,,,,,,,,,,
Nottinghamshire County Council,1111/1001,Adult Social Care and Health,ASCH,Third Party Payments,EGA,17/10/2013,9-10671,"2,044.77",Premier Nursing Agency Ltd,,,,,,,,,,,
Nottinghamshire County Council,1111/1001,Adult Social Care and Health,ASCH,Third Party Payments,EGA,17/10/2013,9-10672,"3,592.35",Home Care Solution Ltd,,,,,,,,,,,
Nottinghamshire County Council,1111/1001,Adult Social Care and Health,ASCH,Third Party Payments,EGA,17/10/2013,9-10673,"2,807.35",The Human Support Group,,,,,,,,,,,
Nottinghamshire County Council,1111/1001,Adult Social Care and Health,ASCH,Third Party Payments,EGA,17/10/2013,9-10674,517.41,Priority Homecare Ltd,,,,,,,,,,,
Nottinghamshire County Council,1111/1001,Adult Social Care and Health,ASCH,Third Party Payments,EGA,17/10/2013,9-10675,"7,534.03",Calverton Supreme Home Care Ltd,,,,,,,,,,,
Nottinghamshire County Council,1111/1001,Adult Social Care and Health,ASCH,Third Party Payments,EGA,17/10/2013,9-10676,"9,737.23",Sterling Homecare Ltd,,,,,,,,,,,
Nottinghamshire County Council,1111/1001,Adult Social Care and Health,ASCH,Third Party Payments,EGA,17/10/2013,9-10677,"4,175.34",Rainbow Care Services Ltd,,,,,,,,,,,
Nottinghamshire County Council,1111/1001,Adult Social Care and Health,ASCH,Third Party Payments,EGA,17/10/2013,9-10678,"1,593.66",Notts Homecare Ltd,,,,,,,,,,,
Nottinghamshire County Council,1111/1001,Adult Social Care and Health,ASCH,Third Party Payments,EGA,17/10/2013,9-10679,"2,743.16",Mears Care Ltd,,,,,,,,,,,
Nottinghamshire County Council,1111/1001,Adult Social Care and Health,ASCH,Third Party Payments,EGA,17/10/2013,9-10680,"2,784.70",Housing 21,,,,,,,,,,,
Nottinghamshire County Council,1111/1001,Adult Social Care and Health,ASCH,Third Party Payments,EGA,17/10/2013,9-10681,"7,814.04",Care Uk Homecare Ltd,,,,,,,,,,,
Nottinghamshire County Council,1111/1001,Adult Social Care and Health,ASCH,Third Party Payments,EGA,17/10/2013,9-10682,"1,196.93",Medico Nursing & Homecare,,,,,,,,,,,
Nottinghamshire County Council,1111/1001,Adult Social Care and Health,ASCH,Third Party Payments,EGA,17/10/2013,9-10683,530.43,Premier Nursing Agency Ltd,,,,,,,,,,,
Nottinghamshire County Council,1111/1001,Adult Social Care and Health,ASCH,Third Party Payments,EGA,17/10/2013,9-10684,"2,103.05",Housing 21,,,,,,,,,,,
Nottinghamshire County Council,1111/1001,Adult Social Care and Health,ASCH,Third Party Payments,EGA,17/10/2013,9-10685,"6,991.76",Workwise Healthcare Ltd,,,,,,,,,,,
Nottinghamshire County Council,1111/1001,Adult Social Care and Health,ASCH,Third Party Payments,EGA,17/10/2013,9-10686,767.78,Westminster Homecare Ltd,,,,,,,,,,,
Nottinghamshire County Council,1111/1001,Adult Social Care and Health,ASCH,Third Party Payments,EGA,17/10/2013,9-10687,"5,571.38",Medico Nursing & Homecare,,,,,,,,,,,
Nottinghamshire County Council,1111/1001,Adult Social Care and Health,ASCH,Third Party Payments,EGA,17/10/2013,9-10688,"1,064.28",Always There Homecare Ltd,,,,,,,,,,,
Nottinghamshire County Council,1111/1001,Adult Social Care and Health,ASCH,Third Party Payments,EGA,17/10/2013,9-10689,"9,927.94",Sterling Homecare Ltd,,,,,,,,,,,
Nottinghamshire County Council,1111/1001,Adult Social Care and Health,ASCH,Third Party Payments,EGA,17/10/2013,9-10690,"1,518.11",Hatzfeld Care Ltd,,,,,,,,,,,
Nottinghamshire County Council,1111/1001,Adult Social Care and Health,ASCH,Third Party Payments,EGA,17/10/2013,9-10691,"2,892.54",Priority Homecare Ltd,,,,,,,,,,,
Nottinghamshire County Council,1111/1001,Adult Social Care and Health,ASCH,Third Party Payments,EGA,17/10/2013,9-10692,"1,596.17",Mediline Nurses & Carers Ltd,,,,,,,,,,,
Nottinghamshire County Council,1111/1001,Adult Social Care and Health,ASCH,Third Party Payments,EGA,17/10/2013,9-10693,"7,593.40",Priority Homecare Ltd,,,,,,,,,,,
Nottinghamshire County Council,1111/1001,Adult Social Care and Health,ASCH,Third Party Payments,EGA,17/10/2013,9-10694,"4,804.04",Hatzfeld Care Ltd,,,,,,,,,,,
Nottinghamshire County Council,1111/1001,Adult Social Care and Health,ASCH,Third Party Payments,EGA,17/10/2013,9-10695,"9,732.52",Crossroads Care East Midlands,,,,,,,,,,,
Nottinghamshire County Council,1111/1001,Adult Social Care and Health,ASCH,Third Party Payments,EGA,17/10/2013,9-10696,928.57,Always There Homecare Ltd,,,,,,,,,,,
Nottinghamshire County Council,1111/1001,Adult Social Care and Health,ASCH,Third Party Payments,EGA,17/10/2013,9-10697,"7,530.72",Sterling Homecare Ltd,,,,,,,,,,,
Nottinghamshire County Council,1111/1001,Adult Social Care and Health,ASCH,Third Party Payments,EGA,17/10/2013,9-10698,"8,288.64",Hatzfeld Care Ltd,,,,,,,,,,,
Nottinghamshire County Council,1111/1001,Adult Social Care and Health,ASCH,Third Party Payments,EGA,17/10/2013,9-10699,"1,710.46",Direct Health (uk) Ltd,,,,,,,,,,,
Nottinghamshire County Council,1111/1001,Adult Social Care and Health,ASCH,Third Party Payments,EGA,17/10/2013,9-10700,"11,244.83",Mears Care Ltd,,,,,,,,,,,
Nottinghamshire County Council,1111/1001,Adult Social Care and Health,ASCH,Third Party Payments,EGA,17/10/2013,9-10701,"7,659.03",Sterling Homecare Ltd,,,,,,,,,,,
Nottinghamshire County Council,1111/1001,Adult Social Care and Health,ASCH,Third Party Payments,EGA,17/10/2013,9-10702,658.95,Leda Homecare Ltd,,,,,,,,,,,
Nottinghamshire County Council,1111/1001,Adult Social Care and Health,ASCH,Third Party Payments,EGA,17/10/2013,9-10703,"13,030.86",Direct Health (uk) Ltd,,,,,,,,,,,
Nottinghamshire County Council,1111/1001,Adult Social Care and Health,ASCH,Third Party Payments,EGA,17/10/2013,9-10704,"7,243.90",Sterling Homecare Ltd,,,,,,,,,,,
Nottinghamshire County Council,1111/1001,Adult Social Care and Health,ASCH,Third Party Payments,EGA,17/10/2013,9-10705,"6,990.34",Care Uk Homecare Ltd,,,,,,,,,,,
Nottinghamshire County Council,1111/1001,Adult Social Care and Health,ASCH,Third Party Payments,EGA,17/10/2013,9-10706,"1,552.67",Crossroads Care East Midlands,,,,,,,,,,,
Nottinghamshire County Council,1111/1001,Adult Social Care and Health,ASCH,Third Party Payments,EGA,17/10/2013,9-10707,884.68,Housing 21,,,,,,,,,,,
Nottinghamshire County Council,1111/1001,Adult Social Care and Health,ASCH,Third Party Payments,EGA,17/10/2013,9-10708,"1,039.18",The Human Support Group,,,,,,,,,,,
Nottinghamshire County Council,1111/1001,Adult Social Care and Health,ASCH,Third Party Payments,EGA,17/10/2013,9-10709,"1,905.45",North Notts Crossroads Care,,,,,,,,,,,
Nottinghamshire County Council,1111/1001,Adult Social Care and Health,ASCH,Third Party Payments,EGA,17/10/2013,9-10710,621.35,Medico Nursing & Homecare,,,,,,,,,,,
Nottinghamshire County Council,1111/1001,Adult Social Care and Health,ASCH,Third Party Payments,EGA,17/10/2013,9-10711,"5,650.37",Workwise Healthcare Ltd,,,,,,,,,,,
Nottinghamshire County Council,1111/1001,Adult Social Care and Health,ASCH,Third Party Payments,EGA,17/10/2013,9-10712,"3,274.45",Priority Homecare Ltd,,,,,,,,,,,
Nottinghamshire County Council,1111/1001,Adult Social Care and Health,ASCH,Third Party Payments,EGA,17/10/2013,9-10713,710.42,Medico Nursing & Homecare,,,,,,,,,,,
Nottinghamshire County Council,1111/1001,Adult Social Care and Health,ASCH,Third Party Payments,EGA,17/10/2013,9-10714,"6,258.60",Direct Health (uk) Ltd,,,,,,,,,,,
Nottinghamshire County Council,1111/1001,Adult Social Care and Health,ASCH,Third Party Payments,EGA,17/10/2013,9-10715,"1,859.22",Home Care Solution Ltd,,,,,,,,,,,
Nottinghamshire County Council,1111/1001,Adult Social Care and Health,ASCH,Third Party Payments,EGA,17/10/2013,9-10716,"1,420.75",Sterling Homecare Ltd,,,,,,,,,,,
Nottinghamshire County Council,1111/1001,Adult Social Care and Health,ASCH,Third Party Payments,EGA,17/10/2013,9-10717,"3,239.07",Care Uk Homecare Ltd,,,,,,,,,,,
Nottinghamshire County Council,1111/1001,Adult Social Care and Health,ASCH,Third Party Payments,EGA,17/10/2013,9-10718,"13,001.01",Care Uk Homecare Ltd,,,,,,,,,,,
Nottinghamshire County Council,1111/1001,Adult Social Care and Health,ASCH,Third Party Payments,EGA,17/10/2013,9-10719,865.25,Amg Nursing & Care Services Ltd,,,,,,,,,,,
Nottinghamshire County Council,1111/1001,Adult Social Care and Health,ASCH,Third Party Payments,EGA,17/10/2013,9-10720,"7,966.18",North Notts Crossroads Care,,,,,,,,,,,
Nottinghamshire County Council,1111/1001,Adult Social Care and Health,ASCH,Third Party Payments,EGA,17/10/2013,9-10721,"6,142.80",Westminster Homecare Ltd,,,,,,,,,,,
Nottinghamshire County Council,1111/1001,Adult Social Care and Health,ASCH,Third Party Payments,EGA,17/10/2013,9-10722,"1,191.09",Premier Nursing Agency Ltd,,,,,,,,,,,
Nottinghamshire County Council,1111/1001,Adult Social Care and Health,ASCH,Third Party Payments,EGA,17/10/2013,9-10723,561.99,Housing 21,,,,,,,,,,,
Nottinghamshire County Council,1111/1001,Adult Social Care and Health,ASCH,Third Party Payments,EGA,17/10/2013,9-10724,"3,269.23",Medico Nursing & Homecare,,,,,,,,,,,
Nottinghamshire County Council,1111/1001,Adult Social Care and Health,ASCH,Third Party Payments,EGA,17/10/2013,9-10725,"4,719.63",Notts Homecare Ltd,,,,,,,,,,,
Nottinghamshire County Council,1111/1001,Adult Social Care and Health,ASCH,Third Party Payments,EGA,17/10/2013,9-10736,"3,071.84",Enable Housing Assoc Ltd,,,,,,,,,,,
Nottinghamshire County Council,1111/1001,Adult Social Care and Health,ASCH,Third Party Payments,EGA,17/10/2013,9-10737,"3,765.36",Social Care Solutions Ltd,,,,,,,,,,,
Nottinghamshire County Council,1111/1001,Adult Social Care and Health,ASCH,Third Party Payments,EGA,17/10/2013,9-10738,"6,170.80",Fitzroy,,,,,,,,,,,
Nottinghamshire County Council,1111/1001,Adult Social Care and Health,ASCH,Third Party Payments,EGA,22/10/2013,9-10768,"1,288.80",Lifeways Community Care Ltd,,,,,,,,,,,
Nottinghamshire County Council,1111/1001,Adult Social Care and Health,ASCH,Third Party Payments,EGA,23/10/2013,9-10793,954.72,Lifeways Community Care Ltd,,,,,,,,,,,
Nottinghamshire County Council,1111/1001,Adult Social Care and Health,ASCH,Third Party Payments,EGA,24/10/2013,9-10794,"2,864.65",The Human Support Group,,,,,,,,,,,
Nottinghamshire County Council,1111/1001,Adult Social Care and Health,ASCH,Third Party Payments,EGA,24/10/2013,9-10795,"2,116.18",Premier Nursing Agency Ltd,,,,,,,,,,,
Nottinghamshire County Council,1111/1001,Adult Social Care and Health,ASCH,Third Party Payments,EGA,24/10/2013,9-10796,"1,608.03",Notts Homecare Ltd,,,,,,,,,,,
Nottinghamshire County Council,1111/1001,Adult Social Care and Health,ASCH,Third Party Payments,EGA,24/10/2013,9-10797,"8,987.76",Sterling Homecare Ltd,,,,,,,,,,,
Nottinghamshire County Council,1111/1001,Adult Social Care and Health,ASCH,Third Party Payments,EGA,24/10/2013,9-10798,"2,692.60",Housing 21,,,,,,,,,,,
Nottinghamshire County Council,1111/1001,Adult Social Care and Health,ASCH,Third Party Payments,EGA,24/10/2013,9-10799,"3,797.71",Home Care Solution Ltd,,,,,,,,,,,
Nottinghamshire County Council,1111/1001,Adult Social Care and Health,ASCH,Third Party Payments,EGA,24/10/2013,9-10800,"2,769.85",Mears Care Ltd,,,,,,,,,,,
Nottinghamshire County Council,1111/1001,Adult Social Care and Health,ASCH,Third Party Payments,EGA,24/10/2013,9-10801,532.19,Priority Homecare Ltd,,,,,,,,,,,
Nottinghamshire County Council,1111/1001,Adult Social Care and Health,ASCH,Third Party Payments,EGA,24/10/2013,9-10802,"4,050.90",Rainbow Care Services Ltd,,,,,,,,,,,
Nottinghamshire County Council,1111/1001,Adult Social Care and Health,ASCH,Third Party Payments,EGA,24/10/2013,9-10803,"7,835.41",Care Uk Homecare Ltd,,,,,,,,,,,
Nottinghamshire County Council,1111/1001,Adult Social Care and Health,ASCH,Third Party Payments,EGA,24/10/2013,9-10804,"8,821.99",Hatzfeld Care Ltd,,,,,,,,,,,
Nottinghamshire County Council,1111/1001,Adult Social Care and Health,ASCH,Third Party Payments,EGA,24/10/2013,9-10805,"8,591.79",Calverton Supreme Home Care Ltd,,,,,,,,,,,
Nottinghamshire County Council,1111/1001,Adult Social Care and Health,ASCH,Third Party Payments,EGA,24/10/2013,9-10806,"7,817.24",Workwise Healthcare Ltd,,,,,,,,,,,
Nottinghamshire County Council,1111/1001,Adult Social Care and Health,ASCH,Third Party Payments,EGA,24/10/2013,9-10807,873.84,Westminster Homecare Ltd,,,,,,,,,,,
Nottinghamshire County Council,1111/1001,Adult Social Care and Health,ASCH,Third Party Payments,EGA,24/10/2013,9-10808,"1,155.76",Medico Nursing & Homecare,,,,,,,,,,,
Nottinghamshire County Council,1111/1001,Adult Social Care and Health,ASCH,Third Party Payments,EGA,24/10/2013,9-10809,998.91,Always There Homecare Ltd,,,,,,,,,,,
Nottinghamshire County Council,1111/1001,Adult Social Care and Health,ASCH,Third Party Payments,EGA,24/10/2013,9-10810,"2,035.75",Housing 21,,,,,,,,,,,
Nottinghamshire County Council,1111/1001,Adult Social Care and Health,ASCH,Third Party Payments,EGA,24/10/2013,9-10811,"5,230.28",Medico Nursing & Homecare,,,,,,,,,,,
Nottinghamshire County Council,1111/1001,Adult Social Care and Health,ASCH,Third Party Payments,EGA,24/10/2013,9-10812,"1,337.06",Hatzfeld Care Ltd,,,,,,,,,,,
Nottinghamshire County Council,1111/1001,Adult Social Care and Health,ASCH,Third Party Payments,EGA,24/10/2013,9-10813,"10,164.57",Sterling Homecare Ltd,,,,,,,,,,,
Nottinghamshire County Council,1111/1001,Adult Social Care and Health,ASCH,Third Party Payments,EGA,24/10/2013,9-10814,"1,557.87",Mediline Nurses & Carers Ltd,,,,,,,,,,,
Nottinghamshire County Council,1111/1001,Adult Social Care and Health,ASCH,Third Party Payments,EGA,24/10/2013,9-10815,"2,919.15",Priority Homecare Ltd,,,,,,,,,,,
Nottinghamshire County Council,1111/1001,Adult Social Care and Health,ASCH,Third Party Payments,EGA,24/10/2013,9-10816,"9,521.91",Crossroads Care East Midlands,,,,,,,,,,,
Nottinghamshire County Council,1111/1001,Adult Social Care and Health,ASCH,Third Party Payments,EGA,24/10/2013,9-10817,"4,626.52",Hatzfeld Care Ltd,,,,,,,,,,,
Nottinghamshire County Council,1111/1001,Adult Social Care and Health,ASCH,Third Party Payments,EGA,24/10/2013,9-10818,"7,838.04",Priority Homecare Ltd,,,,,,,,,,,
Nottinghamshire County Council,1111/1001,Adult Social Care and Health,ASCH,Third Party Payments,EGA,24/10/2013,9-10819,"7,059.71",Sterling Homecare Ltd,,,,,,,,,,,
Nottinghamshire County Council,1111/1001,Adult Social Care and Health,ASCH,Third Party Payments,EGA,24/10/2013,9-10820,"7,949.35",Sterling Homecare Ltd,,,,,,,,,,,
Nottinghamshire County Council,1111/1001,Adult Social Care and Health,ASCH,Third Party Payments,EGA,24/10/2013,9-10821,"10,977.69",Mears Care Ltd,,,,,,,,,,,
Nottinghamshire County Council,1111/1001,Adult Social Care and Health,ASCH,Third Party Payments,EGA,24/10/2013,9-10822,"1,786.50",Direct Health (uk) Ltd,,,,,,,,,,,
Nottinghamshire County Council,1111/1001,Adult Social Care and Health,ASCH,Third Party Payments,EGA,24/10/2013,9-10823,"1,034.27",Always There Homecare Ltd,,,,,,,,,,,
Nottinghamshire County Council,1111/1001,Adult Social Care and Health,ASCH,Third Party Payments,EGA,24/10/2013,9-10824,"6,913.67",Care Uk Homecare Ltd,,,,,,,,,,,
Nottinghamshire County Council,1111/1001,Adult Social Care and Health,ASCH,Third Party Payments,EGA,24/10/2013,9-10825,675.16,Leda Homecare Ltd,,,,,,,,,,,
Nottinghamshire County Council,1111/1001,Adult Social Care and Health,ASCH,Third Party Payments,EGA,24/10/2013,9-10826,"13,362.84",Direct Health (uk) Ltd,,,,,,,,,,,
Nottinghamshire County Council,1111/1001,Adult Social Care and Health,ASCH,Third Party Payments,EGA,24/10/2013,9-10827,"7,505.33",Sterling Homecare Ltd,,,,,,,,,,,
Nottinghamshire County Council,1111/1001,Adult Social Care and Health,ASCH,Third Party Payments,EGA,24/10/2013,9-10828,"4,746.27",Notts Homecare Ltd,,,,,,,,,,,
Nottinghamshire County Council,1111/1001,Adult Social Care and Health,ASCH,Third Party Payments,EGA,24/10/2013,9-10829,754.19,The Human Support Group,,,,,,,,,,,
Nottinghamshire County Council,1111/1001,Adult Social Care and Health,ASCH,Third Party Payments,EGA,24/10/2013,9-10830,"1,205.49",Crossroads Care East Midlands,,,,,,,,,,,
Nottinghamshire County Council,1111/1001,Adult Social Care and Health,ASCH,Third Party Payments,EGA,24/10/2013,9-10831,712.64,Medico Nursing & Homecare,,,,,,,,,,,
Nottinghamshire County Council,1111/1001,Adult Social Care and Health,ASCH,Third Party Payments,EGA,24/10/2013,9-10832,866.23,Housing 21,,,,,,,,,,,
Nottinghamshire County Council,1111/1001,Adult Social Care and Health,ASCH,Third Party Payments,EGA,24/10/2013,9-10833,"1,811.38",North Notts Crossroads Care,,,,,,,,,,,
Nottinghamshire County Council,1111/1001,Adult Social Care and Health,ASCH,Third Party Payments,EGA,24/10/2013,9-10834,"6,700.51",Direct Health (uk) Ltd,,,,,,,,,,,
Nottinghamshire County Council,1111/1001,Adult Social Care and Health,ASCH,Third Party Payments,EGA,24/10/2013,9-10835,"3,504.63",Priority Homecare Ltd,,,,,,,,,,,
Nottinghamshire County Council,1111/1001,Adult Social Care and Health,ASCH,Third Party Payments,EGA,24/10/2013,9-10836,677.69,Medico Nursing & Homecare,,,,,,,,,,,
Nottinghamshire County Council,1111/1001,Adult Social Care and Health,ASCH,Third Party Payments,EGA,24/10/2013,9-10837,"5,274.64",Workwise Healthcare Ltd,,,,,,,,,,,
Nottinghamshire County Council,1111/1001,Adult Social Care and Health,ASCH,Third Party Payments,EGA,24/10/2013,9-10838,"3,249.94",Medico Nursing & Homecare,,,,,,,,,,,
Nottinghamshire County Council,1111/1001,Adult Social Care and Health,ASCH,Third Party Payments,EGA,24/10/2013,9-10839,502.41,Premier Nursing Agency Ltd,,,,,,,,,,,
Nottinghamshire County Council,1111/1001,Adult Social Care and Health,ASCH,Third Party Payments,EGA,24/10/2013,9-10840,"3,067.23",Care Uk Homecare Ltd,,,,,,,,,,,
Nottinghamshire County Council,1111/1001,Adult Social Care and Health,ASCH,Third Party Payments,EGA,24/10/2013,9-10841,"1,729.13",Home Care Solution Ltd,,,,,,,,,,,
Nottinghamshire County Council,1111/1001,Adult Social Care and Health,ASCH,Third Party Payments,EGA,24/10/2013,9-10842,"1,481.27",Sterling Homecare Ltd,,,,,,,,,,,
Nottinghamshire County Council,1111/1001,Adult Social Care and Health,ASCH,Third Party Payments,EGA,24/10/2013,9-10843,912.61,Amg Nursing & Care Services Ltd,,,,,,,,,,,
Nottinghamshire County Council,1111/1001,Adult Social Care and Health,ASCH,Third Party Payments,EGA,24/10/2013,9-10844,"13,171.73",Care Uk Homecare Ltd,,,,,,,,,,,
Nottinghamshire County Council,1111/1001,Adult Social Care and Health,ASCH,Third Party Payments,EGA,24/10/2013,9-10845,"7,707.63",North Notts Crossroads Care,,,,,,,,,,,
Nottinghamshire County Council,1111/1001,Adult Social Care and Health,ASCH,Third Party Payments,EGA,24/10/2013,9-10846,"5,759.04",Westminster Homecare Ltd,,,,,,,,,,,
Nottinghamshire County Council,1111/1001,Adult Social Care and Health,ASCH,Third Party Payments,EGA,24/10/2013,9-10847,"1,077.38",Premier Nursing Agency Ltd,,,,,,,,,,,
Nottinghamshire County Council,1111/1001,Adult Social Care and Health,ASCH,Third Party Payments,EGA,24/10/2013,9-10848,625.59,Housing 21,,,,,,,,,,,
Nottinghamshire County Council,1111/1001,Adult Social Care and Health,ASCH,Third Party Payments,EGA,24/10/2013,9-10849,"4,894.45",Direct Health (uk) Ltd,,,,,,,,,,,
Nottinghamshire County Council,1111/1001,Adult Social Care and Health,ASCH,Third Party Payments,EGA,24/10/2013,9-10850,"18,729.60",Direct Health (uk) Ltd,,,,,,,,,,,
Nottinghamshire County Council,1111/1001,Adult Social Care and Health,ASCH,Third Party Payments,EGA,24/10/2013,9-10851,"8,105.97",Priority Homecare Ltd,,,,,,,,,,,
Nottinghamshire County Council,1111/1001,Adult Social Care and Health,ASCH,Third Party Payments,EGA,24/10/2013,9-10852,567.24,Mears Care Ltd,,,,,,,,,,,
Nottinghamshire County Council,1111/1001,Adult Social Care and Health,ASCH,Third Party Payments,EGA,24/10/2013,9-10853,"5,252.75",Mears Care Ltd,,,,,,,,,,,
Nottinghamshire County Council,1111/1001,Adult Social Care and Health,ASCH,Third Party Payments,EGA,24/10/2013,9-10854,"3,479.90",Direct Health (uk) Ltd,,,,,,,,,,,
Nottinghamshire County Council,1111/1001,Adult Social Care and Health,ASCH,Third Party Payments,EGA,24/10/2013,9-10855,"2,123.90",Crossroads Care East Midlands,,,,,,,,,,,
Nottinghamshire County Council,1111/1001,Adult Social Care and Health,ASCH,Third Party Payments,EGA,24/10/2013,9-10856,"10,564.97",Leda Homecare Ltd,,,,,,,,,,,
Nottinghamshire County Council,1111/1001,Adult Social Care and Health,ASCH,Third Party Payments,EGA,24/10/2013,9-10857,"1,305.27",North Notts Crossroads Care,,,,,,,,,,,
Nottinghamshire County Council,1111/1001,Adult Social Care and Health,ASCH,Third Party Payments,EGA,24/10/2013,9-10858,"3,305.19",Westminster Homecare Ltd,,,,,,,,,,,
Nottinghamshire County Council,1111/1001,Adult Social Care and Health,ASCH,Third Party Payments,EGA,24/10/2013,9-10859,"2,017.08",Housing 21,,,,,,,,,,,
Nottinghamshire County Council,1111/1001,Adult Social Care and Health,ASCH,Third Party Payments,EGA,24/10/2013,9-10860,"9,047.57",Leda Homecare Ltd,,,,,,,,,,,
Nottinghamshire County Council,1111/1001,Adult Social Care and Health,ASCH,Third Party Payments,EGA,24/10/2013,9-10861,"1,126.52",Always There Homecare Ltd,,,,,,,,,,,
Nottinghamshire County Council,1111/1001,Adult Social Care and Health,ASCH,Third Party Payments,EGA,24/10/2013,9-10862,"2,391.02",Hatzfeld Care Ltd,,,,,,,,,,,
Nottinghamshire County Council,1111/1001,Adult Social Care and Health,ASCH,Third Party Payments,EGA,24/10/2013,9-10863,"5,255.90",North Notts Crossroads Care,,,,,,,,,,,
Nottinghamshire County Council,1111/1001,Adult Social Care and Health,ASCH,Third Party Payments,EGA,24/10/2013,9-10864,"1,949.32",Medico Nursing & Homecare,,,,,,,,,,,
Nottinghamshire County Council,1111/1001,Adult Social Care and Health,ASCH,Third Party Payments,EGA,24/10/2013,9-10865,"1,887.58",Sterling Homecare Ltd,,,,,,,,,,,
Nottinghamshire County Council,1111/1001,Adult Social Care and Health,ASCH,Third Party Payments,EGA,25/10/2013,9-10876,"5,371.36",Thera East Midlands,,,,,,,,,,,
Nottinghamshire County Council,1111/1001,Adult Social Care and Health,ASCH,Third Party Payments,EGA,25/10/2013,9-10877,"5,898.25",Thera East Midlands,,,,,,,,,,,
Nottinghamshire County Council,1111/1001,Adult Social Care and Health,ASCH,Third Party Payments,EGA,25/10/2013,9-10878,"3,470.04",Thera East Midlands,,,,,,,,,,,
Nottinghamshire County Council,1111/1001,Adult Social Care and Health,ASCH,Third Party Payments,EGA,25/10/2013,9-10879,"1,171.64",Thera East Midlands,,,,,,,,,,,
Nottinghamshire County Council,1111/1001,Adult Social Care and Health,ASCH,Third Party Payments,EGA,25/10/2013,9-10880,"1,378.46",Capita Resourcing Social Care & Hou,,,,,,,,,,,
Nottinghamshire County Council,1111/1001,Adult Social Care and Health,ASCH,Third Party Payments,EGA,25/10/2013,9-10881,699.3,DUPLICATE-Blue Sky Care Ltd,,,,,,,,,,,
Nottinghamshire County Council,1111/1001,Adult Social Care and Health,ASCH,Third Party Payments,EGA,28/10/2013,9-10908,"3,339.68",Voyage Ltd,,,,,,,,,,,
Nottinghamshire County Council,1111/1001,Adult Social Care and Health,ASCH,Third Party Payments,EGA,28/10/2013,9-10909,"2,392.72",Voyage Ltd,,,,,,,,,,,
Nottinghamshire County Council,1111/1001,Adult Social Care and Health,ASCH,Third Party Payments,EGA,28/10/2013,9-10910,"3,339.68",Voyage Ltd,,,,,,,,,,,
Nottinghamshire County Council,1111/1001,Adult Social Care and Health,ASCH,Third Party Payments,EGA,28/10/2013,9-10911,"3,417.31",United Response,,,,,,,,,,,
Nottinghamshire County Council,1111/1001,Adult Social Care and Health,ASCH,Third Party Payments,EGA,28/10/2013,9-10912,"6,211.77",United Response,,,,,,,,,,,
Nottinghamshire County Council,1111/1001,Adult Social Care and Health,ASCH,Third Party Payments,EGA,28/10/2013,9-10913,"5,437.40",Fitzroy,,,,,,,,,,,
Nottinghamshire County Council,1111/1001,Adult Social Care and Health,ASCH,Third Party Payments,EGA,28/10/2013,9-10917,"2,246.16",Thera East Midlands,,,,,,,,,,,
Nottinghamshire County Council,1111/1001,Adult Social Care and Health,ASCH,Third Party Payments,EGA,28/10/2013,9-10921,"1,335.00",Grantham College,,,,,,,,,,,
Nottinghamshire County Council,1111/1001,Adult Social Care and Health,ASCH,Third Party Payments,EGA,28/10/2013,9-10922,"1,500.00",Craegmoor SYI Lincoln Priory,,,,,,,,,,,
Nottinghamshire County Council,1111/1001,Adult Social Care and Health,ASCH,Third Party Payments,EGA,28/10/2013,9-10927,"4,679.01",Heritage Care,,,,,,,,,,,
Nottinghamshire County Council,1111/1001,Adult Social Care and Health,ASCH,Third Party Payments,EGA,28/10/2013,9-10928,"7,030.80",Choice Support,,,,,,,,,,,
Nottinghamshire County Council,1111/1001,Adult Social Care and Health,ASCH,Third Party Payments,EGA,28/10/2013,9-11144,"68,821.12",Eden Supported Living Ltd,,,,,,,,,,,
Nottinghamshire County Council,1111/1001,Adult Social Care and Health,ASCH,Third Party Payments,EGA,29/10/2013,9-10930,"4,674.60",Lifeways Community Care Ltd,,,,,,,,,,,
Nottinghamshire County Council,1111/1001,Adult Social Care and Health,ASCH,Third Party Payments,EGA,29/10/2013,9-11161,"32,166.25",Eden Supported Living Ltd,,,,,,,,,,,
Nottinghamshire County Council,1111/1001,Adult Social Care and Health,ASCH,Third Party Payments,EGA,31/10/2013,9-10955,916.31,The Human Support Group,,,,,,,,,,,
Nottinghamshire County Council,1111/1001,Adult Social Care and Health,ASCH,Third Party Payments,EGA,31/10/2013,9-10956,"1,032.38",Crossroads Care East Midlands,,,,,,,,,,,
Nottinghamshire County Council,1111/1001,Adult Social Care and Health,ASCH,Third Party Payments,EGA,31/10/2013,9-10957,"3,683.56",Priority Homecare Ltd,,,,,,,,,,,
Nottinghamshire County Council,1111/1001,Adult Social Care and Health,ASCH,Third Party Payments,EGA,31/10/2013,9-10958,"2,135.63",Sterling Homecare Ltd,,,,,,,,,,,
Nottinghamshire County Council,1111/1001,Adult Social Care and Health,ASCH,Third Party Payments,EGA,31/10/2013,9-10959,"1,703.88",North Notts Crossroads Care,,,,,,,,,,,
Nottinghamshire County Council,1111/1001,Adult Social Care and Health,ASCH,Third Party Payments,EGA,31/10/2013,9-10960,764.74,Medico Nursing & Homecare,,,,,,,,,,,
Nottinghamshire County Council,1111/1001,Adult Social Care and Health,ASCH,Third Party Payments,EGA,31/10/2013,9-10961,"2,879.76",Care Uk Homecare Ltd,,,,,,,,,,,
Nottinghamshire County Council,1111/1001,Adult Social Care and Health,ASCH,Third Party Payments,EGA,31/10/2013,9-10962,"7,413.80",Direct Health (uk) Ltd,,,,,,,,,,,
Nottinghamshire County Council,1111/1001,Adult Social Care and Health,ASCH,Third Party Payments,EGA,31/10/2013,9-10963,"5,613.48",Workwise Healthcare Ltd,,,,,,,,,,,
Nottinghamshire County Council,1111/1001,Adult Social Care and Health,ASCH,Third Party Payments,EGA,31/10/2013,9-10964,"1,053.82",Premier Nursing Agency Ltd,,,,,,,,,,,
Nottinghamshire County Council,1111/1001,Adult Social Care and Health,ASCH,Third Party Payments,EGA,31/10/2013,9-10965,607.39,Housing 21,,,,,,,,,,,
Nottinghamshire County Council,1111/1001,Adult Social Care and Health,ASCH,Third Party Payments,EGA,31/10/2013,9-10966,"3,661.85",Medico Nursing & Homecare,,,,,,,,,,,
Nottinghamshire County Council,1111/1001,Adult Social Care and Health,ASCH,Third Party Payments,EGA,31/10/2013,9-10967,"13,586.12",Care Uk Homecare Ltd,,,,,,,,,,,
Nottinghamshire County Council,1111/1001,Adult Social Care and Health,ASCH,Third Party Payments,EGA,31/10/2013,9-10968,"5,902.58",Westminster Homecare Ltd,,,,,,,,,,,
Nottinghamshire County Council,1111/1001,Adult Social Care and Health,ASCH,Third Party Payments,EGA,31/10/2013,9-10969,878.82,Housing 21,,,,,,,,,,,
Nottinghamshire County Council,1111/1001,Adult Social Care and Health,ASCH,Third Party Payments,EGA,31/10/2013,9-10970,502.18,Premier Nursing Agency Ltd,,,,,,,,,,,
Nottinghamshire County Council,1111/1001,Adult Social Care and Health,ASCH,Third Party Payments,EGA,31/10/2013,9-10971,"8,633.09",North Notts Crossroads Care,,,,,,,,,,,
Nottinghamshire County Council,1111/1001,Adult Social Care and Health,ASCH,Third Party Payments,EGA,31/10/2013,9-10972,943.63,Amg Nursing & Care Services Ltd,,,,,,,,,,,
Nottinghamshire County Council,1111/1001,Adult Social Care and Health,ASCH,Third Party Payments,EGA,31/10/2013,9-10973,"2,791.63",Home Care Solution Ltd,,,,,,,,,,,
Nottinghamshire County Council,1111/1001,Adult Social Care and Health,ASCH,Third Party Payments,EGA,31/10/2013,9-10974,"5,363.64",Notts Homecare Ltd,,,,,,,,,,,
Nottinghamshire County Council,1111/1001,Adult Social Care and Health,ASCH,Third Party Payments,EGA,31/10/2013,9-10975,"7,075.21",Sterling Homecare Ltd,,,,,,,,,,,
Nottinghamshire County Council,1111/1001,Adult Social Care and Health,ASCH,Third Party Payments,EGA,31/10/2013,9-10976,"9,510.45",Crossroads Care East Midlands,,,,,,,,,,,
Nottinghamshire County Council,1111/1001,Adult Social Care and Health,ASCH,Third Party Payments,EGA,31/10/2013,9-10977,"7,694.88",Priority Homecare Ltd,,,,,,,,,,,
Nottinghamshire County Council,1111/1001,Adult Social Care and Health,ASCH,Third Party Payments,EGA,31/10/2013,9-10978,"4,679.75",Hatzfeld Care Ltd,,,,,,,,,,,
Nottinghamshire County Council,1111/1001,Adult Social Care and Health,ASCH,Third Party Payments,EGA,31/10/2013,9-10979,"8,201.59",Sterling Homecare Ltd,,,,,,,,,,,
Nottinghamshire County Council,1111/1001,Adult Social Care and Health,ASCH,Third Party Payments,EGA,31/10/2013,9-10980,"11,464.33",Mears Care Ltd,,,,,,,,,,,
Nottinghamshire County Council,1111/1001,Adult Social Care and Health,ASCH,Third Party Payments,EGA,31/10/2013,9-10981,"6,530.36",Sterling Homecare Ltd,,,,,,,,,,,
Nottinghamshire County Council,1111/1001,Adult Social Care and Health,ASCH,Third Party Payments,EGA,31/10/2013,9-10982,"13,646.90",Direct Health (uk) Ltd,,,,,,,,,,,
Nottinghamshire County Council,1111/1001,Adult Social Care and Health,ASCH,Third Party Payments,EGA,31/10/2013,9-10983,"1,041.10",Always There Homecare Ltd,,,,,,,,,,,
Nottinghamshire County Council,1111/1001,Adult Social Care and Health,ASCH,Third Party Payments,EGA,31/10/2013,9-10984,"1,627.43",Direct Health (uk) Ltd,,,,,,,,,,,
Nottinghamshire County Council,1111/1001,Adult Social Care and Health,ASCH,Third Party Payments,EGA,31/10/2013,9-10985,571.21,Leda Homecare Ltd,,,,,,,,,,,
Nottinghamshire County Council,1111/1001,Adult Social Care and Health,ASCH,Third Party Payments,EGA,31/10/2013,9-10986,"8,033.90",Care Uk Homecare Ltd,,,,,,,,,,,
Nottinghamshire County Council,1111/1001,Adult Social Care and Health,ASCH,Third Party Payments,EGA,31/10/2013,9-10987,"8,132.37",Care Uk Homecare Ltd,,,,,,,,,,,
Nottinghamshire County Council,1111/1001,Adult Social Care and Health,ASCH,Third Party Payments,EGA,31/10/2013,9-10988,"2,497.60",The Human Support Group,,,,,,,,,,,
Nottinghamshire County Council,1111/1001,Adult Social Care and Health,ASCH,Third Party Payments,EGA,31/10/2013,9-10989,"8,710.30",Sterling Homecare Ltd,,,,,,,,,,,
Nottinghamshire County Council,1111/1001,Adult Social Care and Health,ASCH,Third Party Payments,EGA,31/10/2013,9-10990,"4,138.95",Rainbow Care Services Ltd,,,,,,,,,,,
Nottinghamshire County Council,1111/1001,Adult Social Care and Health,ASCH,Third Party Payments,EGA,31/10/2013,9-10991,"1,487.27",Notts Homecare Ltd,,,,,,,,,,,
Nottinghamshire County Council,1111/1001,Adult Social Care and Health,ASCH,Third Party Payments,EGA,31/10/2013,9-10992,"2,276.81",Mears Care Ltd,,,,,,,,,,,
Nottinghamshire County Council,1111/1001,Adult Social Care and Health,ASCH,Third Party Payments,EGA,31/10/2013,9-10993,"8,065.09",Calverton Supreme Home Care Ltd,,,,,,,,,,,
Nottinghamshire County Council,1111/1001,Adult Social Care and Health,ASCH,Third Party Payments,EGA,31/10/2013,9-10994,"1,205.25",Medico Nursing & Homecare,,,,,,,,,,,
Nottinghamshire County Council,1111/1001,Adult Social Care and Health,ASCH,Third Party Payments,EGA,31/10/2013,9-10995,"2,752.93",Housing 21,,,,,,,,,,,
Nottinghamshire County Council,1111/1001,Adult Social Care and Health,ASCH,Third Party Payments,EGA,31/10/2013,9-10996,"3,810.37",Premier Nursing Agency Ltd,,,,,,,,,,,
Nottinghamshire County Council,1111/1001,Adult Social Care and Health,ASCH,Third Party Payments,EGA,31/10/2013,9-10997,997.77,Always There Homecare Ltd,,,,,,,,,,,
Nottinghamshire County Council,1111/1001,Adult Social Care and Health,ASCH,Third Party Payments,EGA,31/10/2013,9-10998,899.28,Westminster Homecare Ltd,,,,,,,,,,,
Nottinghamshire County Council,1111/1001,Adult Social Care and Health,ASCH,Third Party Payments,EGA,31/10/2013,9-10999,"9,238.44",Hatzfeld Care Ltd,,,,,,,,,,,
Nottinghamshire County Council,1111/1001,Adult Social Care and Health,ASCH,Third Party Payments,EGA,31/10/2013,9-11000,528,Priority Homecare Ltd,,,,,,,,,,,
Nottinghamshire County Council,1111/1001,Adult Social Care and Health,ASCH,Third Party Payments,EGA,31/10/2013,9-11001,"7,533.63",Workwise Healthcare Ltd,,,,,,,,,,,
Nottinghamshire County Council,1111/1001,Adult Social Care and Health,ASCH,Third Party Payments,EGA,31/10/2013,9-11002,"2,989.75",Home Care Solution Ltd,,,,,,,,,,,
Nottinghamshire County Council,1111/1001,Adult Social Care and Health,ASCH,Third Party Payments,EGA,31/10/2013,9-11003,"10,389.27",Sterling Homecare Ltd,,,,,,,,,,,
Nottinghamshire County Council,1111/1001,Adult Social Care and Health,ASCH,Third Party Payments,EGA,31/10/2013,9-11004,"1,833.20",Housing 21,,,,,,,,,,,
Nottinghamshire County Council,1111/1001,Adult Social Care and Health,ASCH,Third Party Payments,EGA,31/10/2013,9-11005,"2,863.62",Priority Homecare Ltd,,,,,,,,,,,
Nottinghamshire County Council,1111/1001,Adult Social Care and Health,ASCH,Third Party Payments,EGA,31/10/2013,9-11006,"1,786.77",Mediline Nurses & Carers Ltd,,,,,,,,,,,
Nottinghamshire County Council,1111/1001,Adult Social Care and Health,ASCH,Third Party Payments,EGA,31/10/2013,9-11007,"1,549.13",Hatzfeld Care Ltd,,,,,,,,,,,
Nottinghamshire County Council,1111/1001,Adult Social Care and Health,ASCH,Third Party Payments,EGA,31/10/2013,9-11008,"18,795.75",Direct Health (uk) Ltd,,,,,,,,,,,
Nottinghamshire County Council,1111/1001,Adult Social Care and Health,ASCH,Third Party Payments,EGA,31/10/2013,9-11009,"1,935.10",Crossroads Care East Midlands,,,,,,,,,,,
Nottinghamshire County Council,1111/1001,Adult Social Care and Health,ASCH,Third Party Payments,EGA,31/10/2013,9-11010,"8,167.29",Priority Homecare Ltd,,,,,,,,,,,
Nottinghamshire County Council,1111/1001,Adult Social Care and Health,ASCH,Third Party Payments,EGA,31/10/2013,9-11011,"2,184.38",Hatzfeld Care Ltd,,,,,,,,,,,
Nottinghamshire County Council,1111/1001,Adult Social Care and Health,ASCH,Third Party Payments,EGA,31/10/2013,9-11012,"5,073.38",Mears Care Ltd,,,,,,,,,,,
Nottinghamshire County Council,1111/1001,Adult Social Care and Health,ASCH,Third Party Payments,EGA,31/10/2013,9-11013,"1,142.80",Always There Homecare Ltd,,,,,,,,,,,
Nottinghamshire County Council,1111/1001,Adult Social Care and Health,ASCH,Third Party Payments,EGA,31/10/2013,9-11014,"11,605.96",Leda Homecare Ltd,,,,,,,,,,,
Nottinghamshire County Council,1111/1001,Adult Social Care and Health,ASCH,Third Party Payments,EGA,31/10/2013,9-11015,"3,024.68",Direct Health (uk) Ltd,,,,,,,,,,,
Nottinghamshire County Council,1111/1001,Adult Social Care and Health,ASCH,Third Party Payments,EGA,31/10/2013,9-11016,"5,194.14",Medico Nursing & Homecare,,,,,,,,,,,
Nottinghamshire County Council,1111/1001,Adult Social Care and Health,ASCH,Third Party Payments,EGA,31/10/2013,9-11017,"3,100.59",Westminster Homecare Ltd,,,,,,,,,,,
Nottinghamshire County Council,1111/1001,Adult Social Care and Health,ASCH,Third Party Payments,EGA,31/10/2013,9-11018,"1,519.18",North Notts Crossroads Care,,,,,,,,,,,
Nottinghamshire County Council,1111/1001,Adult Social Care and Health,ASCH,Third Party Payments,EGA,31/10/2013,9-11019,"1,989.29",Housing 21,,,,,,,,,,,
Nottinghamshire County Council,1111/1001,Adult Social Care and Health,ASCH,Third Party Payments,EGA,31/10/2013,9-11020,"5,533.60",North Notts Crossroads Care,,,,,,,,,,,
Nottinghamshire County Council,1111/1001,Adult Social Care and Health,ASCH,Third Party Payments,EGA,31/10/2013,9-11021,554.93,Mears Care Ltd,,,,,,,,,,,
Nottinghamshire County Council,1111/1001,Adult Social Care and Health,ASCH,Third Party Payments,EGA,31/10/2013,9-11022,"9,382.60",Leda Homecare Ltd,,,,,,,,,,,
Nottinghamshire County Council,1111/1001,Adult Social Care and Health,ASCH,Third Party Payments,EGA,31/10/2013,9-11023,"4,656.95",Direct Health (uk) Ltd,,,,,,,,,,,
Nottinghamshire County Council,1111/1001,Adult Social Care and Health,ASCH,Third Party Payments,EGA,31/10/2013,9-11024,"1,894.44",Medico Nursing & Homecare,,,,,,,,,,,
Nottinghamshire County Council,1111/1001,Adult Social Care and Health,ASCH,Third Party Payments,EGA,31/10/2013,9-11025,"1,685.09",Sterling Homecare Ltd,,,,,,,,,,,
Nottinghamshire County Council,1111/1001,Adult Social Care and Health,ASCH,Third Party Payments,EGA,31/10/2013,9-11032,577.12,Eden Supported Living Ltd,,,,,,,,,,,
Nottinghamshire County Council,1111/1001,Adult Social Care and Health,ASCH,Third Party Payments,EGA,31/10/2013,9-11033,"3,243.63",Camphill Village Trust,,,,,,,,,,,
Nottinghamshire County Council,1111/1001,Adult Social Care and Health,ASCH,Third Party Payments,EGA,31/10/2013,9-11034,950.83,Norsaca Society Office,,,,,,,,,,,
Nottinghamshire County Council,1111/1001,Adult Social Care and Health,ASCH,Income,JDA,25/10/2013,9-10897,"1,250.00",APS Clearing,,,,,,,,,,,
Nottinghamshire County Council,1111/1001,Insurance Revenue,INSURANCE,Supplies & Services,DEA,30/10/2013,9-10942,"1,929.72",Motor Body Repairs,,,,,,,,,,,
Nottinghamshire County Council,1111/1001,Insurance Revenue,INSURANCE,Supplies & Services,DKA,30/10/2013,9-10941,"12,500.00",Uppal Taylor Solicitors,,,,,,,,,,,
Nottinghamshire County Council,1111/1001,Highways,HIGHWAYS,Transport Related,CCA,02/10/2013,9-10025,"8,750.00",Midland Fleet Maintenance,,,,,,,,,,,
Nottinghamshire County Council,1111/1001,Highways,HIGHWAYS,Transport Related,CCA,02/10/2013,9-10126,"15,600.00",Nottm Minibuses & Coaches,,,,,,,,,,,
Nottinghamshire County Council,1111/1001,Highways,HIGHWAYS,Transport Related,CCA,02/10/2013,9-10133,"5,467.00",K & H Doyle Coaches Ltd,,,,,,,,,,,
Nottinghamshire County Council,1111/1001,Highways,HIGHWAYS,Transport Related,CCA,02/10/2013,9-10134,"8,500.00",K & H Doyle Coaches Ltd,,,,,,,,,,,
Nottinghamshire County Council,1111/1001,Highways,HIGHWAYS,Transport Related,CCA,02/10/2013,9-10135,"21,245.70",K & H Doyle Coaches Ltd,,,,,,,,,,,
Nottinghamshire County Council,1111/1001,Highways,HIGHWAYS,Transport Related,CCA,02/10/2013,9-10136,"5,740.00",K & H Doyle Coaches Ltd,,,,,,,,,,,
Nottinghamshire County Council,1111/1001,Highways,HIGHWAYS,Transport Related,CCA,02/10/2013,9-10137,"1,890.00",K & H Doyle Coaches Ltd,,,,,,,,,,,
Nottinghamshire County Council,1111/1001,Highways,HIGHWAYS,Transport Related,CCA,02/10/2013,9-10154,"4,402.44",Nottingham Community Transport,,,,,,,,,,,
Nottinghamshire County Council,1111/1001,Highways,HIGHWAYS,Transport Related,CCA,07/10/2013,9-10276,706,Mackay Plant Hire Limited,,,,,,,,,,,
Nottinghamshire County Council,1111/1001,Highways,HIGHWAYS,Transport Related,CCA,07/10/2013,9-10279,"1,000.00",Mackay Plant Hire Limited,,,,,,,,,,,
Nottinghamshire County Council,1111/1001,Highways,HIGHWAYS,Transport Related,CCA,07/10/2013,9-10280,"1,029.00",Mackay Plant Hire Limited,,,,,,,,,,,
Nottinghamshire County Council,1111/1001,Highways,HIGHWAYS,Transport Related,CCA,07/10/2013,9-10281,630,Mackay Plant Hire Limited,,,,,,,,,,,
Nottinghamshire County Council,1111/1001,Highways,HIGHWAYS,Transport Related,CCA,07/10/2013,9-10282,"1,029.00",Mackay Plant Hire Limited,,,,,,,,,,,
Nottinghamshire County Council,1111/1001,Highways,HIGHWAYS,Transport Related,CCA,07/10/2013,9-10283,630,Mackay Plant Hire Limited,,,,,,,,,,,
Nottinghamshire County Council,1111/1001,Highways,HIGHWAYS,Transport Related,CCA,08/10/2013,9-11037,"1,632.00",Centrebus Ltd,,,,,,,,,,,
Nottinghamshire County Council,1111/1001,Highways,HIGHWAYS,Transport Related,CCA,09/10/2013,9-11038,595,P C Coaches Of Lincoln Ltd,,,,,,,,,,,
Nottinghamshire County Council,1111/1001,Highways,HIGHWAYS,Transport Related,CCA,09/10/2013,9-11039,"181,900.00",Nottm City Transport Ltd,,,,,,,,,,,
Nottinghamshire County Council,1111/1001,Highways,HIGHWAYS,Transport Related,CCA,09/10/2013,9-11040,"235,875.00",Trent Motor Traction Company Ltd,,,,,,,,,,,
Nottinghamshire County Council,1111/1001,Highways,HIGHWAYS,Transport Related,CCA,09/10/2013,9-11041,731,Our Centre,,,,,,,,,,,
Nottinghamshire County Council,1111/1001,Highways,HIGHWAYS,Transport Related,CCA,09/10/2013,9-11042,"21,300.00",Marshalls Of Sutton On Trent Ltd,,,,,,,,,,,
Nottinghamshire County Council,1111/1001,Highways,HIGHWAYS,Transport Related,CCA,09/10/2013,9-11043,930,Kettlewell Retford Ltd,,,,,,,,,,,
Nottinghamshire County Council,1111/1001,Highways,HIGHWAYS,Transport Related,CCA,09/10/2013,9-11044,"297,500.00",Stagecoach Services Ltd,,,,,,,,,,,
Nottinghamshire County Council,1111/1001,Highways,HIGHWAYS,Transport Related,CCA,09/10/2013,9-11045,"10,404.00",Travel Wright Ltd,,,,,,,,,,,
Nottinghamshire County Council,1111/1001,Highways,HIGHWAYS,Transport Related,CCA,09/10/2013,9-11046,"3,500.00",Nottm Minibuses & Coaches,,,,,,,,,,,
Nottinghamshire County Council,1111/1001,Highways,HIGHWAYS,Transport Related,CCA,09/10/2013,9-11047,"29,750.00",Tramlink Nottingham Ltd,,,,,,,,,,,
Nottinghamshire County Council,1111/1001,Highways,HIGHWAYS,Transport Related,CCA,10/10/2013,9-10391,"13,830.04",AOT Coaches,,,,,,,,,,,
Nottinghamshire County Council,1111/1001,Highways,HIGHWAYS,Transport Related,CCA,10/10/2013,9-10394,"3,121.00",Stagecoach Services Ltd,,,,,,,,,,,
Nottinghamshire County Council,1111/1001,Highways,HIGHWAYS,Transport Related,CCA,10/10/2013,9-10395,"1,872.00",Stagecoach Services Ltd,,,,,,,,,,,
Nottinghamshire County Council,1111/1001,Highways,HIGHWAYS,Transport Related,CCA,10/10/2013,9-10396,"1,348.75",Stagecoach Services Ltd,,,,,,,,,,,
Nottinghamshire County Council,1111/1001,Highways,HIGHWAYS,Transport Related,CCA,10/10/2013,9-10397,"1,506.25",Stagecoach Services Ltd,,,,,,,,,,,
Nottinghamshire County Council,1111/1001,Highways,HIGHWAYS,Transport Related,CCA,10/10/2013,9-10398,"2,533.00",Stagecoach Services Ltd,,,,,,,,,,,
Nottinghamshire County Council,1111/1001,Highways,HIGHWAYS,Transport Related,CCA,10/10/2013,9-10399,"1,849.00",Stagecoach Services Ltd,,,,,,,,,,,
Nottinghamshire County Council,1111/1001,Highways,HIGHWAYS,Transport Related,CCA,10/10/2013,9-10400,"3,423.50",Stagecoach Services Ltd,,,,,,,,,,,
Nottinghamshire County Council,1111/1001,Highways,HIGHWAYS,Transport Related,CCA,10/10/2013,9-10401,"1,242.36",Stagecoach Services Ltd,,,,,,,,,,,
Nottinghamshire County Council,1111/1001,Highways,HIGHWAYS,Transport Related,CCA,10/10/2013,9-10402,931.25,Stagecoach Services Ltd,,,,,,,,,,,
Nottinghamshire County Council,1111/1001,Highways,HIGHWAYS,Transport Related,CCA,10/10/2013,9-10403,"7,928.75",Stagecoach Services Ltd,,,,,,,,,,,
Nottinghamshire County Council,1111/1001,Highways,HIGHWAYS,Transport Related,CCA,10/10/2013,9-10404,"2,382.25",Stagecoach Services Ltd,,,,,,,,,,,
Nottinghamshire County Council,1111/1001,Highways,HIGHWAYS,Transport Related,CCA,10/10/2013,9-10405,"1,150.38",Stagecoach Services Ltd,,,,,,,,,,,
Nottinghamshire County Council,1111/1001,Highways,HIGHWAYS,Transport Related,CCA,10/10/2013,9-10406,"9,858.50",Stagecoach Services Ltd,,,,,,,,,,,
Nottinghamshire County Council,1111/1001,Highways,HIGHWAYS,Transport Related,CCA,10/10/2013,9-10407,"2,191.00",Stagecoach Services Ltd,,,,,,,,,,,
Nottinghamshire County Council,1111/1001,Highways,HIGHWAYS,Transport Related,CCA,10/10/2013,9-10408,"1,205.00",Stagecoach Services Ltd,,,,,,,,,,,
Nottinghamshire County Council,1111/1001,Highways,HIGHWAYS,Transport Related,CCA,10/10/2013,9-10409,980.4,Stagecoach Services Ltd,,,,,,,,,,,
Nottinghamshire County Council,1111/1001,Highways,HIGHWAYS,Transport Related,CCA,10/10/2013,9-10410,"2,299.25",Stagecoach Services Ltd,,,,,,,,,,,
Nottinghamshire County Council,1111/1001,Highways,HIGHWAYS,Transport Related,CCA,10/10/2013,9-10411,"1,037.35",Stagecoach Services Ltd,,,,,,,,,,,
Nottinghamshire County Council,1111/1001,Highways,HIGHWAYS,Transport Related,CCA,10/10/2013,9-10412,"8,900.00",Stagecoach Services Ltd,,,,,,,,,,,
Nottinghamshire County Council,1111/1001,Highways,HIGHWAYS,Transport Related,CCA,10/10/2013,9-10413,"2,056.56",Stagecoach Services Ltd,,,,,,,,,,,
Nottinghamshire County Council,1111/1001,Highways,HIGHWAYS,Transport Related,CCA,10/10/2013,9-10414,"1,819.25",Stagecoach Services Ltd,,,,,,,,,,,
Nottinghamshire County Council,1111/1001,Highways,HIGHWAYS,Transport Related,CCA,10/10/2013,9-10415,"1,685.00",Stagecoach Services Ltd,,,,,,,,,,,
Nottinghamshire County Council,1111/1001,Highways,HIGHWAYS,Transport Related,CCA,10/10/2013,9-10416,"3,187.75",Stagecoach Services Ltd,,,,,,,,,,,
Nottinghamshire County Council,1111/1001,Highways,HIGHWAYS,Transport Related,CCA,10/10/2013,9-10417,"4,463.00",Stagecoach Services Ltd,,,,,,,,,,,
Nottinghamshire County Council,1111/1001,Highways,HIGHWAYS,Transport Related,CCA,10/10/2013,9-10418,"3,187.75",Stagecoach Services Ltd,,,,,,,,,,,
Nottinghamshire County Council,1111/1001,Highways,HIGHWAYS,Transport Related,CCA,10/10/2013,9-10419,"9,818.50",Stagecoach Services Ltd,,,,,,,,,,,
Nottinghamshire County Council,1111/1001,Highways,HIGHWAYS,Transport Related,CCA,10/10/2013,9-10420,"18,509.00",Stagecoach Services Ltd,,,,,,,,,,,
Nottinghamshire County Council,1111/1001,Highways,HIGHWAYS,Transport Related,CCA,10/10/2013,9-10421,975,Stagecoach Services Ltd,,,,,,,,,,,
Nottinghamshire County Council,1111/1001,Highways,HIGHWAYS,Transport Related,CCA,10/10/2013,9-10422,525,Stagecoach Services Ltd,,,,,,,,,,,
Nottinghamshire County Council,1111/1001,Highways,HIGHWAYS,Transport Related,CCA,10/10/2013,9-10424,"2,190.90",Stagecoach Services Ltd,,,,,,,,,,,
Nottinghamshire County Council,1111/1001,Highways,HIGHWAYS,Transport Related,CCA,10/10/2013,9-10425,528.5,Stagecoach Services Ltd,,,,,,,,,,,
Nottinghamshire County Council,1111/1001,Highways,HIGHWAYS,Transport Related,CCA,10/10/2013,9-10426,"1,554.25",Stagecoach Services Ltd,,,,,,,,,,,
Nottinghamshire County Council,1111/1001,Highways,HIGHWAYS,Transport Related,CCA,10/10/2013,9-10427,932.45,Stagecoach Services Ltd,,,,,,,,,,,
Nottinghamshire County Council,1111/1001,Highways,HIGHWAYS,Transport Related,CCA,10/10/2013,9-10428,"1,336.40",Stagecoach Services Ltd,,,,,,,,,,,
Nottinghamshire County Council,1111/1001,Highways,HIGHWAYS,Transport Related,CCA,10/10/2013,9-10429,"1,635.25",Stagecoach Services Ltd,,,,,,,,,,,
Nottinghamshire County Council,1111/1001,Highways,HIGHWAYS,Transport Related,CCA,10/10/2013,9-10430,"6,356.25",Stagecoach Services Ltd,,,,,,,,,,,
Nottinghamshire County Council,1111/1001,Highways,HIGHWAYS,Transport Related,CCA,10/10/2013,9-10431,"1,487.00",Stagecoach Services Ltd,,,,,,,,,,,
Nottinghamshire County Council,1111/1001,Highways,HIGHWAYS,Transport Related,CCA,10/10/2013,9-10432,"2,089.50",Stagecoach Services Ltd,,,,,,,,,,,
Nottinghamshire County Council,1111/1001,Highways,HIGHWAYS,Transport Related,CCA,10/10/2013,9-10433,"1,397.48",Stagecoach Services Ltd,,,,,,,,,,,
Nottinghamshire County Council,1111/1001,Highways,HIGHWAYS,Transport Related,CCA,10/10/2013,9-10439,"15,216.88",Paul S Winson Coaches,,,,,,,,,,,
Nottinghamshire County Council,1111/1001,Highways,HIGHWAYS,Transport Related,CCA,10/10/2013,9-10440,"9,113.80",Paul S Winson Coaches,,,,,,,,,,,
Nottinghamshire County Council,1111/1001,Highways,HIGHWAYS,Transport Related,CCA,10/10/2013,9-10443,"3,156.71",South Yorks Passenger Trans Exec,,,,,,,,,,,
Nottinghamshire County Council,1111/1001,Highways,HIGHWAYS,Transport Related,CCA,10/10/2013,9-10444,"4,062.32",South Yorks Passenger Trans Exec,,,,,,,,,,,
Nottinghamshire County Council,1111/1001,Highways,HIGHWAYS,Transport Related,CCA,10/10/2013,9-10445,"4,637.66",South Yorks Passenger Trans Exec,,,,,,,,,,,
Nottinghamshire County Council,1111/1001,Highways,HIGHWAYS,Transport Related,CCA,10/10/2013,9-10446,"7,448.75",TM Travel,,,,,,,,,,,
Nottinghamshire County Council,1111/1001,Highways,HIGHWAYS,Transport Related,CCA,10/10/2013,9-10447,"6,160.00",TM Travel,,,,,,,,,,,
Nottinghamshire County Council,1111/1001,Highways,HIGHWAYS,Transport Related,CCA,10/10/2013,9-10448,"15,481.18",TM Travel,,,,,,,,,,,
Nottinghamshire County Council,1111/1001,Highways,HIGHWAYS,Transport Related,CCA,23/10/2013,9-10789,"4,575.44",Silverdale Tours Nottm Ltd,,,,,,,,,,,
Nottinghamshire County Council,1111/1001,Highways,HIGHWAYS,Transport Related,CCA,31/10/2013,9-11026,"10,800.00",K & H Doyle Coaches Ltd,,,,,,,,,,,
Nottinghamshire County Council,1111/1001,Highways,HIGHWAYS,Transport Related,CCA,31/10/2013,9-11191,570,Maun Motors Self Drive,,,,,,,,,,,
Nottinghamshire County Council,1111/1001,Highways,HIGHWAYS,Transport Related,CDA,10/10/2013,9-10452,"1,932.50",The Helpful Bureau,,,,,,,,,,,
Nottinghamshire County Council,1111/1001,Highways,HIGHWAYS,Transport Related,CDA,10/10/2013,9-10453,"1,875.00",Bassetlaw Action Centre,,,,,,,,,,,
Nottinghamshire County Council,1111/1001,Highways,HIGHWAYS,Transport Related,CDA,29/10/2013,9-10929,"2,054.25",Rushcliffe Community & Vol Serv,,,,,,,,,,,
Nottinghamshire County Council,1111/1001,Highways,HIGHWAYS,Supplies & Services,DAA,25/10/2013,9-10885,664.29,Platts Harris Ltd,,,,,,,,,,,
Nottinghamshire County Council,1111/1001,Highways,HIGHWAYS,Supplies & Services,DAA,29/10/2013,9-10936,534.5,Gk Group Mansfield,,,,,,,,,,,
Nottinghamshire County Council,1111/1001,Highways,HIGHWAYS,Supplies & Services,DEA,11/10/2013,9-10588,"6,200.00",Mattersey Parish Council,,,,,,,,,,,
Nottinghamshire County Council,1111/1001,Highways,HIGHWAYS,Third Party Payments,EBA,31/10/2013,9-11188,"3,551.50",Commercial Surface Solutions Ltd,,,,,,,,,,,
Nottinghamshire County Council,1111/1001,Libraries,LIBRARIES,Supplies & Services,DAA,07/10/2013,9-10261,940.04,Askews & Holts Library Services Ltd,,,,,,,,,,,
Nottinghamshire County Council,1111/1001,Libraries,LIBRARIES,Supplies & Services,DAA,17/10/2013,9-10733,862.5,Ulverscroft Large Print Books Ltd,,,,,,,,,,,
Nottinghamshire County Council,1111/1001,Libraries,LIBRARIES,Supplies & Services,DAA,17/10/2013,9-10734,500,Ulverscroft Large Print Books Ltd,,,,,,,,,,,
Nottinghamshire County Council,1111/1001,Libraries,LIBRARIES,Supplies & Services,DAA,17/10/2013,9-10735,"1,246.06",Ulverscroft Large Print Books Ltd,,,,,,,,,,,
Nottinghamshire County Council,1111/1001,Libraries,LIBRARIES,Supplies & Services,DAA,31/10/2013,9-11027,674.14,Ulverscroft Large Print Books Ltd,,,,,,,,,,,
Nottinghamshire County Council,1111/1001,Libraries,LIBRARIES,Supplies & Services,DAA,31/10/2013,9-11028,814.16,Askews & Holts Library Services Ltd,,,,,,,,,,,
Nottinghamshire County Council,1111/1001,Libraries,LIBRARIES,Supplies & Services,DAA,31/10/2013,9-11029,615.79,Askews & Holts Library Services Ltd,,,,,,,,,,,
Nottinghamshire County Council,1111/1001,Libraries,LIBRARIES,Supplies & Services,DAA,31/10/2013,9-11030,674.14,Ulverscroft Large Print Books Ltd,,,,,,,,,,,
Nottinghamshire County Council,1111/1001,Libraries,LIBRARIES,Supplies & Services,DAA,31/10/2013,9-11031,500,Ulverscroft Large Print Books Ltd,,,,,,,,,,,
Nottinghamshire County Council,1111/1001,Planning and Development,PLAN_DEV,Supplies & Services,DEA,10/10/2013,9-10494,"109,000.00",Experience Notts Ltd,,,,,,,,,,,
Nottinghamshire County Council,1111/1001,Planning and Development,PLAN_DEV,Supplies & Services,DHA,15/10/2013,9-10640,500,Egmanton Parish Meeting,,,,,,,,,,,
Nottinghamshire County Council,1111/1001,Planning and Development,PLAN_DEV,Supplies & Services,DHA,15/10/2013,9-10641,500,Coddington & Winthorpe Cricket Club,,,,,,,,,,,
Nottinghamshire County Council,1111/1001,Planning and Development,PLAN_DEV,Supplies & Services,DHA,15/10/2013,9-10642,"1,000.00",FAME,,,,,,,,,,,
Nottinghamshire County Council,1111/1001,Planning and Development,PLAN_DEV,Supplies & Services,DHA,15/10/2013,9-10643,500,Young Persons Positive Moves Extras,,,,,,,,,,,
Nottinghamshire County Council,1111/1001,Planning and Development,PLAN_DEV,Supplies & Services,DHA,21/10/2013,9-10756,"1,000.00",Jeffries Friends & Community,,,,,,,,,,,
Nottinghamshire County Council,1111/1001,Planning and Development,PLAN_DEV,Supplies & Services,DHA,21/10/2013,9-10758,"1,000.00",St Marys PCC,,,,,,,,,,,
Nottinghamshire County Council,1111/1001,Planning and Development,PLAN_DEV,Supplies & Services,DHA,21/10/2013,9-10759,500,St Wilfrids Church,,,,,,,,,,,
Nottinghamshire County Council,1111/1001,Planning and Development,PLAN_DEV,Supplies & Services,DHA,21/10/2013,9-10760,500,Bethesda Community,,,,,,,,,,,
Nottinghamshire County Council,1111/1001,Planning and Development,PLAN_DEV,Supplies & Services,DHA,21/10/2013,9-10761,"1,000.00",Keyworth Tennis Club,,,,,,,,,,,
Nottinghamshire County Council,1111/1001,Planning and Development,PLAN_DEV,Supplies & Services,DHA,21/10/2013,9-10762,800,Harworth & Bircotes Town Council,,,,,,,,,,,
Nottinghamshire County Council,1111/1001,Planning and Development,PLAN_DEV,Supplies & Services,DHA,21/10/2013,9-10763,500,Serlby Park Academy,,,,,,,,,,,
Nottinghamshire County Council,1111/1001,Planning and Development,PLAN_DEV,Supplies & Services,DHA,30/10/2013,9-10949,500,Beeston & District First Responders,,,,,,,,,,,
Nottinghamshire County Council,1111/1001,Planning and Development,PLAN_DEV,Supplies & Services,DHA,30/10/2013,9-10952,"1,500.00",Norwood Park Golf Centre,,,,,,,,,,,
Nottinghamshire County Council,1111/1001,Environmental,ENVIRON,Supplies & Services,DAA,25/10/2013,9-11132,"1,920.00",George Fillingham & Sons,,,,,,,,,,,
Nottinghamshire County Council,1111/1001,Environmental,ENVIRON,Supplies & Services,DEA,08/10/2013,9-10291,"3,500.00",Romany Gypsy Educational Rescources,,,,,,,,,,,
Nottinghamshire County Council,1111/1001,Environmental,ENVIRON,Supplies & Services,DEA,23/10/2013,9-10771,"4,709.19",Recycling Ollerton & Boughton,,,,,,,,,,,
Nottinghamshire County Council,1111/1001,Environmental,ENVIRON,Supplies & Services,DEA,28/10/2013,9-11149,700,Westlake Associates,,,,,,,,,,,
Nottinghamshire County Council,1111/1001,Environmental,ENVIRON,Supplies & Services,DHA,28/10/2013,9-11148,945,Civica Uk Ltd,,,,,,,,,,,
Nottinghamshire County Council,1111/1001,Corporate Management,CORP_MAGT,Premises Related,BAA,24/10/2013,9-11122,722.83,Robert Woodhead Limited,,,,,,,,,,,
Nottinghamshire County Council,1111/1001,Corporate Management,CORP_MAGT,Premises Related,BDA,21/10/2013,9-11094,718,Lindley Catering Ltd,,,,,,,,,,,
Nottinghamshire County Council,1111/1001,Corporate Management,CORP_MAGT,Premises Related,BFA,02/10/2013,9-10173,"2,082.46",Severn Trent Water Ltd,,,,,,,,,,,
Nottinghamshire County Council,1111/1001,Corporate Management,CORP_MAGT,Premises Related,BFA,02/10/2013,9-10174,"1,941.86",Severn Trent Water Ltd,,,,,,,,,,,
Nottinghamshire County Council,1111/1001,Corporate Management,CORP_MAGT,Supplies & Services,DDA,30/10/2013,9-10951,"1,632.12",Konica Minolta,,,,,,,,,,,
Nottinghamshire County Council,1111/1001,Corporate Management,CORP_MAGT,Supplies & Services,DDA,31/10/2013,9-11187,"38,203.60",Konica Minolta,,,,,,,,,,,
Nottinghamshire County Council,1111/1001,Corporate Management,CORP_MAGT,Supplies & Services,DEA,07/10/2013,9-11036,"2,392.40",Robert Woodhead Limited,,,,,,,,,,,
Nottinghamshire County Council,1111/1001,Corporate Management,CORP_MAGT,Supplies & Services,DEA,08/10/2013,9-10290,999.18,Collector Set Printers Ltd,,,,,,,,,,,
Nottinghamshire County Council,1111/1001,Corporate Management,CORP_MAGT,Supplies & Services,DEA,17/10/2013,9-10730,878.71,Carter Brown Ltd,,,,,,,,,,,
Nottinghamshire County Council,1111/1001,Corporate Management,CORP_MAGT,Supplies & Services,DEA,17/10/2013,9-11086,"1,040.00",Second Element Ltd,,,,,,,,,,,
Nottinghamshire County Council,1111/1001,Corporate Management,CORP_MAGT,Supplies & Services,DEA,17/10/2013,9-11087,"1,040.00",Second Element Ltd,,,,,,,,,,,
Nottinghamshire County Council,1111/1001,Corporate Management,CORP_MAGT,Supplies & Services,DEA,17/10/2013,9-11088,"1,040.00",Second Element Ltd,,,,,,,,,,,
Nottinghamshire County Council,1111/1001,Corporate Management,CORP_MAGT,Supplies & Services,DEA,18/10/2013,9-10754,"1,813.00",Focus Promotions Ltd,,,,,,,,,,,
Nottinghamshire County Council,1111/1001,Corporate Management,CORP_MAGT,Supplies & Services,DEA,18/10/2013,9-11089,"4,647.10",Ascentor Ltd,,,,,,,,,,,
Nottinghamshire County Council,1111/1001,Corporate Management,CORP_MAGT,Supplies & Services,DEA,21/10/2013,9-10764,732,Experian Ltd,,,,,,,,,,,
Nottinghamshire County Council,1111/1001,Corporate Management,CORP_MAGT,Supplies & Services,DEA,23/10/2013,9-11096,820.97,Julie Leather Clinical Psychologica,,,,,,,,,,,
Nottinghamshire County Council,1111/1001,Corporate Management,CORP_MAGT,Supplies & Services,DEA,23/10/2013,9-11098,700,N Beese,,,,,,,,,,,
Nottinghamshire County Council,1111/1001,Corporate Management,CORP_MAGT,Supplies & Services,DEA,24/10/2013,9-11112,634,National Day Nurseries Association,,,,,,,,,,,
Nottinghamshire County Council,1111/1001,Corporate Management,CORP_MAGT,Supplies & Services,DEA,24/10/2013,9-11115,"108,988.80",G F Tomlinson Building Ltd,,,,,,,,,,,
Nottinghamshire County Council,1111/1001,Corporate Management,CORP_MAGT,Supplies & Services,DEA,24/10/2013,9-11120,"9,900.00",Second Element Ltd,,,,,,,,,,,
Nottinghamshire County Council,1111/1001,Corporate Management,CORP_MAGT,Supplies & Services,DEA,24/10/2013,9-11121,850,Second Element Ltd,,,,,,,,,,,
Nottinghamshire County Council,1111/1001,Corporate Management,CORP_MAGT,Supplies & Services,DEA,24/10/2013,9-11128,"1,886.23",Faithful & Gould,,,,,,,,,,,
Nottinghamshire County Council,1111/1001,Corporate Management,CORP_MAGT,Supplies & Services,DEA,25/10/2013,9-11129,529.2,Phs Group Plc,,,,,,,,,,,
Nottinghamshire County Council,1111/1001,Corporate Management,CORP_MAGT,Supplies & Services,DEA,25/10/2013,9-11140,"1,040.00",Second Element Ltd,,,,,,,,,,,
Nottinghamshire County Council,1111/1001,Corporate Management,CORP_MAGT,Supplies & Services,DEA,28/10/2013,9-11157,"2,306.00",PACEY,,,,,,,,,,,
Nottinghamshire County Council,1111/1001,Corporate Management,CORP_MAGT,Supplies & Services,DEA,29/10/2013,9-11160,"2,233.72",Glaxosmithkline Uk Ltd,,,,,,,,,,,
Nottinghamshire County Council,1111/1001,Corporate Management,CORP_MAGT,Supplies & Services,DEA,29/10/2013,9-11168,"15,000.00",Faithful & Gould,,,,,,,,,,,
Nottinghamshire County Council,1111/1001,Corporate Management,CORP_MAGT,Supplies & Services,DEA,30/10/2013,9-11173,"48,848.28",Robert Woodhead Limited,,,,,,,,,,,
Nottinghamshire County Council,1111/1001,Corporate Management,CORP_MAGT,Supplies & Services,DEA,30/10/2013,9-11178,"4,240.00",Jones Lang Lasalle Ltd,,,,,,,,,,,
Nottinghamshire County Council,1111/1001,Corporate Management,CORP_MAGT,Supplies & Services,DEA,30/10/2013,9-11182,"51,764.34",Robert Woodhead Limited,,,,,,,,,,,
Nottinghamshire County Council,1111/1001,Corporate Management,CORP_MAGT,Supplies & Services,DEA,30/10/2013,9-11185,"1,433.00",Ptl Occupational Hygiene Ltd,,,,,,,,,,,
Nottinghamshire County Council,1111/1001,Corporate Management,CORP_MAGT,Supplies & Services,DFA,07/10/2013,9-10284,"11,711.70",Bt Business Direct Ltd,,,,,,,,,,,
Nottinghamshire County Council,1111/1001,Corporate Management,CORP_MAGT,Supplies & Services,DFA,17/10/2013,9-10726,"3,364.90",Krcs Group Ltd,,,,,,,,,,,
Nottinghamshire County Council,1111/1001,Corporate Management,CORP_MAGT,Supplies & Services,DFA,17/10/2013,9-10727,"1,214.96",Viglen Ltd,,,,,,,,,,,
Nottinghamshire County Council,1111/1001,Corporate Management,CORP_MAGT,Supplies & Services,DFA,21/10/2013,9-10755,765,Kelway (UK) Ltd,,,,,,,,,,,
Nottinghamshire County Council,1111/1001,Corporate Management,CORP_MAGT,Supplies & Services,DFA,28/10/2013,9-11145,"4,068.50",Idox Software Ltd,,,,,,,,,,,
Nottinghamshire County Council,1111/1001,Corporate Management,CORP_MAGT,Supplies & Services,DHA,24/10/2013,9-11113,975,Cipfa,,,,,,,,,,,
Nottinghamshire County Council,1111/1001,Corporate Management,CORP_MAGT,Supplies & Services,DHA,30/10/2013,9-11183,598.36,Msr Newsgroup Ltd,,,,,,,,,,,
Nottinghamshire County Council,1111/1001,Leisure Services,LEISURE,Supplies & Services,DAA,30/10/2013,9-11171,760,Emblem Print Products Ltd,,,,,,,,,,,
Nottinghamshire County Council,1111/1001,Leisure Services,LEISURE,Supplies & Services,DBA,08/10/2013,9-10289,"1,013.78",Hallam Country Fresh Foods Ltd,,,,,,,,,,,
Nottinghamshire County Council,1111/1001,Leisure Services,LEISURE,Supplies & Services,DBA,28/10/2013,9-10919,912.64,Brake Bros Ltd,,,,,,,,,,,
Nottinghamshire County Council,1111/1001,Leisure Services,LEISURE,Supplies & Services,DHA,25/10/2013,9-11138,"1,259.68",Mayfield Books & Gifts,,,,,,,,,,,
Nottinghamshire County Council,1111/1001,Leisure Services,LEISURE,Supplies & Services,DHA,30/10/2013,9-10950,"12,500.00",Woodthorpe Tennis Club,,,,,,,,,,,
Nottinghamshire County Council,1111/1001,Continuing Education,CONT_EDUC,Third Party Payments,EHA,10/10/2013,9-10450,540.75,Tales From The Heartwood,,,,,,,,,,,
Nottinghamshire County Council,1111/1001,Continuing Education,CONT_EDUC,Third Party Payments,EHA,17/10/2013,9-10728,"2,090.00",Personal Learning Consultancy,,,,,,,,,,,
Nottinghamshire County Council,1111/1001,Continuing Education,CONT_EDUC,Third Party Payments,EHA,17/10/2013,9-10729,"14,444.39",Dukeries Academy,,,,,,,,,,,
Nottinghamshire County Council,1111/1001,Continuing Education,CONT_EDUC,Third Party Payments,EHA,17/10/2013,9-10731,"1,645.00",Dukeries Academy,,,,,,,,,,,
Nottinghamshire County Council,1111/1001,Continuing Education,CONT_EDUC,Third Party Payments,EHA,17/10/2013,9-10732,"16,508.14",Sutton Community Academy,,,,,,,,,,,
Nottinghamshire County Council,1111/1001,Surplus or Deficit from Trading Undertak,TRADING,Premises Related,BAA,11/10/2013,9-10572,"6,654.00",Inside Out Technical Security Ltd,,,,,,,,,,,
Nottinghamshire County Council,1111/1001,Surplus or Deficit from Trading Undertak,TRADING,Premises Related,BBA,11/10/2013,9-10571,"1,170.00",Wastecycle Ltd,,,,,,,,,,,
Nottinghamshire County Council,1111/1001,Surplus or Deficit from Trading Undertak,TRADING,Premises Related,BCA,11/10/2013,9-10572,"3,774.25",Inside Out Technical Security Ltd,,,,,,,,,,,
Nottinghamshire County Council,1111/1001,Surplus or Deficit from Trading Undertak,TRADING,Premises Related,BJA,03/10/2013,9-10247,572.78,Bassetlaw District Council,,,,,,,,,,,
Nottinghamshire County Council,1111/1001,Surplus or Deficit from Trading Undertak,TRADING,Premises Related,BJA,23/10/2013,9-11097,665.2,Wastecycle Ltd,,,,,,,,,,,
Nottinghamshire County Council,1111/1001,Surplus or Deficit from Trading Undertak,TRADING,Premises Related,BJA,23/10/2013,9-11099,665.2,Wastecycle Ltd,,,,,,,,,,,
Nottinghamshire County Council,1111/1001,Surplus or Deficit from Trading Undertak,TRADING,Premises Related,BJA,23/10/2013,9-11100,665.2,Wastecycle Ltd,,,,,,,,,,,
Nottinghamshire County Council,1111/1001,Surplus or Deficit from Trading Undertak,TRADING,Premises Related,BJA,23/10/2013,9-11101,665.2,Wastecycle Ltd,,,,,,,,,,,
Nottinghamshire County Council,1111/1001,Surplus or Deficit from Trading Undertak,TRADING,Transport Related,CCA,03/10/2013,9-10248,"1,000.00",R J Lawrence Plant Hire,,,,,,,,,,,
Nottinghamshire County Council,1111/1001,Surplus or Deficit from Trading Undertak,TRADING,Transport Related,CCA,07/10/2013,9-10267,"1,067.00",R J Lawrence Plant Hire,,,,,,,,,,,
Nottinghamshire County Council,1111/1001,Surplus or Deficit from Trading Undertak,TRADING,Transport Related,CCA,07/10/2013,9-10275,"1,000.00",R J Lawrence Plant Hire,,,,,,,,,,,
Nottinghamshire County Council,1111/1001,Surplus or Deficit from Trading Undertak,TRADING,Transport Related,CCA,07/10/2013,9-10287,966,A & V Squires Plant Co,,,,,,,,,,,
Nottinghamshire County Council,1111/1001,Surplus or Deficit from Trading Undertak,TRADING,Transport Related,CCA,10/10/2013,9-10371,900,Vale Engineering York Ltd,,,,,,,,,,,
Nottinghamshire County Council,1111/1001,Surplus or Deficit from Trading Undertak,TRADING,Transport Related,CCA,10/10/2013,9-10372,900,Vale Engineering York Ltd,,,,,,,,,,,
Nottinghamshire County Council,1111/1001,Surplus or Deficit from Trading Undertak,TRADING,Transport Related,CCA,10/10/2013,9-10373,900,Vale Engineering York Ltd,,,,,,,,,,,
Nottinghamshire County Council,1111/1001,Surplus or Deficit from Trading Undertak,TRADING,Transport Related,CCA,10/10/2013,9-10374,900,Vale Engineering York Ltd,,,,,,,,,,,
Nottinghamshire County Council,1111/1001,Surplus or Deficit from Trading Undertak,TRADING,Transport Related,CCA,10/10/2013,9-10375,900,Vale Engineering York Ltd,,,,,,,,,,,
Nottinghamshire County Council,1111/1001,Surplus or Deficit from Trading Undertak,TRADING,Transport Related,CCA,10/10/2013,9-10376,900,Vale Engineering York Ltd,,,,,,,,,,,
Nottinghamshire County Council,1111/1001,Surplus or Deficit from Trading Undertak,TRADING,Transport Related,CCA,10/10/2013,9-10377,900,Vale Engineering York Ltd,,,,,,,,,,,
Nottinghamshire County Council,1111/1001,Surplus or Deficit from Trading Undertak,TRADING,Transport Related,CCA,10/10/2013,9-10378,900,Vale Engineering York Ltd,,,,,,,,,,,
Nottinghamshire County Council,1111/1001,Surplus or Deficit from Trading Undertak,TRADING,Transport Related,CCA,10/10/2013,9-10379,900,Vale Engineering York Ltd,,,,,,,,,,,
Nottinghamshire County Council,1111/1001,Surplus or Deficit from Trading Undertak,TRADING,Transport Related,CCA,11/10/2013,9-10607,560.06,J C Balls & Sons,,,,,,,,,,,
Nottinghamshire County Council,1111/1001,Surplus or Deficit from Trading Undertak,TRADING,Transport Related,CCA,16/10/2013,9-10648,"1,370.00",Jordan Road Surfacing Limited,,,,,,,,,,,
